Workbook

Sheet Translation (hidden)
B5: Name of the sheet: | C5: Selected Language: | E5: Reference Line & Language Versions
C6: =Overview!F7 -> Français | E6: English | F6: Français | G6: Deutsch | H6: - | I6: -
B8: =C8 -> Aperçu | C8: =HLOOKUP($C$6,$E$6:$I$736,ROW()-ROW($E$5),FALSE) -> Aperçu | E8: Overview | F8: Aperçu | G8: Übersicht
C9: Start | E9: Home | F9: Start | G9: Startseite
C10: Conteneur | E10: Container | F10: Conteneur | G10: Container
C11: Glace | E11: Ice | F11: Glace | G11: Eis
C12: Bain | E12: Waterbath | F12: Bain | G12: Wasserbad
C13: Réfrigérateur | E13: Refrigerator | F13: Réfrigérateur | G13: Kühlschrank
C14: Congélateur | E14: Freezer | F14: Congélateur | G14: Gefrierschrank
C15: ChambreFroide | E15: Coldroom | F15: ChambreFroide | G15: Kühlraum
C16: Traduction | E16: Translation | F16: Traduction | G16: Übersetzung
C17: Poisson | E17: Fish | F17: Poisson | G17: Fisch
C18: Viande | E18: Meat | F18: Viande | G18: Fleisch
C19: Produits_laitiers | E19: Dairy | F19: Produits_laitiers | G19: Molkerei
C20: Horticulture | E20: Horticulture | F20: Horticulture | G20: Gartenbau
C21: Poisson_glace | E21: Fish_Ice | F21: Poisson_glace | G21: Fisch_Eis
C22: Bases | E22: Basics | F22: Bases | G22: Grundlagen
C23: Récherche | E23: Research | F23: Récherche | G23: Forschung
C24: Sustanibilité | E24: Sustainability | F24: Sustanibilité | G24: Nachhaltigkeit
C25: Demande_fournisseur | E25: Supplier_Request | F25: Demande_fournisseur | G25: Lieferant_Anfrage
C26: Fournisseur_conteneurs | E26: Container_Supplier | F26: Fournisseur_conteneurs | G26: Container_Lieferant
C27: Fournisseur_chambres_froides | E27: ColdRoom_Supplier | F27: Fournisseur_chambres_froides | G27: ColdRoom_Lieferant
C28: Fournisseur_flocons_glace | E28: Ice_flake_Supplier | F28: Fournisseur_flocons_glace | G28: Eis_Flocken_Lieferant
C29: Performance_flocons_glace | E29: Performance_ice_flakes | F29: Performance_flocons_glace | G29: Leistung_Eis_Flocken
C30: Réfrigérants | E30: Refrigerants | F30: Réfrigérants | G30: Kältemittel
C31: Données | E31: Data | F31: Données | G31: Daten
C32: Nom de l'entreprise | E32: Name | F32: Nom de l'entreprise | G32: Name
C33: Description de l'outil | E33: Description | F33: Description de l'outil | G33: Beschreibung
C34: Choix de la langue et informations générales sur cet outil | E34: Language selection and background information on this tool | F34: Choix de la langue et informations générales sur cet outil | G34: Sprachauswahl und Hintergrundinformationen zu diesem Tool
C35: Recommandation d'un système de refroidissement adapté à vos besoins | E35: Recommendation of cooling system for your purpose | F35: Recommandation d'un système de refroidissement adapté à vos besoins | G35: Empfehlung des Kühlsystems für Ihren Zweck
C36: Comprendre les bases du refroidissement (solaire) | E36: Understanding the basics of (solar) cooling | F36: Comprendre les bases du refroidissement (solaire) | G36: Die Grundlagen der (solaren) Kühlung verstehen
C37: Aperçu des solutions pour les réfrigérateurs | E37: Overview of refrigerator - solutions | F37: Aperçu des solutions pour les réfrigérateurs | G37: Überblick über Kühlschrank - Lösungen
C38: Aperçu des solutions de congélation | E38: Overview of freezer - solutions | F38: Aperçu des solutions de congélation | G38: Überblick über Gefriergeräte - Lösungen
C39: Aperçu des solutions de chambres froides | E39: Overview of coldroom - solutions | F39: Aperçu des solutions de chambres froides | G39: Überblick über Kühlraum - Lösungen
C40: Aperçu des solutions pour les conteneurs | E40: Overview of container - solutions | F40: Aperçu des solutions pour les conteneurs | G40: Überblick über Container - Lösungen
C41: Aperçu de la glace (écailles) - solutions | E41: Overview of ice (flake) - solutions | F41: Aperçu de la glace (écailles) - solutions | G41: Überblick über Eis (Scherbeneis) - Lösungen
C42: Aperçu des solutions de bain-marie | E42: Overview of waterbath - solutions | F42: Aperçu des solutions de bain-marie | G42: Übersicht Wasserbad - Lösungen
C43: Refroidissement du poisson - chaîne de valeur | E43: Cooling in the fish - value chain | F43: Refroidissement du poisson - chaîne de valeur | G43: Kühlung in der Fisch - Wertschöpfungskette
C44: Refroidissement de la viande - chaîne de valeur | E44: Cooling in the meat - value chain | F44: Refroidissement de la viande - chaîne de valeur | G44: Kühlung in der Fleisch - Wertschöpfungskette
C45: Refroidissement dans les produits laitiers - chaîne de valeur | E45: Cooling in the dairy - value chain | F45: Refroidissement dans les produits laitiers - chaîne de valeur | G45: Kühlung in der Molkerei - Wertschöpfungskette
C46: Refroidissement dans l'horticulture - chaîne de valeur | E46: Cooling in the horticulture - value chain | F46: Refroidissement dans l'horticulture - chaîne de valeur | G46: Kühlung im Gartenbau - Wertschöpfungskette
C47: Solutions de refroidissement durables | E47: Sustainable cooling solutions | F47: Solutions de refroidissement durables | G47: Nachhaltige Kühllösungen
C48: Aperçu des réfrigérants utilisés pour le refroidissement | E48: Overview of refrigerants used for cooling | F48: Aperçu des réfrigérants utilisés pour le refroidissement | G48: Übersicht über die zur Kühlung verwendeten Kältemittel
C49: Calcul de la glace nécessaire pour le refroidissement du poisson | E49: Calculation of ice required for fish cooling | F49: Calcul de la glace nécessaire pour le refroidissement du poisson | G49: Berechnung des Eisbedarfs für die Fischkühlung
C50: Demande d'échantillon pour contacter les fournisseurs | E50: Sample request to reach out to suppliers | F50: Demande d'échantillon pour contacter les fournisseurs | G50: Musteranforderung zur Kontaktaufnahme mit Lieferanten
C51: Base de données des fournisseurs de conteneurs | E51: Database of Container Suppliers | F51: Base de données des fournisseurs de conteneurs | G51: Datenbank der Container-Lieferanten
C52: Base de données des fournisseurs de chambres froides | E52: Database of Coldroom Suppliers | F52: Base de données des fournisseurs de chambres froides | G52: Datenbank der Kühlraumlieferanten
C53: Base de données des fournisseurs de machines à glace écailles | E53: Database of Ice Flake Machine Suppliers | F53: Base de données des fournisseurs de machines à glace écailles | G53: Datenbank der Lieferanten von Eisflockenmaschinen
C54: Comparaison des performances des machines à écailles de glace | E54: Performance Comparison of Ice Flake Machines | F54: Comparaison des performances des machines à écailles de glace | G54: Leistungsvergleich von Scherbeneiserzeugern
C55: 0
C56: 0
C57: Langue sélectionnée: | E57: Selected Language: | F57: Langue sélectionnée: | G57: Ausgewählte Sprache:
C58: OUTIL SOLAR de décision & savoir de RÉFRIGÉRATION pour des chaînes de valeur agricoles | E58: SOLAR COOL Decision & Knowledge TOOL for Agricultural Value Chains | F58: OUTIL SOLAR de décision & savoir de RÉFRIGÉRATION pour des chaînes de valeur agricoles | G58: SOLAR COOL Decision & Knowledge TOOL für landwirtschaftliche Wertschöpfungsketten
C59: 0
C60: Introduction | E60: Introduction | F60: Introduction | G60: Einführung
C61: L'outil SOLAR COOL Decision & Knowledge Tool for Agricultural Value Chains est conçu pour les parties prenantes et les décideurs travaillant avec ou dans le domaine des solutions de refroidissement solaire. Cet outil donne des conseils sur les options des différentes chaînes de valeur, aide à recueillir toutes les informations nécessaires pour approcher les fournisseurs, comprend une base de données croissante de fournisseurs et présente les projets de recherche prometteurs en cours. Cet outil est un document vivant qui s'étoffera au fil du temps. | E61: The SOLAR COOL Decision & Knowledge Tool for Agricultural Value Chains is designed for Stakeholder and Decision Makers working with or in the field of Solar Powered Cooling Solutions. This tool advises on the options in different value chains, helps collecting all required information to approach suppliers, comprises a growing database of suppliers and shows ongoing promising research projects. This tool is a living document that will expand over time. | F61: L'outil SOLAR COOL Decision & Knowledge Tool for Agricultural Value Chains est conçu pour les parties prenantes et les décideurs travaillant avec ou dans le domaine des solutions de refroidissement solaire. Cet outil donne des conseils sur les options des différentes chaînes de valeur, aide à recueillir toutes les informations nécessaires pour approcher les fournisseurs, comprend une base de données croissante de fournisseurs et présente les projets de recherche prometteurs en cours. Cet outil est un document vivant qui s'étoffera au fil du temps. | G61: Das SOLAR COOL Entscheidungs- und Wissenstool für landwirtschaftliche Wertschöpfungsketten wurde für Interessenvertreter und Entscheidungsträger entwickelt, die mit oder im Bereich solarbetriebener Kühlungslösungen arbeiten. Dieses Tool berät über die Optionen in verschiedenen Wertschöpfungsketten, hilft bei der Sammlung aller erforderlichen Informationen für die Kontaktaufnahme mit Lieferanten, umfasst eine wachsende Datenbank von Lieferanten und zeigt laufende vielversprechende Forschungsprojekte. Dieses Tool ist ein lebendes Dokument, das mit der Zeit erweitert wird.
C62: 0
C63: Conseils et Astuces | E63: Tips & Tricks | F63: Conseils et Astuces | G63: Tipps und Tricks
C64: ● Assurez-vous que les macros sont toujours activées pour le bon fonctionnement de cet outil | E64: ● Make sure that macro is always enabled for the proper functioning of this tool | F64: ● Assurez-vous que les macros sont toujours activées pour le bon fonctionnement de cet outil | G64: ● Stellen Sie sicher, dass Makros immer aktiviert sind, damit dieses Tool richtig funktioniert.
C65: ● Modifier uniquement les valeurs dans les cellules vertes | E65: ● Only modify values within green cells | F65: ● Modifier uniquement les valeurs dans les cellules vertes | G65: ● Nur Werte innerhalb der grünen Zellen ändern
C66: ● Cet outil contient des listes déroulantes et des macros pour simplifier la saisie des données et la présentation des résultats | E66: ● This tool comprises drop down lists and macros to simplify data entry and results review | F66: ● Cet outil contient des listes déroulantes et des macros pour simplifier la saisie des données et la présentation des résultats | G66: ● Dieses Tool umfasst Dropdown-Listen und Makros, um die Dateneingabe und die Überprüfung der Ergebnisse zu vereinfachen
C67: ● Pour que l'option multilingue fonctionne correctement, ne supprimez PAS les feuilles | E67: ● For the multilanguage option to work properly, do NOT delete sheets | F67: ● Pour que l'option multilingue fonctionne correctement, ne supprimez PAS les feuilles | G67: ● Damit die mehrsprachige Option richtig funktioniert, dürfen Sie KEINE Blätter löschen
C68: ● Assurez-vous que ce fichier est toujours enregistré sous ".xlsm" | E68: ● Make sure that this file is always saved as ".xlsm" | F68: ● Assurez-vous que ce fichier est toujours enregistré sous ".xlsm" | G68: ● Stellen Sie sicher, dass diese Datei immer als ".xlsm" gespeichert wird
C69: ● Les cellules non entrantes sont protégées pour éviter toute modification involontaire | E69: ● Non-entry cells are protected to avoid unintended modification | F69: ● Les cellules non entrantes sont protégées pour éviter toute modification involontaire | G69: ● Nicht-Eingabezellen sind geschützt, um unbeabsichtigte Änderungen zu vermeiden
C70: ● Cet outil comprend des liens vers d'autres feuilles de travail et des liens vers des sites web externes. | E70: ● This tool comprises links to other worksheets and links to external websites | F70: ● Cet outil comprend des liens vers d'autres feuilles de travail et des liens vers des sites web externes. | G70: ● Dieses Tool enthält Links zu anderen Arbeitsblättern und Links zu externen Websites
C71: Cet outil est composé des feuilles suivantes: | E71: This tool comprises the following sheets: | F71: Cet outil est composé des feuilles suivantes: | G71: Dieses Tool umfasst die folgenden Blätter:
C72: 0
C73: 0
C74: 0
C75: 0
C76: 0
C77: 0
C78: En savoir plus | E78: About | F78: En savoir plus | G78: Über
C79: Publié en: | E79: Published in: | F79: Publié en: | G79: Veröffentlicht in:
C80: Responsables: | E80: Resposible: | F80: Responsables: | G80: Resposible:
C81: Contact: | E81: Contact: | F81: Contact: | G81: Kontakt:
C82: Lien de téléchargement: | E82: Download link: | F82: Lien de téléchargement: | G82: Link zum Herunterladen:
C83: À propos de WE4F: | E83: About WE4F: | F83: À propos de WE4F: | G83: Über WE4F:
C84: Version: | E84: Version: | F84: Version: | G84: Version:
C85: Dernière mise à jour: | E85: Last update: | F85: Dernière mise à jour: | G85: Letzte Aktualisierung:
C86: Projet de la GIZ « Énergie durable pour l’alimentation – Propulser l’agriculture » (Sustainable Energy for Food - Powering Agriculture) | E86: GIZ project Sustainable Energy for Food - Powering Agriculture | F86: Projet de la GIZ « Énergie durable pour l’alimentation – Propulser l’agriculture » (Sustainable Energy for Food - Powering Agriculture) | G86: GIZ-Projekt Nachhaltige Energie für Ernährung - Strom für die Landwirtschaft
C87: Propulser l’agriculture : un grand défi énergétique pour le développement. Disponible à l’adresse : | E87: Powering Agriculture: An Energy Grand Challenge for Development. Available at: | F87: Propulser l’agriculture : un grand défi énergétique pour le développement. Disponible à l’adresse : | G87: Energie für die Landwirtschaft: Eine große Energieherausforderung für die Entwicklung. Verfügbar unter:
C88: 2.0 (Juillet 2020) | E88: 2.0 (July 2020) | F88: 2.0 (Juillet 2020) | G88: 2.0 (Juli 2020)
C89: 0
C90: WE4F est une initiative internationale conjointe du ministère fédéral allemand de la coopération économique et du développement (BMZ), de l'Union européenne (UE), du ministère des affaires étrangères du gouvernement des Pays-Bas, l'Agence norvégienne de coopération au développement (Norad), de la Suède par l'intermédiaire de l'Agence suédoise de coopération internationale au développement (ASDI) et de l'Agence américaine pour le développement international (USAID). Annoncé lors de la Semaine mondiale de l'eau 2018 et lancé lors de l'événement de signature du Social Capital Markets 2019 à San Francisco, Californie, WE4F a pour objectif de : Augmenter la production alimentaire tout au long de la chaîne de valeur grâce à une utilisation plus durable et plus efficace de l'eau et/ou de l'énergie. Augmenter les revenus des femmes et des hommes à la base de la pyramide, dans les zones rurales et urbaines. Mettre en place des solutions innovantes à l'échelle durable pour relever les défis du réseau WE4F. Promouvoir la résilience du climat et de l'environnement ainsi que la biodiversité grâce à une gestion durable et globale des ressources naturelles et des écosystèmes. Les informations fournies dans ce document sont basées sur la littérature actuellement disponible. Bien que le plus grand soin ait été apporté à la réalisation de ce document, le WE4F ou ses partenaires financiers ne peuvent être tenus responsables de l'exactitude ou de la justesse des informations fournies, ni des conséquences de leur utilisation ou de leur mauvaise utilisation. | E90: WE4F is a joint international initiative of the German Federal Ministry for Economic Cooperation and Development (BMZ), the European Union (EU), the Ministry of Foreign Affairs of the Government of the Netherlands, the Norwegian Agency for Development Cooperation (Norad), Sweden through the Swedish International Development Cooperation Agency (Sida), and the U.S. Agency for International Development (USAID). Announced at World Water Week 2018 and launched at Social Capital Markets 2019 signature event in San Francisco, California, WE4F aims to: Increase food production along the value chain through a more sustainable and efficient usage of water and/or energy. Increase income for base of the pyramid women and men in both rural and urban areas. Sustainably scale innovators’ solutions to meet the challenges in the WE4F nexus. Promote climate and environmental resilience and biodiversity through the sustainable, holistic management of natural resources and ecosystems. The information provided in this document is based on currently available literature. Although every possible care has been taken in the production of this document, WE4F or its funding partners cannot accept any responsibility for the accuracy or correctness of the information provided nor for the consequences of its use or misuse. | F90: WE4F est une initiative internationale conjointe du ministère fédéral allemand de la coopération économique et du développement (BMZ), de l'Union européenne (UE), du ministère des affaires étrangères du gouvernement des Pays-Bas, l'Agence norvégienne de coopération au développement (Norad), de la Suède par l'intermédiaire de l'Agence suédoise de coopération internationale au développement (ASDI) et de l'Agence américaine pour le développement international (USAID). Annoncé lors de la Semaine mondiale de l'eau 2018 et lancé lors de l'événement de signature du Social Capital Markets 2019 à San Francisco, Californie, WE4F a pour objectif de : Augmenter la production alimentaire tout au long de la chaîne de valeur grâce à une utilisation plus durable et plus efficace de l'eau et/ou de l'énergie. Augmenter les revenus des femmes et des hommes à la base de la pyramide, dans les zones rurales et urbaines. Mettre en place des solutions innovantes à l'échelle durable pour relever les défis du réseau WE4F. Promouvoir la résilience du climat et de l'environnement ainsi que la biodiversité grâce à une gestion durable et globale des ressources naturelles et des écosystèmes. Les informations fournies dans ce document sont basées sur la littérature actuellement disponible. Bien que le plus grand soin ait été apporté à la réalisation de ce document, le WE4F ou ses partenaires financiers ne peuvent être tenus responsables de l'exactitude ou de la justesse des informations fournies, ni des conséquences de leur utilisation ou de leur mauvaise utilisation. | G90: "WE4F" ist eine gemeinsame internationale Initiative des Bundesministeriums für wirtschaftliche Zusammenarbeit und Entwicklung (BMZ), der Europäischen Union (EU), des Außenministeriums der niederländischen Regierung,die Norwegische Agentur für Entwicklungszusammenarbeit (Norad), Schwedens durch die Swedish International Development Cooperation Agency (Sida) und der U.S. Agency for International Development (USAID). WE4F wurde auf der Weltwasserwoche 2018 angekündigt und auf der Veranstaltung Social Capital Markets 2019 in San Francisco, Kalifornien, vorgestellt: Steigerung der Nahrungsmittelproduktion entlang der Wertschöpfungskette durch eine nachhaltigere und effizientere Nutzung von Wasser und/oder Energie. Erhöhung des Einkommens für Frauen und Männer an der Basis der Pyramide in ländlichen und städtischen Gebieten. Nachhaltige Skalierung innovativer Lösungen zur Bewältigung der Herausforderungen im WE4F-Nexus. Förderung der Widerstandsfähigkeit von Klima und Umwelt sowie der biologischen Vielfalt durch eine nachhaltige, ganzheitliche Bewirtschaftung der natürlichen Ressourcen und Ökosysteme. " Die in diesem Dokument enthaltenen Informationen beruhen auf der derzeit verfügbaren Literatur. Obwohl bei der Erstellung dieses Dokuments mit größtmöglicher Sorgfalt vorgegangen wurde, können der WE4F oder seine Finanzierungspartner keine Verantwortung für die Genauigkeit oder Richtigkeit der bereitgestellten Informationen sowie für die Folgen ihrer Verwendung oder ihres Missbrauchs übernehmen.
C91: 0
C92: 0
C93: =HLOOKUP($C$6,$E$6:$I$736,ROW()-ROW($E$5),FALSE) -> 0
C94: 0
C95: 0
C96: 0
B97: =C9 -> Start | C97: Chaîne de valeur | E97: Value Chain | F97: Chaîne de valeur | G97: Wertschöpfungskette
C98: Configuration du système | E98: System setup | F98: Configuration du système | G98: Systemaufbau
C99: Objectif de refroidissement | E99: Cooling purpose | F99: Objectif de refroidissement | G99: Zweck der Kühlung
C100: Taille du système | E100: System size | F100: Taille du système | G100: Größe des Systems
C101: Liens rapides | E101: Quick Links | F101: Liens rapides | G101: Schnelle Links
C102: Les options de refroidissement suivantes sont recommandées pour votre sélection : | E102: The following cooling options are recommended for your selection: | F102: Les options de refroidissement suivantes sont recommandées pour votre sélection : | G102: Die folgenden Kühloptionen werden für Ihre Auswahl empfohlen:
C103: Energypedia - Refroidissement solaire | E103: Energypedia - Solar Cooling | F103: Energypedia - Refroidissement solaire | G103: Energypedia - Solare Kühlung
C104: Principes de base du refroidissement | E104: Cooling Basics | F104: Principes de base du refroidissement | G104: Grundlagen der Kühlung
C105: Base de données des entreprises | E105: Database Companies | F105: Base de données des entreprises | G105: Datenbank Firmen
C106: Chambre froide | E106: Cold Room | F106: Chambre froide | G106: Kühlraum
C107: Récipients | E107: Container | F107: Récipients | G107: Behälter
C108: Machines à glace en écailles | E108: Ice Flake Machines | F108: Machines à glace en écailles | G108: Eisflocken-Maschinen
C109: Recherche en cours | E109: Ongoing research | F109: Recherche en cours | G109: Laufende Forschung
C110: Demande de fournisseurs | E110: Request for Suppliers | F110: Demande de fournisseurs | G110: Anfrage für Lieferanten
C111: Produits à refroidir | E111: Products to cool | F111: Produits à refroidir | G111: Zu kühlende Produkte
C112: Poisson | E112: Fish | F112: Poisson | G112: Fisch
C113: Viande | E113: Meat | F113: Viande | G113: Fleisch
C114: Produits laitiers | E114: Dairy | F114: Produits laitiers | G114: Molkerei
C115: Horticulture | E115: Horticulture | F115: Horticulture | G115: Gartenbau
C116: Réfrigérants | E116: Refrigerants | F116: Réfrigérants | G116: Kältemittel
C117: Plus d'info sur | E117: More about | F117: Plus d'info sur | G117: Mehr über
C118: 0
C119: 0
C120: 0
B121: =C31 -> Données | C121: Gamme de produits | E121: Product range | F121: Gamme de produits | G121: Produktpalette
C122: Type d'installation | E122: Installation type | F122: Type d'installation | G122: Einbauart
C123: Type de refroidissement | E123: Cooling type | F123: Type de refroidissement | G123: Art der Kühlung
C124: Taille de refroidissement | E124: Cooling size | F124: Taille de refroidissement | G124: Größe der Kühlung
C125: Options de refroidissement | E125: Options for cooling | F125: Options de refroidissement | G125: Optionen für die Kühlung
C126: --- | E126: --- | F126: --- | G126: ---
C127: Poisson | E127: Fish | F127: Poisson | G127: Fisch
C128: Viande | E128: Meat | F128: Viande | G128: Fleisch
C129: Produits laitiers | E129: Dairy | F129: Produits laitiers | G129: Molkerei
C130: Horticulture | E130: Horticulture | F130: Horticulture | G130: Gartenbau
C131: Sites variables | E131: Variable sites | F131: Sites variables | G131: Variable Standorte
C132: Sites fixes | E132: Fixed sites | F132: Sites fixes | G132: Feste Standorte
C133: Pendant le transport | E133: During transport | F133: Pendant le transport | G133: Während des Transports
C134: Pré-refroidissement | E134: Pre-cooling | F134: Pré-refroidissement | G134: Vorkühlung
C135: Refroidissement | E135: Cooling | F135: Refroidissement | G135: Kühlen
C136: Congélation | E136: Freezing | F136: Congélation | G136: Gefrieren
C137: Domestique | E137: Domestic | F137: Domestique | G137: Häuslich
C138: Industriel | E138: Industrial | F138: Industriel | G138: Industriell
C139: Conteneur | E139: Container | F139: Conteneur | G139: Behälter
C140: Glace | E140: Ice | F140: Glace | G140: Eis
C141: Bain | E141: Waterbath | F141: Bain | G141: Wasserbad
C142: Réfrigérateur | E142: Refrigerator | F142: Réfrigérateur | G142: Kühlraum
C143: Chambre froide | E143: Coldroom | F143: Chambre froide | G143: Kühlraum
C144: Congélateur | E144: Freezer | F144: Congélateur | G144: Gefrierschrank
C145: Produit sélectionné | E145: Selected product | F145: Produit sélectionné | G145: Ausgewähltes Produkt
C146: Installation sélectionnée | E146: Selected Installation | F146: Installation sélectionnée | G146: Ausgewählte Installation
C147: Refroidissement sélectionné | E147: Selected Cooling | F147: Refroidissement sélectionné | G147: Ausgewählte Kühlung
C148: Taille sélectionné | E148: Selected Size | F148: Taille sélectionné | G148: Ausgewählte Größe
C149: Description de la solution | E149: Description Solution | F149: Description de la solution | G149: Beschreibung Lösung
C150: Les solutions conteneurisées peuvent être facilement transportées et offrent une large gamme de températures supérieures et inférieures à 0 °C. | E150: Containerized solutions can easily be transported and provide a wide range of temperatures above and below 0 °C. | F150: Les solutions conteneurisées peuvent être facilement transportées et offrent une large gamme de températures supérieures et inférieures à 0 °C. | G150: Containerlösungen können leicht transportiert werden und bieten einen breiten Temperaturbereich über und unter 0 °C.
C151: La glace peut être produite et utilisée de manière très polyvalente pour des applications de refroidissement. Elle peut être utilisée comme stockage d'énergie et est transportable. | E151: Ice can be produced and used very versatile for cooling applications. It can be used as energy storage and is transportable. | F151: La glace peut être produite et utilisée de manière très polyvalente pour des applications de refroidissement. Elle peut être utilisée comme stockage d'énergie et est transportable. | G151: Eis kann sehr vielseitig für Kühlanwendungen hergestellt und verwendet werden. Es kann als Energiespeicher verwendet werden und ist transportabel.
C152: L'eau froide peut être utilisée pour refroidir rapidement les produits en raison du transfert de chaleur élevé entre le produit et l'eau. | E152: Cold water can be used to cool down product rapidly due to high heat transfer between product and water | F152: L'eau froide peut être utilisée pour refroidir rapidement les produits en raison du transfert de chaleur élevé entre le produit et l'eau. | G152: Kaltes Wasser kann zur schnellen Abkühlung von Produkten verwendet werden, da eine hohe Wärmeübertragung zwischen Produkt und Wasser stattfindet.
C153: Les réfrigérateurs refroidissent les produits jusqu'à une certaine température supérieure à 0 °C. | E153: Refrigerators cool down products to a certain temperature range above 0 °C | F153: Les réfrigérateurs refroidissent les produits jusqu'à une certaine température supérieure à 0 °C. | G153: Kühlschränke kühlen Produkte auf einen bestimmten Temperaturbereich über 0 °C herunter.
C154: Les chambres froides sont plus grandes et peuvent fournir une large gamme de températures. | E154: Coldrooms are bigger in size and can provide a wide range of temperature | F154: Les chambres froides sont plus grandes et peuvent fournir une large gamme de températures. | G154: Kühlräume sind größer und können einen breiten Temperaturbereich abdecken.
C155: Les congélateurs refroidissent les produits jusqu'à une certaine plage de température inférieure à 0 °C. | E155: Freezers cool down products to a certain temperature range below 0 °C | F155: Les congélateurs refroidissent les produits jusqu'à une certaine plage de température inférieure à 0 °C. | G155: Gefrierschränke kühlen Produkte auf einen bestimmten Temperaturbereich unter 0 °C herunter.
C156: Description du produit | E156: Description Product | F156: Description du produit | G156: Beschreibung Produkt
C157: =HLOOKUP($C$6,$E$6:$I$736,ROW()-ROW($E$5),FALSE) -> Veuillez sélectionner le type de produit que vous souhaitez refroidir | E157: Please select the type of product you want to cool | F157: Veuillez sélectionner le type de produit que vous souhaitez refroidir | G157: Bitte wählen Sie die Art des Produkts, das Sie kühlen möchten
C158: Poissons, crustacés et autres fruits de mer | E158: Fish, crustaceans and other seafood | F158: Poissons, crustacés et autres fruits de mer | G158: Fisch, Krustentiere und andere Meeresfrüchte
C159: Produits carnés de différents types | E159: Meat products of different type | F159: Produits carnés de différents types | G159: Fleischerzeugnisse verschiedener Art
C160: Produits laitiers tels que le lait, le yaourt, le fromage | E160: Dairy products such as milk, yoghurt, cheese | F160: Produits laitiers tels que le lait, le yaourt, le fromage | G160: Molkereiprodukte wie Milch, Joghurt, Käse
C161: Fruits et légumes | E161: Fruits and vegetables | F161: Fruits et légumes | G161: Obst und Gemüse
C162: Description de l'installation | E162: Description Installation | F162: Description de l'installation | G162: Beschreibung Installation
C163: Veuillez sélectionner la configuration du système | E163: Please select the system setup | F163: Veuillez sélectionner la configuration du système | G163: Bitte wählen Sie den Systemaufbau
C164: La solution est utilisée à différents endroits et peut être transportée de manière flexible. | E164: The solution is used at different locations and can flexibly by transported | F164: La solution est utilisée à différents endroits et peut être transportée de manière flexible. | G164: Die Lösung wird an verschiedenen Standorten eingesetzt und kann flexibel transportiert werden
C165: La solution est installée à un endroit spécifique. | E165: The solution is set up at a specific solution. | F165: La solution est installée à un endroit spécifique. | G165: Die Lösung ist auf eine bestimmte Lösung eingestellt.
C166: La solution refroidit le produit pendant le transport. | E166: The solutions cools the the product during the transport. | F166: La solution refroidit le produit pendant le transport. | G166: Die Lösung kühlt das Produkt während des Transports.
C167: Description Type de refroidissement | E167: Description Cooling Type | F167: Description Type de refroidissement | G167: Beschreibung Kühlungsart
C168: Veuillez sélectionner l'objectif principal du refroidissement | E168: Please select the main purpose of cooling | F168: Veuillez sélectionner l'objectif principal du refroidissement | G168: Bitte wählen Sie den Hauptzweck der Kühlung
C169: Le produit est rapidement refroidi à la température cible avant de passer à la solution de refroidissement proprement dite. | E169: The product is quickly cooled down to the target temperature before passing to the actual cooling solution. | F169: Le produit est rapidement refroidi à la température cible avant de passer à la solution de refroidissement proprement dite. | G169: Das Produkt wird schnell auf die Zieltemperatur heruntergekühlt, bevor es in die eigentliche Kühllösung gelangt.
C170: Le produit est refroidi à une température supérieure à 0 °C. | E170: The product is cooled at a temperature higher than 0 °C | F170: Le produit est refroidi à une température supérieure à 0 °C. | G170: Das Produkt wird auf eine Temperatur von über 0 °C gekühlt.
C171: Le produit est refroidi à une température inférieure à 0 °C. | E171: The product is cooled at a temperature below 0 °C | F171: Le produit est refroidi à une température inférieure à 0 °C. | G171: Das Produkt wird auf eine Temperatur unter 0 °C gekühlt.
C172: Taille de la description | E172: Description Size | F172: Taille de la description | G172: Beschreibung Größe
C173: Veuillez sélectionner la taille du système | E173: Please select the system size | F173: Veuillez sélectionner la taille du système | G173: Bitte wählen Sie die Systemgröße
C174: La solution est utilisée pour les ménages ou les petites applications | E174: Solution is used for household level or small applications | F174: La solution est utilisée pour les ménages ou les petites applications | G174: Lösung für den Haushalt oder kleine Anwendungen
C175: La solution est utilisée au niveau industriel ou pour des opérations plus importantes | E175: Solution on industrial level or larger operations | F175: La solution est utilisée au niveau industriel ou pour des opérations plus importantes | G175: Lösung auf industrieller Ebene oder für größere Betriebe
C176: 0
C177: 0
C178: 0
C179: 0
C180: 0
C181: 0
B182: =C22 -> Bases | C182: Accueil | E182: Home | F182: Accueil | G182: Startseite
C183: Principes de base du refroidissement (solaire): | E183: Basics of (Solar) Cooling: | F183: Principes de base du refroidissement (solaire): | G183: Grundlagen der (solaren) Kühlung:
C184: Vue d'ensemble | E184: Overview | F184: Vue d'ensemble | G184: Überblick
C185: 1. Le besoin de refroidissement | E185: 1. The need for cooling | F185: 1. Le besoin de refroidissement | G185: 1. Der Bedarf an Kühlung
C186: 2. Le principe du refroidissement | E186: 2. The cooling principle | F186: 2. Le principe du refroidissement | G186: 2. Das Kühlprinzip
C187: 3. Les charges frigorifiques | E187: 3. About cooling loads | F187: 3. Les charges frigorifiques | G187: 3. Über Kühllasten
C188: 4. Refroidissement solaire | E188: 4. Solar cooling | F188: 4. Refroidissement solaire | G188: 4. Solare Kühlung
C189: 1. Le besoin du refroidissement | E189: 1. The need for cooling | F189: 1. Le besoin du refroidissement | G189: 1. Die Notwendigkeit der Kühlung
C190: Le refroidissement est une étape essentielle du processus de conservation des produits horticoles, du poisson, de la viande et des produits laitiers. Elle est nécessaire pour prévenir l'altération et prolonger la durée de conservation de ces produits, les rendant ainsi sûrs et attrayants pour les consommateurs. | E190: Cooling is an essential step in the preservation process of horticultural produce, fish, meat, and dairy products. It is necessary to prevent spoilage and extend the shelf life of these products, making them safe and appealing to consumers. | F190: Le refroidissement est une étape essentielle du processus de conservation des produits horticoles, du poisson, de la viande et des produits laitiers. Elle est nécessaire pour prévenir l'altération et prolonger la durée de conservation de ces produits, les rendant ainsi sûrs et attrayants pour les consommateurs. | G190: Die Kühlung ist ein wesentlicher Schritt im Konservierungsprozess von Gartenbauerzeugnissen, Fisch, Fleisch und Milchprodukten. Sie ist notwendig, um den Verderb zu verhindern und die Haltbarkeit dieser Produkte zu verlängern, damit sie sicher und für den Verbraucher attraktiv sind.
C191: Les produits horticoles tels que les fruits et les légumes sont périssables et peuvent s'abîmer rapidement s'ils ne sont pas conservés à la bonne température. Les micro-organismes tels que les bactéries, les levures et les moisissures se développent à des températures élevées et peuvent provoquer une détérioration des produits et les rendre impropres à la consommation. En conservant les produits à une température plus basse, la croissance de ces micro-organismes est ralentie ou complètement stoppée. Les enzymes naturellement présentes dans les fruits et légumes peuvent les faire mûrir et se détériorer rapidement. Le refroidissement ralentit l'activité de ces enzymes, empêchant ainsi le produit de trop mûrir et de devenir invendable. La température affecte également la texture et l'apparence des produits. Par exemple, les fruits et légumes stockés à une température trop élevée peuvent devenir mous et perdre leur couleur, ce qui les rend peu attrayants pour les consommateurs. Le refroidissement permet de préserver la texture, l'aspect et la valeur nutritionnelle des produits. Les produits laitiers tels que le lait, le fromage et le yaourt sont également périssables et peuvent s'abîmer rapidement s'ils ne sont pas conservés à la bonne température. La réfrigération ralentit la croissance des bactéries et prolonge la durée de conservation de ces produits. Il permet également de préserver la texture, le goût et la valeur nutritionnelle des produits laitiers. La viande et le poisson sont également périssables et peuvent s'abîmer rapidement s'ils ne sont pas conservés à la bonne température. La réfrigération ralentit la croissance des bactéries et préserve la fraîcheur de la viande et du poisson. Cela empêche également la croissance de micro-organismes nocifs qui peuvent causer des intoxications alimentaires. Outre le ralentissement de la croissance des micro-organismes, le refroidissement permet également de préserver la couleur, la texture et le goût de la viande et du poisson. Par exemple, si la viande n'est pas refroidie correctement, elle peut se décolorer et acquérir une texture peu attrayante. Le poisson qui n'est pas refroidi correctement peut développer un mauvais goût et devenir peu attrayant pour les consommateurs. | E191: Horticultural produce such as fruits and vegetables are perishable and can spoil quickly if not stored at the proper temperature. Microorganisms such as bacteria, yeast, and mold thrive in warm temperatures and can cause spoilage and make the produce unsafe to consume. By keeping the produce at a lower temperature, the growth of these microorganisms is slowed down or stopped altogether. Enzymes that are naturally present in fruits and vegetables can cause them to ripen and deteriorate quickly. Cooling slows down the activity of these enzymes, preventing the produce from over-ripening and becoming unsellable. Temperature also affects the texture and appearance of produce. For example, fruits and vegetables that are stored at too high a temperature can become soft and lose their color, making them unappealing to consumers. Cooling helps to preserve the texture, appearance and nutritional value of the produce. Dairy products such as milk, cheese, and yogurt are also perishable and can spoil quickly if not stored at the proper temperature. Cooling slows down the growth of bacteria and prolongs the shelf life of these products. It also helps to preserve the texture, taste and nutritional value of the dairy products. Meat and fish are also perishable and can spoil quickly if not stored at the proper temperature. Cooling slows down the growth of bacteria and preserves the freshness of the meat and fish. This also prevents the growth of harmful microorganisms that can cause food poisoning. In addition to slowing down the growth of microorganisms, cooling also helps to preserve the color, texture, and taste of meat and fish. For example, if meat is not cooled properly, it can become discolored and develop an unappealing texture. Fish that is not cooled properly can develop an off-flavor and become unappealing to consumers. | F191: Les produits horticoles tels que les fruits et les légumes sont périssables et peuvent s'abîmer rapidement s'ils ne sont pas conservés à la bonne température. Les micro-organismes tels que les bactéries, les levures et les moisissures se développent à des températures élevées et peuvent provoquer une détérioration des produits et les rendre impropres à la consommation. En conservant les produits à une température plus basse, la croissance de ces micro-organismes est ralentie ou complètement stoppée. Les enzymes naturellement présentes dans les fruits et légumes peuvent les faire mûrir et se détériorer rapidement. Le refroidissement ralentit l'activité de ces enzymes, empêchant ainsi le produit de trop mûrir et de devenir invendable. La température affecte également la texture et l'apparence des produits. Par exemple, les fruits et légumes stockés à une température trop élevée peuvent devenir mous et perdre leur couleur, ce qui les rend peu attrayants pour les consommateurs. Le refroidissement permet de préserver la texture, l'aspect et la valeur nutritionnelle des produits. Les produits laitiers tels que le lait, le fromage et le yaourt sont également périssables et peuvent s'abîmer rapidement s'ils ne sont pas conservés à la bonne température. La réfrigération ralentit la croissance des bactéries et prolonge la durée de conservation de ces produits. Il permet également de préserver la texture, le goût et la valeur nutritionnelle des produits laitiers. La viande et le poisson sont également périssables et peuvent s'abîmer rapidement s'ils ne sont pas conservés à la bonne température. La réfrigération ralentit la croissance des bactéries et préserve la fraîcheur de la viande et du poisson. Cela empêche également la croissance de micro-organismes nocifs qui peuvent causer des intoxications alimentaires. Outre le ralentissement de la croissance des micro-organismes, le refroidissement permet également de préserver la couleur, la texture et le goût de la viande et du poisson. Par exemple, si la viande n'est pas refroidie correctement, elle peut se décolorer et acquérir une texture peu attrayante. Le poisson qui n'est pas refroidi correctement peut développer un mauvais goût et devenir peu attrayant pour les consommateurs. | G191: Gartenbauprodukte wie Obst und Gemüse sind leicht verderblich und können schnell verderben, wenn sie nicht bei der richtigen Temperatur gelagert werden. Mikroorganismen wie Bakterien, Hefe und Schimmelpilze gedeihen bei warmen Temperaturen und können zum Verderb führen und den Verzehr der Produkte gefährden. Durch die Aufbewahrung bei einer niedrigeren Temperatur wird das Wachstum dieser Mikroorganismen verlangsamt oder ganz unterbunden. Enzyme, die von Natur aus in Obst und Gemüse vorhanden sind, können dazu führen, dass die Produkte schnell reifen und verderben. Die Kühlung verlangsamt die Aktivität dieser Enzyme und verhindert so, dass die Produkte übermäßig reifen und unverkäuflich werden. Die Temperatur wirkt sich auch auf die Beschaffenheit und das Aussehen der Produkte aus. So kann Obst und Gemüse, das bei zu hohen Temperaturen gelagert wird, weich werden und seine Farbe verlieren, wodurch es für die Verbraucher unattraktiv wird. Die Kühlung trägt dazu bei, die Beschaffenheit, das Aussehen und den Nährwert der Produkte zu erhalten. Molkereiprodukte wie Milch, Käse und Joghurt sind ebenfalls leicht verderblich und können schnell verderben, wenn sie nicht bei der richtigen Temperatur gelagert werden. Die Kühlung verlangsamt das Wachstum von Bakterien und verlängert die Haltbarkeit dieser Produkte. Außerdem bleiben so die Konsistenz, der Geschmack und der Nährwert der Milchprodukte erhalten. Fleisch und Fisch sind ebenfalls leicht verderblich und können schnell verderben, wenn sie nicht bei der richtigen Temperatur gelagert werden. Die Kühlung verlangsamt das Wachstum von Bakterien und bewahrt die Frische von Fleisch und Fisch. Dadurch wird auch das Wachstum von schädlichen Mikroorganismen verhindert, die Lebensmittelvergiftungen verursachen können. Neben der Verlangsamung des Wachstums von Mikroorganismen trägt die Kühlung auch dazu bei, die Farbe, die Textur und den Geschmack von Fleisch und Fisch zu erhalten. Wenn beispielsweise Fleisch nicht richtig gekühlt wird, kann es sich verfärben und eine unansehnliche Konsistenz entwickeln. Fisch, der nicht richtig gekühlt wird, kann einen unangenehmen Geschmack entwickeln und für den Verbraucher unattraktiv werden.
C192: 2. Comprendre le principe de refroidissement | E192: 2. Understanding Cooling principle | F192: 2. Comprendre le principe de refroidissement | G192: 2. Verständnis des Kühlungsprinzips
C193: La plupart des systèmes de refroidissement, qu'il s'agisse de chambres froides, de réfrigérateurs ménagers, de congélateurs, de machines à glaçons ou de climatiseurs, fonctionnent selon le même principe, mais dans des gammes de puissance et de température différentes. Un réfrigérant circule dans le cycle de refroidissement, éliminant la chaleur indésirable d'un endroit et l'échangeant avec un autre endroit. Les principaux composants du cycle de refroidissement sont les suivants : Compresseur Le compresseur comprime le réfrigérant. Le compresseur est relié à un moteur qui est connecté à la source d'énergie. Dans le cas du refroidissement solaire, les panneaux photovoltaïques fournissent du courant continu qui peut directement entraîner le compresseur à vitesse variable (en fonction de l'ensoleillement). Plus il y a de soleil, plus la vitesse est élevée, plus la puissance de refroidissement est importante. Il est également possible d'utiliser un onduleur pour faire fonctionner des moteurs à courant alternatif. Condenseur Dans le condenseur, la chaleur du réfrigérant est échangée avec la température ambiante. Le condenseur est situé à l'extérieur du lieu de refroidissement. Détendeur Dans le détendeur, le réfrigérant se dilate. Évaporateur Le réfrigérant refroidit l'évaporateur, ce qui permet d'éliminer la chaleur à proximité des plaques de l'évaporateur. | E193: Most cooling systems, be it in cold rooms, household refrigerators, freezers, ice-makers or air conditioning work on the same principle, but in different power- and temperature ranges. A refrigerant is circulating within the cooling cycle, removing unwanted heat from one location and exchanging it within another location. The main components of the cooling cycle are as followed: Compressor The compressor compresses the refrigerant. The compressor is connected to a motor, that is connected to the power source. In the case of Solar Cooling, PV panels provide DC-power that can directly drive in variable speed (depending on the solar irradiation) the compressor. The more sun, the higher the speed, the higher the cooling power. Alternatively an inverter can be used to drive AC-motors. Condenser In the condenser, heat from the refrigerant is exchanged with the ambient temperature. The condenser is located outside of the cooling location. Expansion valve In the expansion unit, the refrigerant expands. Evaporator The refrigerant cools down the evaporator, leading to the removal of heat in proximity to the evaporator plates. | F193: La plupart des systèmes de refroidissement, qu'il s'agisse de chambres froides, de réfrigérateurs ménagers, de congélateurs, de machines à glaçons ou de climatiseurs, fonctionnent selon le même principe, mais dans des gammes de puissance et de température différentes. Un réfrigérant circule dans le cycle de refroidissement, éliminant la chaleur indésirable d'un endroit et l'échangeant avec un autre endroit. Les principaux composants du cycle de refroidissement sont les suivants : Compresseur Le compresseur comprime le réfrigérant. Le compresseur est relié à un moteur qui est connecté à la source d'énergie. Dans le cas du refroidissement solaire, les panneaux photovoltaïques fournissent du courant continu qui peut directement entraîner le compresseur à vitesse variable (en fonction de l'ensoleillement). Plus il y a de soleil, plus la vitesse est élevée, plus la puissance de refroidissement est importante. Il est également possible d'utiliser un onduleur pour faire fonctionner des moteurs à courant alternatif. Condenseur Dans le condenseur, la chaleur du réfrigérant est échangée avec la température ambiante. Le condenseur est situé à l'extérieur du lieu de refroidissement. Détendeur Dans le détendeur, le réfrigérant se dilate. Évaporateur Le réfrigérant refroidit l'évaporateur, ce qui permet d'éliminer la chaleur à proximité des plaques de l'évaporateur. | G193: Die meisten Kühlsysteme, ob in Kühlräumen, Haushaltskühlschränken, Gefriergeräten, Eismaschinen oder Klimaanlagen, arbeiten nach demselben Prinzip, allerdings in unterschiedlichen Leistungs- und Temperaturbereichen. Im Kühlkreislauf zirkuliert ein Kältemittel, das an einer Stelle unerwünschte Wärme abführt und an einer anderen Stelle austauscht. Die Hauptkomponenten des Kühlkreislaufs sind wie folgt: Kompressor Der Verdichter komprimiert das Kältemittel. Der Kompressor ist mit einem Motor verbunden, der an die Stromquelle angeschlossen ist. Im Falle der Solarkühlung liefern PV-Paneele Gleichstrom, der den Kompressor direkt mit variabler Geschwindigkeit (je nach Sonneneinstrahlung) antreiben kann. Je mehr Sonne, desto höher die Drehzahl, desto höher die Kühlleistung. Alternativ kann ein Wechselrichter verwendet werden, um AC-Motoren anzutreiben. Verflüssiger Im Verflüssiger wird die Wärme des Kältemittels mit der Umgebungstemperatur ausgetauscht. Der Verflüssiger befindet sich außerhalb des Kühlraumes. Expansionsventil In der Expansionseinheit dehnt sich das Kältemittel aus. Verdampfer Das Kältemittel kühlt den Verdampfer ab, was zu einem Wärmeentzug in der Nähe der Verdampferplatten führt.
C194: =HLOOKUP($C$6,$E$6:$I$736,ROW()-ROW($E$5),FALSE) -> Comment se présente le cycle ? | E194: How does the cycle look like? | F194: Comment se présente le cycle ? | G194: Wie sieht der Kreislauf aus?
C195: Un réfrigérant est un fluide qui peut facilement (avec la pression et la température adéquates) passer de l'état liquide à l'état de vapeur et être condensé de la vapeur à l'état liquide. Dans le cycle de refroidissement, ce processus se produit continuellement. Ce faisant, la chaleur indésirable est transférée d'un endroit à un autre. 1. Compression : Le réfrigérant entre dans le compresseur sous forme de vapeur saturée (basse température et basse pression). Dans le compresseur, le fluide frigorigène est comprimé, ce qui entraîne une pression et une température plus élevées, puisqu'il est à l'état de vapeur surchauffée. Ce processus est similaire à celui d'une pompe à vélo, où l'air est comprimé et poussé dans le pneu, ce qui chauffe la pompe. 2. Condensation : Le réfrigérant est transporté vers le condenseur où un échange de chaleur avec l'air ambiant a lieu et où le réfrigérant se refroidit (la température ambiante doit être inférieure à la température du réfrigérant). Lorsque la température du réfrigérant diminue, il se condense et passe de l'état de vapeur à l'état de liquide, tout en conservant une pression élevée. 3. Expansion : Le réfrigérant se déplace vers le détendeur où un site de haute et de basse pression est créé. Le réfrigérant se détend et réduit la pression et la température. Ce phénomène est similaire à la diffusion d'un déodorant en aérosol. La vapeur qui s'échappe est froide. 4. L'évaporation : Le réfrigérant arrive à l'évaporateur, qui peut se présenter sous la forme d'une plaque ou d'un serpentin. L'évaporateur se trouve à l'endroit qui doit être refroidi, la température ambiante étant supérieure à la température du réfrigérant. Le réfrigérant absorbe de la chaleur dans l'espace refroidi, ce qui entraîne l'ébullition du réfrigérant et son changement de phase en vapeur. Le réfrigérant quitte l'évaporateur sous forme de vapeur à basse température et à basse pression et retourne dans le compresseur, où le cercle se poursuit. | E195: A refrigerant is a fluid that can easily (with the right pressure & temperature) boil from a liquid to a vapour and be condensed from a a vapour back to a liquid. In the cooling cycle, this process occurs continiously. By doing so, unwanted heat is brought from one location to another. 1. Compression: The refrigerant enters the compressor as a saturated vapour (low temperature & low pressure). In the compressor, the refrigerant is compressed, leading to a higher pressure and temperature, being in a state of superheated vapour. This process is similar to a bike pump, where air is compressed and forced into the tire, heating up the pump. 2. Condensing: The refrigerant is transported to the condenser where a heat exchange with the ambient air takes place and the refrigerant cools down (this requires the ambient temperature to be lower than the temperature of the refrigerant). As the refrigerant decreases its temperature, it will condense from a vapour into a liquid, still having a high pressure. 3. Expansion: The refrigerant moves to the expansion valve where a high and a low pressure site are created. The refrigerant expands and reduces in pressure and temperature. This is similar to releasing a deodorant spray. The outcoming vapour feels cold. 4. Evaporation: The refrigerant gets to the evaporator, which can be in the form of a plate or a coil. The evaporator is in the location that should be cooled, with the ambient temperature being higher than the refrigerant temperature. The refrigerant takes up heat within the cooled space, which leads to a boiling of the refrigerant and its phase-change into a vapour. The refrigerants leaves the evaporator as a low temperature, low pressure vapour and gets back into the crompressor, where the circle continues. | F195: Un réfrigérant est un fluide qui peut facilement (avec la pression et la température adéquates) passer de l'état liquide à l'état de vapeur et être condensé de la vapeur à l'état liquide. Dans le cycle de refroidissement, ce processus se produit continuellement. Ce faisant, la chaleur indésirable est transférée d'un endroit à un autre. 1. Compression : Le réfrigérant entre dans le compresseur sous forme de vapeur saturée (basse température et basse pression). Dans le compresseur, le fluide frigorigène est comprimé, ce qui entraîne une pression et une température plus élevées, puisqu'il est à l'état de vapeur surchauffée. Ce processus est similaire à celui d'une pompe à vélo, où l'air est comprimé et poussé dans le pneu, ce qui chauffe la pompe. 2. Condensation : Le réfrigérant est transporté vers le condenseur où un échange de chaleur avec l'air ambiant a lieu et où le réfrigérant se refroidit (la température ambiante doit être inférieure à la température du réfrigérant). Lorsque la température du réfrigérant diminue, il se condense et passe de l'état de vapeur à l'état de liquide, tout en conservant une pression élevée. 3. Expansion : Le réfrigérant se déplace vers le détendeur où un site de haute et de basse pression est créé. Le réfrigérant se détend et réduit la pression et la température. Ce phénomène est similaire à la diffusion d'un déodorant en aérosol. La vapeur qui s'échappe est froide. 4. L'évaporation : Le réfrigérant arrive à l'évaporateur, qui peut se présenter sous la forme d'une plaque ou d'un serpentin. L'évaporateur se trouve à l'endroit qui doit être refroidi, la température ambiante étant supérieure à la température du réfrigérant. Le réfrigérant absorbe de la chaleur dans l'espace refroidi, ce qui entraîne l'ébullition du réfrigérant et son changement de phase en vapeur. Le réfrigérant quitte l'évaporateur sous forme de vapeur à basse température et à basse pression et retourne dans le compresseur, où le cercle se poursuit. | G195: Ein Kältemittel ist ein Fluid, das leicht (mit dem richtigen Druck und der richtigen Temperatur) von einer Flüssigkeit in einen Dampf übergehen und von einem Dampf wieder zu einer Flüssigkeit kondensieren kann. Im Kühlkreislauf läuft dieser Prozess kontinuierlich ab. Auf diese Weise wird unerwünschte Wärme von einem Ort zum anderen gebracht. 1. Verdichtung: Das Kältemittel gelangt als gesättigter Dampf (niedrige Temperatur und niedriger Druck) in den Verdichter. Im Verdichter wird das Kältemittel komprimiert, was zu einem höheren Druck und einer höheren Temperatur führt, da es sich in einem Zustand überhitzten Dampfes befindet. Dieser Prozess ist vergleichbar mit einer Fahrradpumpe, bei der die Luft komprimiert und in den Reifen gepresst wird, wodurch sich die Pumpe erhitzt. 2. Verflüssigung: Das Kältemittel wird zum Verflüssiger transportiert, wo ein Wärmeaustausch mit der Umgebungsluft stattfindet und das Kältemittel abkühlt (dazu muss die Umgebungstemperatur niedriger sein als die Temperatur des Kältemittels). Wenn die Temperatur des Kältemittels sinkt, kondensiert es von einem Dampf zu einer Flüssigkeit, die immer noch einen hohen Druck hat. 3. Expansion: Das Kältemittel bewegt sich zum Expansionsventil, wo ein Hoch- und ein Niederdruckbereich entstehen. Das Kältemittel dehnt sich aus und verringert seinen Druck und seine Temperatur. Dies ist vergleichbar mit der Freisetzung eines Deodorantsprays. Der austretende Dampf fühlt sich kalt an. 4. Verdampfung: Das Kältemittel gelangt zum Verdampfer, der in Form einer Platte oder einer Spirale ausgeführt sein kann. Der Verdampfer befindet sich an dem Ort, der gekühlt werden soll, wobei die Umgebungstemperatur höher ist als die Temperatur des Kältemittels. Das Kältemittel nimmt im gekühlten Raum Wärme auf, was zu einem Sieden des Kältemittels und seiner Phasenumwandlung in Dampf führt. Das Kältemittel verlässt den Verdampfer als Dampf mit niedriger Temperatur und niedrigem Druck und gelangt zurück in den Verdichter, wo sich der Kreislauf fortsetzt.
C196: 3. A propos des charges frigorifiques | E196: 3. About cooling loads | F196: 3. A propos des charges frigorifiques | G196: 3. Über Kühllasten
C197: Lorsqu'il s'agit de refroidissement solaire, la conception correcte du système est cruciale pour atteindre les caractéristiques de refroidissement requises et maintenir le produit dans ses conditions de stockage idéales. C'est ici que la "charge de refroidissement" entre en jeu. Peu importe qu'il s'agisse d'un congélateur, d'un réfrigérateur, d'une chambre froide ou d'une boîte isolée remplie de glace : une certaine énergie est nécessaire pour a.) refroidir le produit à la température souhaitée et b.) maintenir la température à ce niveau précis. La charge de refroidissement décrit maintenant toutes les sources de chaleur qui doivent être compensées par le système de refroidissement. | E197: When it comes to solar cooling, the proper design of the system is crucial to reach the required cooling characteristics and keep the product at it's ideal storage conditions. Here, the so called "cooling load" comes into play. It does not matter if it is a freezer, a refrigerator, a cold room or an insulated box filled with ice: a certain energy is required to a.) cool the product to the wanted temperature and b.) keep the temperature at this very level. The cooling load now describes all the heat sources, that have to be equaled out by the cooling system. | F197: Lorsqu'il s'agit de refroidissement solaire, la conception correcte du système est cruciale pour atteindre les caractéristiques de refroidissement requises et maintenir le produit dans ses conditions de stockage idéales. C'est ici que la "charge de refroidissement" entre en jeu. Peu importe qu'il s'agisse d'un congélateur, d'un réfrigérateur, d'une chambre froide ou d'une boîte isolée remplie de glace : une certaine énergie est nécessaire pour a.) refroidir le produit à la température souhaitée et b.) maintenir la température à ce niveau précis. La charge de refroidissement décrit maintenant toutes les sources de chaleur qui doivent être compensées par le système de refroidissement. | G197: Bei der solaren Kühlung ist die richtige Auslegung des Systems entscheidend, um die erforderlichen Kühleigenschaften zu erreichen und das Produkt unter idealen Lagerbedingungen zu halten. Hier kommt die so genannte "Kühllast" ins Spiel. Es spielt keine Rolle, ob es sich um eine Gefriertruhe, einen Kühlschrank, einen Kühlraum oder eine mit Eis gefüllte Isolierbox handelt: Es wird eine bestimmte Energie benötigt, um a.) das Produkt auf die gewünschte Temperatur zu kühlen und b.) die Temperatur auf diesem Niveau zu halten. Die Kühllast beschreibt nun alle Wärmequellen, die durch das Kühlsystem ausgeglichen werden müssen.
C198: Aperçu des sources de chaleur : | E198: Overview of the heat sources: | F198: Aperçu des sources de chaleur : | G198: Übersicht über die Wärmequellen:
C199: a.) Charge de transmission | E199: a.) Transmission load | F199: a.) Charge de transmission | G199: a.) Übertragungslast
C200: b.) Charge de produit | E200: b.) Product load | F200: b.) Charge de produit | G200: b.) Produktlast
C201: c.) Charge interne | E201: c.) Internal load | F201: c.) Charge interne | G201: c.) Interne Belastung
C202: d.) Charge de l'équipement | E202: d.) Equipment load | F202: d.) Charge de l'équipement | G202: d.) Ausrüstungslast
C203: e.) Charge d'infiltration | E203: e.) Infiltration load | F203: e.) Charge d'infiltration | G203: e.) Belastung durch Infiltration
C204: a.) Charge de transmission | E204: a.) Transmission load | F204: a.) Charge de transmission | G204: a.) Übertragungslast
C205: La chaleur circule toujours du chaud vers le froid. Dans le système de refroidissement, la température à l'intérieur de la chambre froide est évidemment beaucoup plus basse que la température ambiante. L'énergie thermique est donc transférée de l'extérieur vers la chambre froide à travers les murs, le toit et le sol. La charge de transmission dépend de la différence de température ainsi que du type et de l'épaisseur des matériaux d'isolation. | E205: Heat is always flowing from the hot to the cold. In the cooling system, the temperature within the cold chamber is obviously much lower than the ambient temperature. Thermal energy hence transfers through the walls, the roof and the floor from the outside into the cooling chamber. Transmission load depends on the temperature difference and the type and thickness of insulation materials. | F205: La chaleur circule toujours du chaud vers le froid. Dans le système de refroidissement, la température à l'intérieur de la chambre froide est évidemment beaucoup plus basse que la température ambiante. L'énergie thermique est donc transférée de l'extérieur vers la chambre froide à travers les murs, le toit et le sol. La charge de transmission dépend de la différence de température ainsi que du type et de l'épaisseur des matériaux d'isolation. | G205: Die Wärme fließt immer von der heißen zur kalten Seite. Im Kühlsystem ist die Temperatur in der Kältekammer natürlich viel niedriger als die Umgebungstemperatur. Daher wird Wärmeenergie von außen durch die Wände, das Dach und den Boden in die Kühlkammer übertragen. Die Übertragungslast hängt von der Temperaturdifferenz sowie von der Art und Dicke der Dämmstoffe ab.
... 531 more rows

Sheet Overview
C2: =Translation!C58 -> OUTIL SOLAR de décision & savoir de RÉFRIGÉRATION pour des chaînes de valeur agricoles
C7: =Translation!C57 -> Langue sélectionnée: | F7: Français
C10: =Translation!C60 -> Introduction
C12: =Translation!C61 -> L'outil SOLAR COOL Decision & Knowledge Tool for Agricultural Value Chains est conçu pour les parties prenantes et les décideurs travaillant avec ou dans le domaine des solutions de refroidissement solaire. Cet outil donne des conseils sur les options des différentes chaînes de valeur, aide à recueillir toutes les informations nécessaires pour approcher les fournisseurs, comprend une base de données croissante de fournisseurs et présente les projets de recherche prometteurs en cours. Cet outil est un document vivant qui s'étoffera au fil du temps.
C19: =Translation!C63 -> Conseils et Astuces
D21: =Translation!C64 -> ● Assurez-vous que les macros sont toujours activées pour le bon fonctionnement de cet outil
D22: =Translation!C65 -> ● Modifier uniquement les valeurs dans les cellules vertes
D23: =Translation!C66 -> ● Cet outil contient des listes déroulantes et des macros pour simplifier la saisie des données et la présentation des résultats
D24: =Translation!C70 -> ● Cet outil comprend des liens vers d'autres feuilles de travail et des liens vers des sites web externes.
D25: =Translation!C68 -> ● Assurez-vous que ce fichier est toujours enregistré sous ".xlsm"
D26: =Translation!C69 -> ● Les cellules non entrantes sont protégées pour éviter toute modification involontaire
D27: =Translation!C67 -> ● Pour que l'option multilingue fonctionne correctement, ne supprimez PAS les feuilles
C30: =Translation!C71 -> Cet outil est composé des feuilles suivantes:
D32: =Translation!C32 -> Nom de l'entreprise | G32: =Translation!C33 -> Description de l'outil
C34: 1. | D34: =Translation!C8 -> Aperçu | G34: =Translation!C34 -> Choix de la langue et informations générales sur cet outil
C35: 2. | D35: =Translation!C9 -> Start | G35: =Translation!C35 -> Recommandation d'un système de refroidissement adapté à vos besoins
C36: 3. | D36: =Translation!C22 -> Bases | G36: =Translation!C36 -> Comprendre les bases du refroidissement (solaire)
C37: 4. | D37: =Translation!C13 -> Réfrigérateur | G37: =Translation!C37 -> Aperçu des solutions pour les réfrigérateurs
C38: 5. | D38: =Translation!C14 -> Congélateur | G38: =Translation!C38 -> Aperçu des solutions de congélation
C39: 6. | D39: =Translation!C15 -> ChambreFroide | G39: =Translation!C39 -> Aperçu des solutions de chambres froides
C40: 7. | D40: =Translation!C10 -> Conteneur | G40: =Translation!C40 -> Aperçu des solutions pour les conteneurs
C41: 8. | D41: =Translation!C11 -> Glace | G41: =Translation!C41 -> Aperçu de la glace (écailles) - solutions
C42: 9. | D42: =Translation!C12 -> Bain | G42: =Translation!C42 -> Aperçu des solutions de bain-marie
C43: 10. | D43: =Translation!C17 -> Poisson | G43: =Translation!C43 -> Refroidissement du poisson - chaîne de valeur
C44: 11. | D44: =Translation!C18 -> Viande | G44: =Translation!C44 -> Refroidissement de la viande - chaîne de valeur
C45: 12. | D45: =Translation!C19 -> Produits_laitiers | G45: =Translation!C45 -> Refroidissement dans les produits laitiers - chaîne de valeur
C46: 13. | D46: =Translation!C20 -> Horticulture | G46: =Translation!C46 -> Refroidissement dans l'horticulture - chaîne de valeur
C47: 14. | D47: =Translation!C24 -> Sustanibilité | G47: =Translation!C47 -> Solutions de refroidissement durables
C48: 15. | D48: =Translation!C30 -> Réfrigérants | G48: =Translation!C48 -> Aperçu des réfrigérants utilisés pour le refroidissement
C49: 16. | D49: =Translation!C21 -> Poisson_glace | G49: =Translation!C49 -> Calcul de la glace nécessaire pour le refroidissement du poisson
C50: 17. | D50: =Translation!C25 -> Demande_fournisseur | G50: =Translation!C50 -> Demande d'échantillon pour contacter les fournisseurs
C51: 18. | D51: =Translation!C26 -> Fournisseur_conteneurs | G51: =Translation!C51 -> Base de données des fournisseurs de conteneurs
C52: 19. | D52: =Translation!C27 -> Fournisseur_chambres_froides | G52: =Translation!C52 -> Base de données des fournisseurs de chambres froides
C53: 20. | D53: =Translation!C28 -> Fournisseur_flocons_glace | G53: =Translation!C53 -> Base de données des fournisseurs de machines à glace écailles
C54: 21. | D54: =Translation!E29 -> Performance_ice_flakes | G54: =Translation!C54 -> Comparaison des performances des machines à écailles de glace
C63: =Translation!C84 -> Version: | F63: 1.0
C64: =Translation!C85 -> Dernière mise à jour: | F64: 22.05.2024
C65: =Translation!C79 -> Publié en:
C66: =Translation!C80 -> Responsables: | F66: GIZ project Water and Energy for Food
C67: =Translation!C81 -> Contact: | F67: we4f@giz.de
C68: =Translation!C82 -> Lien de téléchargement: | F68: www.energypedia.info
C70: =Translation!C83 -> À propos de WE4F:
C72: =Translation!C90 -> WE4F est une initiative internationale conjointe du ministère fédéral allemand de la coopération économique et du développement (BMZ), de l'Union européenne (UE), du ministère des affaires étrangères du gouvernement des Pays-Bas, l'Agence norvégienne de coopération au développement (Norad), de la Suède par l'intermédiaire de l'Agence suédoise de coopération internationale au développement (ASDI) et de l'Agence américaine pour le développement international (USAID). Annoncé lors de la Semaine mondiale de l'eau 2018 et lancé lors de l'événement de signature du Social Capital Markets 2019 à San Francisco, Californie, WE4F a pour objectif de : Augmenter la production alimentaire tout au long de la chaîne de valeur grâce à une utilisation plus durable et plus efficace de l'eau et/ou de l'énergie. Augmenter les revenus des femmes et des hommes à la base de la pyramide, dans les zones rurales et urbaines. Mettre en place des solutions innovantes à l'échelle durable pour relever les défis du réseau WE4F. Promouvoir la résilience du climat et de l'environnement ainsi que la biodiversité grâce à une gestion durable et globale des ressources naturelles et des écosystèmes. Les informations fournies dans ce document sont basées sur la littérature actuellement disponible. Bien que le plus grand soin ait été apporté à la réalisation de ce document, le WE4F ou ses partenaires financiers ne peuvent être tenus responsables de l'exactitude ou de la justesse des informations fournies, ni des conséquences de leur utilisation ou de leur mauvaise utilisation.

Sheet Home
C5: =Translation!C97 -> Chaîne de valeur | D5: Meat | F5: =VLOOKUP(D5,Data!G57:K61,2,0) ->  | M5: =Translation!C101 -> Liens rapides
C7: =Translation!C98 -> Configuration du système | D7: --- | F7: =VLOOKUP(D7,Data!M47:Q50,2,0) -> Veuillez sélectionner la configuration du système | M7: =Translation!C103 -> Energypedia - Refroidissement solaire
M8: =HYPERLINK("#"&Translation!C22&"!A1",Translation!C104) -> Principes de base du refroidissement
C9: =Translation!C99 -> Objectif de refroidissement | D9: --- | F9: =VLOOKUP(D9,Data!M53:Q56,2,0) -> Veuillez sélectionner l'objectif principal du refroidissement | M9: =Translation!C105 -> Base de données des entreprises | O9: =HYPERLINK("#"&Translation!C27&"!A1",Translation!C106) -> Chambre froide | P9: =HYPERLINK("#"&Translation!C26&"!A1",Translation!C10) -> Conteneur | Q9: =HYPERLINK("#"&Translation!C28&"!A1",Translation!C108) -> Machines à glace en écailles
M10: =HYPERLINK("#"&Translation!C25&"!A1",Translation!C110) -> Demande de fournisseurs
C11: =Translation!C100 -> Taille du système | D11: --- | F11: =VLOOKUP(D11,Data!M59:Q61,2,0) -> Veuillez sélectionner la taille du système | M11: =Translation!C111 -> Produits à refroidir | O11: =HYPERLINK("#"&Translation!C17&"!A1",Translation!C112) -> Poisson | P11: =HYPERLINK("#"&Translation!C18&"!A1",Translation!C113) -> Viande | Q11: =HYPERLINK("#"&Translation!C19&"!A1",Translation!C114) -> Produits laitiers | R11: =HYPERLINK("#"&Translation!C20&"!A1",Translation!C115) -> Horticulture
M12: =HYPERLINK("#"&Translation!C116&"!A1",Translation!C116) -> Réfrigérants
C14: =Translation!C102 -> Les options de refroidissement suivantes sont recommandées pour votre sélection :
C16: =IFERROR(Data!S32,"") ->  | D16: =IF(C16="","",VLOOKUP(C16,Data!$G$48:$K$53,2,0)) ->  | J16: =IF(C16="","",HYPERLINK("#"&C16&"!A1",Translation!C117&" "&C16)) -> 
C17: =IFERROR(Data!S33,"") ->  | D17: =IF(C17="","",VLOOKUP(C17,Data!$G$48:$K$53,2,0)) ->  | J17: =IF(C17="","",HYPERLINK("#"&C17&"!A1",Translation!C117&" "&C17)) -> 
C18: =IFERROR(Data!S34,"") ->  | D18: =IF(C18="","",VLOOKUP(C18,Data!$G$48:$K$53,2,0)) ->  | J18: =IF(C18="","",HYPERLINK("#"&C18&"!A1",Translation!C117&" "&C18)) -> 
C19: =IFERROR(Data!S35,"") ->  | D19: =IF(C19="","",VLOOKUP(C19,Data!$G$48:$K$53,2,0)) ->  | J19: =IF(C19="","",HYPERLINK("#"&C19&"!A1",Translation!C117&" "&C19)) -> 
C20: =IFERROR(Data!S36,"") ->  | D20: =IF(C20="","",VLOOKUP(C20,Data!$G$48:$K$53,2,0)) ->  | J20: =IF(C20="","",HYPERLINK("#"&C20&"!A1",Translation!C117&" "&C20)) -> 
C21: =IFERROR(Data!S37,"") ->  | D21: =IF(C21="","",VLOOKUP(C21,Data!$G$48:$K$53,2,0)) ->  | J21: =IF(C21="","",HYPERLINK("#"&C21&"!A1",Translation!C117&" "&C21)) -> 

Sheet Data (hidden)
U1: Reference Cells
A2: =Translation!C145 -> Produit sélectionné | B2: =Home!D5 -> Meat
A3: =Translation!C146 -> Installation sélectionnée | B3: =Home!D7 -> ---
A4: =Translation!C147 -> Refroidissement sélectionné | B4: =Home!D9 -> ---
A5: =Translation!C148 -> Taille sélectionné | B5: =Home!D11 -> ---
A7: =Translation!C121 -> Gamme de produits | B7: =Translation!C122 -> Type d'installation | C7: =Translation!C123 -> Type de refroidissement | D7: =Translation!C124 -> Taille de refroidissement | E7: =Translation!C125 -> Options de refroidissement | G7: Matrix Product | O7: Matrix Installation | V7: Reference Cells
H9: =$A$11 -> Poisson | I9: =$A$12 -> Viande | J9: =$A$13 -> Produits laitiers | K9: =$A$14 -> Horticulture | L9: =A10 -> --- | P9: =B11 -> Sites variables | Q9: =B12 -> Sites fixes | R9: =B13 -> Pendant le transport | S9: =B10 -> ---
A10: =Translation!C126 -> --- | B10: =Translation!C126 -> --- | C10: =Translation!C126 -> --- | D10: =Translation!C126 -> --- | E10: =Translation!C10 -> Conteneur | G10: =$E$10 -> Conteneur | H10: x | I10: x | J10: x | K10: x | L10: x | O10: =E10 -> Conteneur | P10: x | Q10: x | S10: x
A11: =Translation!C127 -> Poisson | B11: =Translation!C131 -> Sites variables | C11: =Translation!C134 -> Pré-refroidissement | D11: =Translation!C137 -> Domestique | E11: =Translation!C11 -> Glace | G11: =$E$11 -> Glace | H11: x | J11: x | K11: x | L11: x | O11: Glace | P11: x | Q11: x | R11: x | S11: x
A12: =Translation!C128 -> Viande | B12: =Translation!C132 -> Sites fixes | C12: =Translation!C135 -> Refroidissement | D12: =Translation!C138 -> Industriel | E12: =Translation!C12 -> Bain | G12: =$E$12 -> Bain | J12: x | K12: x | L12: x | O12: Bain | Q12: x | S12: x
A13: =Translation!C129 -> Produits laitiers | B13: =Translation!C133 -> Pendant le transport | C13: =Translation!C136 -> Congélation | E13: =Translation!C13 -> Réfrigérateur | G13: =$E$13 -> Réfrigérateur | H13: x | I13: x | J13: x | K13: x | L13: x | O13: Réfrigérateur | Q13: x | S13: x
A14: =Translation!C130 -> Horticulture | E14: =Translation!C15 -> ChambreFroide | G14: =E14 -> ChambreFroide | H14: x | I14: x | J14: x | K14: x | L14: x | O14: ChambreFroide | Q14: x | S14: x
E15: =Translation!C14 -> Congélateur | G15: =$E$15 -> Congélateur | H15: x | I15: x | K15: x | L15: x | O15: Congélateur | Q15: x | S15: x
G18: Matrix Produkt | O18: Matrix Product
A20: Testing Area for Selection | H20: =C10 -> --- | I20: =C11 -> Pré-refroidissement | J20: =C12 -> Refroidissement | K20: =C13 -> Congélation | P20: =$C$11 -> Pré-refroidissement | Q20: =$C$12 -> Refroidissement | R20: =$C$13 -> Congélation | S20: =C10 -> ---
G21: =A10 -> --- | H21: x | I21: x | J21: x | K21: x | O21: =$E$10 -> Conteneur | Q21: x | R21: x | S21: x
A22: Selected product | B22: -Please select- | G22: =A11 -> Poisson | H22: x | I22: x | J22: x | K22: x | O22: =$E$11 -> Glace | P22: x | Q22: x | S22: x
A23: Selected Installation | B23: -Please select- | G23: =A12 -> Viande | H23: x | J23: x | K23: x | O23: =$E$12 -> Bain | P23: x | S23: x
A24: Selected Cooling | B24: -Please select- | G24: =A13 -> Produits laitiers | H24: x | I24: x | J24: x | O24: =$E$13 -> Réfrigérateur | Q24: x | S24: x
A25: Selected Size | B25: -Please select- | G25: =A14 -> Horticulture | H25: x | I25: x | J25: x | O25: =E14 -> ChambreFroide | Q25: x | R25: x | S25: x
O26: =$E$15 -> Congélateur | R26: x | S26: x
G29: Matrix Product | L29: ="Matrix Combined: "&B2&" & "&B3&" & "&B4 & " & "&B5 -> Matrix Combined: Meat & --- & --- & ---
H31: =D11 -> Domestique | I31: =D12 -> Industriel | J31: =D10 -> --- | M31: =B2 -> Meat | N31: =B3 -> --- | O31: =B4 -> --- | P31: Sizing | Q31: Combined | R31: List | S31: Sorted list
G32: =$E$10 -> Conteneur | I32: x | J32: x | L32: =E10 -> Conteneur | M32: =HLOOKUP($B$2,$H$9:$L$15,2,0) ->  | N32: =HLOOKUP($B$3,$P$9:$S$15,2,0) -> x | O32: =HLOOKUP($B$4,$P$20:$S$26,2,0) -> x | P32: =HLOOKUP($B$5,$H$31:$J$37,2,0) -> x | Q32: =IF(AND(M32="x",N32="x",O32="x",P32="x",HLOOKUP($B$4,$H$20:$K$25,MATCH($B$2,$G$20:$G$25,0),FALSE)="x")=TRUE,"x","") ->  | R32: =IF(Q32="x",L32,"") ->  | S32: =IF(ROW(W1)> COUNTA($R$32:$R$37), "",INDEX($R:$R, SMALL(IF(R$32:R$37<>"", ROW($32:$37)), ROW(V1)))) -> 
G33: =$E$11 -> Glace | H33: x | I33: x | J33: x | L33: Glace | M33: =HLOOKUP($B$2,$H$9:$L$15,3,0) ->  | N33: =HLOOKUP($B$3,$P$9:$S$15,3,0) -> x | O33: =HLOOKUP($B$4,$P$20:$S$26,3,0) -> x | P33: =HLOOKUP($B$5,$H$31:$J$37,3,0) -> x | S33: =IF(ROW(W2)> COUNTA($R$32:$R$37), "",INDEX($R:$R, SMALL(IF(R$32:R$37<>"", ROW($32:$37)), ROW(V2)))) -> 
G34: =$E$12 -> Bain | I34: x | J34: x | L34: Bain | M34: =HLOOKUP($B$2,$H$9:$L$15,4,0) ->  | N34: =HLOOKUP($B$3,$P$9:$S$15,4,0) -> x | O34: =HLOOKUP($B$4,$P$20:$S$26,4,0) -> x | P34: =HLOOKUP($B$5,$H$31:$J$37,4,0) -> x | S34: =IF(ROW(W3)> COUNTA($R$32:$R$37), "",INDEX($R:$R, SMALL(IF(R$32:R$37<>"", ROW($32:$37)), ROW(V3)))) -> 
G35: =$E$13 -> Réfrigérateur | H35: x | J35: x | L35: Réfrigérateur | M35: =HLOOKUP($B$2,$H$9:$L$15,5,0) ->  | N35: =HLOOKUP($B$3,$P$9:$S$15,5,0) -> x | O35: =HLOOKUP($B$4,$P$20:$S$26,5,0) -> x | P35: =HLOOKUP($B$5,$H$31:$J$37,5,0) -> x | S35: =IF(ROW(W4)> COUNTA($R$32:$R$37), "",INDEX($R:$R, SMALL(IF(R$32:R$37<>"", ROW($32:$37)), ROW(V4)))) -> 
G36: =$E$14 -> ChambreFroide | I36: x | J36: x | L36: ChambreFroide | M36: =HLOOKUP($B$2,$H$9:$L$15,6,0) ->  | N36: =HLOOKUP($B$3,$P$9:$S$15,6,0) -> x | O36: =HLOOKUP($B$4,$P$20:$S$26,6,0) -> x | P36: =HLOOKUP($B$5,$H$31:$J$37,6,0) -> x | S36: =IF(ROW(W5)> COUNTA($R$32:$R$37), "",INDEX($R:$R, SMALL(IF(R$32:R$37<>"", ROW($32:$37)), ROW(V5)))) -> 
G37: =$E$15 -> Congélateur | H37: x | J37: x | L37: Congélateur | M37: =HLOOKUP($B$2,$H$9:$L$15,7,0) ->  | N37: =HLOOKUP($B$3,$P$9:$S$15,7,0) -> x | O37: =HLOOKUP($B$4,$P$20:$S$26,7,0) -> x | P37: =HLOOKUP($B$5,$H$31:$J$37,7,0) -> x | S37: =IF(ROW(W6)> COUNTA($R$32:$R$37), "",INDEX($R:$R, SMALL(IF(R$32:R$37<>"", ROW($32:$37)), ROW(V6)))) -> 
G46: =Translation!C149 -> Description de la solution | M46: =Translation!C162 -> Description de l'installation
M47: =B10 -> --- | N47: =Translation!C163 -> Veuillez sélectionner la configuration du système
G48: =E10 -> Conteneur | H48: =Translation!C150 -> Les solutions conteneurisées peuvent être facilement transportées et offrent une large gamme de températures supérieures et inférieures à 0 °C. | M48: =B11 -> Sites variables | N48: =Translation!C164 -> La solution est utilisée à différents endroits et peut être transportée de manière flexible.
G49: Glace | H49: =Translation!C151 -> La glace peut être produite et utilisée de manière très polyvalente pour des applications de refroidissement. Elle peut être utilisée comme stockage d'énergie et est transportable. | M49: =B12 -> Sites fixes | N49: =Translation!C165 -> La solution est installée à un endroit spécifique.
G50: Bain | H50: =Translation!C152 -> L'eau froide peut être utilisée pour refroidir rapidement les produits en raison du transfert de chaleur élevé entre le produit et l'eau. | M50: =B13 -> Pendant le transport | N50: =Translation!C166 -> La solution refroidit le produit pendant le transport.
G51: Réfrigérateur | H51: =Translation!C153 -> Les réfrigérateurs refroidissent les produits jusqu'à une certaine température supérieure à 0 °C.
G52: ChambreFroide | H52: =Translation!C154 -> Les chambres froides sont plus grandes et peuvent fournir une large gamme de températures. | M52: =Translation!C167 -> Description Type de refroidissement
G53: Congélateur | H53: =Translation!C155 -> Les congélateurs refroidissent les produits jusqu'à une certaine plage de température inférieure à 0 °C. | M53: =C10 -> --- | N53: =Translation!C168 -> Veuillez sélectionner l'objectif principal du refroidissement
M54: =C11 -> Pré-refroidissement | N54: =Translation!C169 -> Le produit est rapidement refroidi à la température cible avant de passer à la solution de refroidissement proprement dite.
M55: =C12 -> Refroidissement | N55: =Translation!C170 -> Le produit est refroidi à une température supérieure à 0 °C.
G56: =Translation!C156 -> Description du produit | M56: =C13 -> Congélation | N56: =Translation!C171 -> Le produit est refroidi à une température inférieure à 0 °C.
G57: =A10 -> --- | H57: =Translation!C157 -> Veuillez sélectionner le type de produit que vous souhaitez refroidir
G58: =A11 -> Poisson | H58: =Translation!C158 -> Poissons, crustacés et autres fruits de mer | M58: =Translation!C172 -> Taille de la description
G59: =A12 -> Viande | H59: =Translation!C159 -> Produits carnés de différents types | M59: =D10 -> --- | N59: =Translation!C173 -> Veuillez sélectionner la taille du système
G60: =A13 -> Produits laitiers | H60: =Translation!C160 -> Produits laitiers tels que le lait, le yaourt, le fromage | M60: =D11 -> Domestique | N60: =Translation!C174 -> La solution est utilisée pour les ménages ou les petites applications
G61: =A14 -> Horticulture | H61: =Translation!C161 -> Fruits et légumes | M61: =D12 -> Industriel | N61: =Translation!C175 -> La solution est utilisée au niveau industriel ou pour des opérations plus importantes
H66: =TRANSPOSE(G10:G15) -> Conteneur | I66: Glace | J66: Bain | K66: Réfrigérateur | L66: ChambreFroide | M66: Congélateur
G67: =A11 -> Poisson | H67: =TRANSPOSE($H$10:$L$10) -> x | I67: =TRANSPOSE($H$11:$L$11) -> x | J67: =TRANSPOSE($H$12:$L$12) -> 0 | K67: =TRANSPOSE($H$13:$L$13) -> x | L67: =TRANSPOSE($H$14:$L$14) -> x | M67: =TRANSPOSE($H$15:$L$15) -> x
G68: =A12 -> Viande | H68: x | I68: 0 | J68: 0 | K68: x | L68: x | M68: x
G69: Produits laitiers | H69: x | I69: x | J69: x | K69: x | L69: x | M69: 0
G70: Horticulture | H70: x | I70: x | J70: x | K70: x | L70: x | M70: x
H71: =IF(H67="x",$G67,"") -> Poisson | I71: =IF(I67="x",$G67,"") -> Poisson | K71: Poisson | L71: Poisson | M71: Poisson
H72: =IF(H68="x",$G68,"") -> Viande | K72: Viande | L72: Viande | M72: Viande
H73: Produits laitiers | I73: Produits laitiers | J73: Produits laitiers | K73: Produits laitiers | L73: Produits laitiers
H74: Horticulture | I74: Horticulture | J74: Horticulture | K74: Horticulture | L74: Horticulture | M74: Horticulture
H75: =IF(ROW(W1)> COUNTA($H$71:$H$74), "",INDEX($H:$H, SMALL(IF(H$71:H$74<>"", ROW($71:$74)), ROW(V1)))) -> Poisson | I75: =IF(ROW(W1)> COUNTA($I$71:$I$74), "",INDEX($I:$I, SMALL(IF(I$71:I$74<>"", ROW($71:$74)), ROW(V1)))) -> Poisson | J75: =IF(ROW(W1)> COUNTA($J$71:$J$74), "",INDEX($J:$J, SMALL(IF(J$71:J$74<>"", ROW($71:$74)), ROW(V1)))) -> Produits laitiers | K75: =IF(ROW(W1)> COUNTA($K$71:$K$74), "",INDEX($K:$K, SMALL(IF(K$71:K$74<>"", ROW($71:$74)), ROW(V1)))) -> Poisson | L75: =IF(ROW(W1)> COUNTA($L$71:$L$74), "",INDEX($L:$L, SMALL(IF(L$71:L$74<>"", ROW($71:$74)), ROW(V1)))) -> Poisson | M75: =IF(ROW(W1)> COUNTA($M$71:$M$74), "",INDEX($M:$M, SMALL(IF(M$71:M$74<>"", ROW($71:$74)), ROW(V1)))) -> Poisson
H76: =IF(ROW(W2)> COUNTA($H$71:$H$74), "",INDEX($H:$H, SMALL(IF(H$71:H$74<>"", ROW($71:$74)), ROW(V2)))) -> Viande | I76: =IF(ROW(W2)> COUNTA($I$71:$I$74), "",INDEX($I:$I, SMALL(IF(I$71:I$74<>"", ROW($71:$74)), ROW(V2)))) -> Produits laitiers | J76: =IF(ROW(W2)> COUNTA($J$71:$J$74), "",INDEX($J:$J, SMALL(IF(J$71:J$74<>"", ROW($71:$74)), ROW(V2)))) -> Horticulture | K76: =IF(ROW(W2)> COUNTA($K$71:$K$74), "",INDEX($K:$K, SMALL(IF(K$71:K$74<>"", ROW($71:$74)), ROW(V2)))) -> Viande | L76: =IF(ROW(W2)> COUNTA($L$71:$L$74), "",INDEX($L:$L, SMALL(IF(L$71:L$74<>"", ROW($71:$74)), ROW(V2)))) -> Viande | M76: =IF(ROW(W2)> COUNTA($M$71:$M$74), "",INDEX($M:$M, SMALL(IF(M$71:M$74<>"", ROW($71:$74)), ROW(V2)))) -> Viande
H77: =IF(ROW(W3)> COUNTA($H$71:$H$74), "",INDEX($H:$H, SMALL(IF(H$71:H$74<>"", ROW($71:$74)), ROW(V3)))) -> Produits laitiers | I77: =IF(ROW(W3)> COUNTA($I$71:$I$74), "",INDEX($I:$I, SMALL(IF(I$71:I$74<>"", ROW($71:$74)), ROW(V3)))) -> Horticulture | J77: =IF(ROW(W3)> COUNTA($J$71:$J$74), "",INDEX($J:$J, SMALL(IF(J$71:J$74<>"", ROW($71:$74)), ROW(V3)))) ->  | K77: =IF(ROW(W3)> COUNTA($K$71:$K$74), "",INDEX($K:$K, SMALL(IF(K$71:K$74<>"", ROW($71:$74)), ROW(V3)))) -> Produits laitiers | L77: =IF(ROW(W3)> COUNTA($L$71:$L$74), "",INDEX($L:$L, SMALL(IF(L$71:L$74<>"", ROW($71:$74)), ROW(V3)))) -> Produits laitiers | M77: =IF(ROW(W3)> COUNTA($M$71:$M$74), "",INDEX($M:$M, SMALL(IF(M$71:M$74<>"", ROW($71:$74)), ROW(V3)))) -> Horticulture
H78: =IF(ROW(W4)> COUNTA($H$71:$H$74), "",INDEX($H:$H, SMALL(IF(H$71:H$74<>"", ROW($71:$74)), ROW(V4)))) -> Horticulture | I78: =IF(ROW(W4)> COUNTA($I$71:$I$74), "",INDEX($I:$I, SMALL(IF(I$71:I$74<>"", ROW($71:$74)), ROW(V4)))) ->  | J78: =IF(ROW(W4)> COUNTA($J$71:$J$74), "",INDEX($J:$J, SMALL(IF(J$71:J$74<>"", ROW($71:$74)), ROW(V4)))) ->  | K78: =IF(ROW(W4)> COUNTA($K$71:$K$74), "",INDEX($K:$K, SMALL(IF(K$71:K$74<>"", ROW($71:$74)), ROW(V4)))) -> Horticulture | L78: =IF(ROW(W4)> COUNTA($L$71:$L$74), "",INDEX($L:$L, SMALL(IF(L$71:L$74<>"", ROW($71:$74)), ROW(V4)))) -> Horticulture | M78: =IF(ROW(W4)> COUNTA($M$71:$M$74), "",INDEX($M:$M, SMALL(IF(M$71:M$74<>"", ROW($71:$74)), ROW(V4)))) -> 

Sheet Basics
B3: =HYPERLINK("#"&Translation!C9&"!A1",Translation!C9) -> Start | G3: =Translation!C183 -> Principes de base du refroidissement (solaire):
C7: =Translation!C184 -> Vue d'ensemble
C9: =Translation!C185 -> 1. Le besoin de refroidissement
C10: =Translation!C186 -> 2. Le principe du refroidissement
C11: =Translation!C187 -> 3. Les charges frigorifiques
C12: =Translation!C188 -> 4. Refroidissement solaire
C15: =Translation!C189 -> 1. Le besoin du refroidissement
C17: =Translation!C190 -> Le refroidissement est une étape essentielle du processus de conservation des produits horticoles, du poisson, de la viande et des produits laitiers. Elle est nécessaire pour prévenir l'altération et prolonger la durée de conservation de ces produits, les rendant ainsi sûrs et attrayants pour les consommateurs.
C21: =Translation!C191 -> Les produits horticoles tels que les fruits et les légumes sont périssables et peuvent s'abîmer rapidement s'ils ne sont pas conservés à la bonne température. Les micro-organismes tels que les bactéries, les levures et les moisissures se développent à des températures élevées et peuvent provoquer une détérioration des produits et les rendre impropres à la consommation. En conservant les produits à une température plus basse, la croissance de ces micro-organismes est ralentie ou complètement stoppée. Les enzymes naturellement présentes dans les fruits et légumes peuvent les faire mûrir et se détériorer rapidement. Le refroidissement ralentit l'activité de ces enzymes, empêchant ainsi le produit de trop mûrir et de devenir invendable. La température affecte également la texture et l'apparence des produits. Par exemple, les fruits et légumes stockés à une température trop élevée peuvent devenir mous et perdre leur couleur, ce qui les rend peu attrayants pour les consommateurs. Le refroidissement permet de préserver la texture, l'aspect et la valeur nutritionnelle des produits. Les produits laitiers tels que le lait, le fromage et le yaourt sont également périssables et peuvent s'abîmer rapidement s'ils ne sont pas conservés à la bonne température. La réfrigération ralentit la croissance des bactéries et prolonge la durée de conservation de ces produits. Il permet également de préserver la texture, le goût et la valeur nutritionnelle des produits laitiers. La viande et le poisson sont également périssables et peuvent s'abîmer rapidement s'ils ne sont pas conservés à la bonne température. La réfrigération ralentit la croissance des bactéries et préserve la fraîcheur de la viande et du poisson. Cela empêche également la croissance de micro-organismes nocifs qui peuvent causer des intoxications alimentaires. Outre le ralentissement de la croissance des micro-organismes, le refroidissement permet également de préserver la couleur, la texture et le goût de la viande et du poisson. Par exemple, si la viande n'est pas refroidie correctement, elle peut se décolorer et acquérir une texture peu attrayante. Le poisson qui n'est pas refroidi correctement peut développer un mauvais goût et devenir peu attrayant pour les consommateurs.
C44: =Translation!C192 -> 2. Comprendre le principe de refroidissement
C46: =Translation!C193 -> La plupart des systèmes de refroidissement, qu'il s'agisse de chambres froides, de réfrigérateurs ménagers, de congélateurs, de machines à glaçons ou de climatiseurs, fonctionnent selon le même principe, mais dans des gammes de puissance et de température différentes. Un réfrigérant circule dans le cycle de refroidissement, éliminant la chaleur indésirable d'un endroit et l'échangeant avec un autre endroit. Les principaux composants du cycle de refroidissement sont les suivants : Compresseur Le compresseur comprime le réfrigérant. Le compresseur est relié à un moteur qui est connecté à la source d'énergie. Dans le cas du refroidissement solaire, les panneaux photovoltaïques fournissent du courant continu qui peut directement entraîner le compresseur à vitesse variable (en fonction de l'ensoleillement). Plus il y a de soleil, plus la vitesse est élevée, plus la puissance de refroidissement est importante. Il est également possible d'utiliser un onduleur pour faire fonctionner des moteurs à courant alternatif. Condenseur Dans le condenseur, la chaleur du réfrigérant est échangée avec la température ambiante. Le condenseur est situé à l'extérieur du lieu de refroidissement. Détendeur Dans le détendeur, le réfrigérant se dilate. Évaporateur Le réfrigérant refroidit l'évaporateur, ce qui permet d'éliminer la chaleur à proximité des plaques de l'évaporateur.
C70: =Translation!C194 -> Comment se présente le cycle ?
N71: =HYPERLINK("#"&"Refrigerants"&"!A1",Translation!C215) -> Plus d'info sur le réfrigérants
C72: =Translation!C195 -> Un réfrigérant est un fluide qui peut facilement (avec la pression et la température adéquates) passer de l'état liquide à l'état de vapeur et être condensé de la vapeur à l'état liquide. Dans le cycle de refroidissement, ce processus se produit continuellement. Ce faisant, la chaleur indésirable est transférée d'un endroit à un autre. 1. Compression : Le réfrigérant entre dans le compresseur sous forme de vapeur saturée (basse température et basse pression). Dans le compresseur, le fluide frigorigène est comprimé, ce qui entraîne une pression et une température plus élevées, puisqu'il est à l'état de vapeur surchauffée. Ce processus est similaire à celui d'une pompe à vélo, où l'air est comprimé et poussé dans le pneu, ce qui chauffe la pompe. 2. Condensation : Le réfrigérant est transporté vers le condenseur où un échange de chaleur avec l'air ambiant a lieu et où le réfrigérant se refroidit (la température ambiante doit être inférieure à la température du réfrigérant). Lorsque la température du réfrigérant diminue, il se condense et passe de l'état de vapeur à l'état de liquide, tout en conservant une pression élevée. 3. Expansion : Le réfrigérant se déplace vers le détendeur où un site de haute et de basse pression est créé. Le réfrigérant se détend et réduit la pression et la température. Ce phénomène est similaire à la diffusion d'un déodorant en aérosol. La vapeur qui s'échappe est froide. 4. L'évaporation : Le réfrigérant arrive à l'évaporateur, qui peut se présenter sous la forme d'une plaque ou d'un serpentin. L'évaporateur se trouve à l'endroit qui doit être refroidi, la température ambiante étant supérieure à la température du réfrigérant. Le réfrigérant absorbe de la chaleur dans l'espace refroidi, ce qui entraîne l'ébullition du réfrigérant et son changement de phase en vapeur. Le réfrigérant quitte l'évaporateur sous forme de vapeur à basse température et à basse pression et retourne dans le compresseur, où le cercle se poursuit. | N72: https://theengineeringmindset.com/how-do-refrigerants-work/
C100: =Translation!C196 -> 3. A propos des charges frigorifiques
C102: =Translation!C197 -> Lorsqu'il s'agit de refroidissement solaire, la conception correcte du système est cruciale pour atteindre les caractéristiques de refroidissement requises et maintenir le produit dans ses conditions de stockage idéales. C'est ici que la "charge de refroidissement" entre en jeu. Peu importe qu'il s'agisse d'un congélateur, d'un réfrigérateur, d'une chambre froide ou d'une boîte isolée remplie de glace : une certaine énergie est nécessaire pour a.) refroidir le produit à la température souhaitée et b.) maintenir la température à ce niveau précis. La charge de refroidissement décrit maintenant toutes les sources de chaleur qui doivent être compensées par le système de refroidissement.
C109: =Translation!C198 -> Aperçu des sources de chaleur :
C110: =Translation!C199 -> a.) Charge de transmission
C111: =Translation!C200 -> b.) Charge de produit
C112: =Translation!C201 -> c.) Charge interne
C113: =Translation!C202 -> d.) Charge de l'équipement
C114: =Translation!C203 -> e.) Charge d'infiltration
C117: =Translation!C204 -> a.) Charge de transmission
C118: =Translation!C205 -> La chaleur circule toujours du chaud vers le froid. Dans le système de refroidissement, la température à l'intérieur de la chambre froide est évidemment beaucoup plus basse que la température ambiante. L'énergie thermique est donc transférée de l'extérieur vers la chambre froide à travers les murs, le toit et le sol. La charge de transmission dépend de la différence de température ainsi que du type et de l'épaisseur des matériaux d'isolation.
C124: =Translation!C206 -> b.) Charge de produit
C125: =Translation!C207 -> La charge de produit représente généralement la plus grande partie de la charge de refroidissement. Elle représente la chaleur qui est introduite lorsqu'un nouveau produit est introduit dans le système de refroidissement. S'il n'est pas pré-refroidi, le produit a la température ambiante extérieure et est refroidi progressivement jusqu'à la température à l'intérieur de la chambre froide. Les fruits et légumes sont des organismes vivants qui génèrent également de la chaleur dont il faut tenir compte. La congélation d'un produit implique un changement de phase qui nécessite une énergie supplémentaire.
C133: =Translation!C208 -> c.) Charge interne
C134: =Translation!C209 -> La charge interne s'applique plutôt aux chambres froides plus grandes et accessibles au public. Il s'agit de la chaleur dégagée par les personnes qui entrent dans la chambre froide, mais aussi par les équipements tels que les lampes.
C138: =Translation!C210 -> d.) Charge d'équipement
C139: =Translation!C211 -> L'équipement utilisé pour la réfrigération peut également être une source de chaleur, par exemple les moteurs des ventilateurs, mais la charge de l'équipement est généralement très faible.
C142: =Translation!C212 -> e.) Charge d'infiltration
C143: =Translation!C214 -> Comprendre les différentes charges de refroidissement permet de prendre en compte tous les facteurs qui sont essentiels pour concevoir correctement le système de refroidissement. Ces calculs sont généralement effectués par les fournisseurs de la solution, mais des logiciels sont également disponibles en ligne.
N146: https://theengineeringmindset.com/cooling-load-calculation-cold-room/
C147: Understanding the different cooling loads helps to consider all factors that are key to correctly design the cooling system. These calculation are ususally done by suppliers of the solution, but software is also available online.
C152: =Translation!C216 -> 4. Refroidissement solaire
C154: =Translation!C217 -> Le refroidissement solaire décrit dans cet outil la réfrigération par compression de vapeur (décrite ci-dessus) alimentée par de l'électricité produite par des panneaux photovoltaïques. La taille du système peut varier d'un petit réfrigérateur domestique à des chambres froides ou des conteneurs plus grands. La taille et les caractéristiques du système (température, charge de refroidissement, etc.) déterminent la quantité d'énergie nécessaire. Alors que les petits systèmes peuvent fonctionner en courant continu (DC), les systèmes plus importants fonctionnent souvent en courant alternatif (AC), d'où la nécessité d'utiliser des onduleurs. Bien qu'il soit essentiel d'avoir un refroidissement ininterrompu, la disponibilité de l'énergie solaire fluctue au cours de la journée. Le stockage de l'énergie permet de maintenir le produit froid lorsque l'énergie solaire n'est pas ou peu disponible. Le stockage peut prendre la forme d'un stockage électrique au moyen de batteries (coûteuses), d'un stockage thermique au moyen de gel ou de matériaux à changement de phase, ou d'un mélange des deux. Le refroidissement solaire permet de conserver les produits agricoles dans les endroits non raccordés au réseau ou lorsque le réseau n'est pas accessible ou fiable.

Sheet Refrigerator
B3: =HYPERLINK("#"&Translation!C9&"!A1",Translation!C9) -> Start | G3: =Translation!C277 -> Réfrigérateur - Solutions
C6: =Translation!C285 -> Un réfrigérateur est la version domestique d'une chambre froide. La plupart des réfrigérateurs utilisent la méthode de réfrigération par compression de vapeur, où un réfrigérant subit des changements de phase pour éliminer la chaleur de l'intérieur du réfrigérateur et la transporter vers l'extérieur. Un compresseur couplé à un moteur électrique assure le fonctionnement du système. Les réfrigérateurs équipés d'un moteur à courant continu de 12 ou 24 volts sont spécialement conçus pour l'utilisation de l'énergie solaire. Ces réfrigérateurs à courant continu sont déjà largement répandus sur le marché, mais leur qualité et leur efficacité varient. | N6: =Translation!C278 -> Produits recommandés pour réfrigérateurs
N8: =IFERROR(HYPERLINK("#"&Data!K75&"!A1",Data!K75),"") -> Poisson
N9: =IFERROR(HYPERLINK("#"&Data!K76&"!A1",Data!K76),"") -> Viande
N10: =IFERROR(HYPERLINK("#"&Data!K77&"!A1",Data!K77),"") -> Produits laitiers
N11: =IFERROR(HYPERLINK("#"&Data!K78&"!A1",Data!K78),"") -> Horticulture
N16: =Translation!C279 -> Installation du système
C17: =Translation!C286 -> La base de données de produits VeraSol peut donner un bon aperçu et permettre des comparaisons. Dans les réfrigérateurs, la chaleur est échangée dans l'air qui entoure le produit, ce qui rend le refroidissement initial relativement lent. Le fait de pré-refroidir un produit et de le placer ensuite dans le réfrigérateur pour qu'il conserve cette température de pré-refroidissement peut accroître l'efficacité. La plage de température des réfrigérateurs peut se situer entre 0 et 10 °C et peut normalement être ajustée. La taille des réfrigérateurs varie, mais il s'agit généralement de tailles utilisées dans les ménages et de charges frigorifiques plus faibles. Les unités de réfrigération plus grandes sont considérées comme des chambres froides.
N19: =Translation!C280 -> Sites fixes
N22: =Translation!C281 -> Objectif de refroidissement
N24: =Translation!C282 -> Refroidissement
C25: =Translation!C287 -> Lorsqu'ils s'échappent du système, les réfrigérants utilisés dans la réfrigération à compression de vapeur peuvent avoir un certain effet d'appauvrissement de la couche d'ozone et donc un potentiel de réchauffement de la planète. L'ampleur de cet effet dépend du réfrigérant, ce qui fait de sa sélection un critère de choix important. Au cours du stockage dans un réfrigérateur, les produits se déshydratent légèrement, en particulier lorsque les systèmes ont un débit d'air défini. Une humidité plus élevée dans le réfrigérateur prolonge la durée de conservation du produit. En fonction du produit, certaines plages de température et d'humidité offrent des conditions de stockage optimales et préviennent les dommages causés par des températures ou des humidités trop basses.
N28: =Translation!C283 -> Taille du système
N30: =Translation!C284 -> Domestique
N33: VeraSol Product Database - Refrigerators

Sheet Freezer
B3: =HYPERLINK("#"&Translation!C9&"!A1",Translation!C9) -> Start | G3: =Translation!C308 -> Congélateur - Solutions
C6: =Translation!C316 -> Un congélateur est la version domestique d'une chambre froide. La plupart des congélateurs utilisent la méthode de réfrigération par compression de vapeur, où un réfrigérant subit des changements de phase pour éliminer la chaleur de l'intérieur du congélateur et la transporter vers l'extérieur. Un compresseur couplé à un moteur électrique assure le fonctionnement du système. Les congélateurs équipés d'un moteur à courant continu de 12 ou 24 volts sont spécialement conçus pour l'utilisation de l'énergie solaire. Ces congélateurs à courant continu sont déjà largement répandus sur le marché, mais leur qualité et leur efficacité varient. | N6: =Translation!C309 -> Produits recommandés pour congélateurs
N8: =IFERROR(HYPERLINK("#"&Data!M75&"!A1",Data!M75),"") -> Poisson
N9: =IFERROR(HYPERLINK("#"&Data!M76&"!A1",Data!M76),"") -> Viande
N10: =IFERROR(HYPERLINK("#"&Data!M77&"!A1",Data!M77),"") -> Horticulture
N11: =IFERROR(HYPERLINK("#"&Data!M78&"!A1",Data!M78),"") -> 
N14: =Translation!C310 -> Configuration du système
N16: =Translation!C311 -> Sites fixes
C18: =Translation!C317 -> La base de données de produits VeraSol peut donner un bon aperçu et permettre des comparaisons. Dans les congélateurs, la chaleur est échangée dans l'air qui entoure le produit, ce qui rend le refroidissement initial relativement lent. Le fait de pré-refroidir un produit et de le placer ensuite dans le réfrigérateur pour qu'il conserve cette température de pré-refroidissement peut accroître l'efficacité. La plage de température des réfrigérateurs peut se situer entre -20 et -10 °C et peut normalement être ajustée. La taille des congélateurs varie, mais ils sont généralement utilisés dans les ménages et pour des charges frigorifiques plus faibles. Les unités de congélation plus grandes utilisées pour la transformation industrielle sont considérées comme des chambres froides.
N19: =Translation!C312 -> Objectif de refroidissement
N21: =Translation!C313 -> Congélation
N25: =Translation!C314 -> Taille du système
N27: =Translation!C315 -> Domestique
C28: =Translation!C318 -> Lorsqu'ils s'échappent du système, les réfrigérants utilisés dans les systèmes de compression de vapeur peuvent avoir un certain effet d'appauvrissement de la couche d'ozone et donc un potentiel de réchauffement de la planète. L'ampleur de cet effet dépend du réfrigérant, ce qui fait de sa sélection un critère de choix important. Le stockage d'un produit dans un congélateur permet la conservation à long terme de nombreux aliments, ce qui prolonge considérablement leur durée de vie. L'état physique de la matière alimentaire est modifié lorsque l'énergie est retirée par refroidissement en dessous de la température de congélation. Si le poisson et la viande se prêtent généralement à la congélation, le type de fruits ou de légumes doit faire l'objet d'une distinction plus précise, car ils ne doivent pas tous être congelés. Avant la congélation, certains processus de préparation peuvent être appliqués au produit afin d'en préserver une meilleure qualité.
N32: http://www.fao.org/3/y5979e/y5979e03.htm#bm03 | R32: =Translation!C319 -> Congélation des légumes
N33: http://www.fao.org/3/V3630E/V3630E00.htm | R33: =Translation!C320 -> Congélation du poisson
N34: http://www.fao.org/3/T0098E/T0098E02.htm | R34: =Translation!C321 -> Congélation de la viande
N37: VeraSol Product Database - Refrigerators

Sheet Coldroom
B3: =HYPERLINK("#"&Translation!C9&"!A1",Translation!C9) -> Start | G3: =Translation!C291 -> Chambre froide - Solutions
C6: =Translation!C300 -> Les chambres froides sont adaptées à de plus grandes quantités de produits et à différentes plages de température. Elles sont installées à un endroit fixe et conviennent pour refroidir tous les types de produits. Les chambres froides sont généralement composées de • des panneaux d'isolation • une unité de refroidissement • refroidisseurs d'air | N6: =Translation!C292 -> Produits recommandés pour Chambres froides
N8: =IFERROR(HYPERLINK("#"&Data!L75&"!A1",Data!L75),"") -> Poisson
N9: =IFERROR(HYPERLINK("#"&Data!L76&"!A1",Data!L76),"") -> Viande
N10: =IFERROR(HYPERLINK("#"&Data!L77&"!A1",Data!L77),"") -> Produits laitiers
N11: =IFERROR(HYPERLINK("#"&Data!L78&"!A1",Data!L78),"") -> Horticulture
C15: =Translation!C301 -> Pour les coupler à l'énergie solaire, certains composants supplémentaires sont nécessaires : • panneaux photovoltaïques et régulateurs/inverseurs • Sauvegarde (sous forme de batteries ou d'énergie thermique) et autres. | N15: =Translation!C293 -> Configuration du système
N17: =Translation!C294 -> Sites variables
C20: =Translation!C302 -> Dans les chambres froides, la chaleur est échangée dans l'air qui entoure le produit, ce qui rend le refroidissement initial relativement lent. Le pré-refroidissement d'un produit, puis son transfert vers le réfrigérateur pour conserver cette température de pré-refroidissement, peut accroître l'efficacité. Une circulation d'air forcée est importante pour permettre une distribution uniforme de l'air froid et pour refroidir le produit le plus efficacement possible. La plage de température des chambres froides peut aller de -20 °C à +15 °C, en fonction de la puissance des unités de refroidissement intégrées dans le système, des températures ambiantes et du matériau d'isolation.
N21: =Translation!C295 -> Objectif de refroidissement
N23: =Translation!C296 -> Refroidissement
N24: =Translation!C297 -> Congélation
C27: =Translation!C303 -> Pendant le stockage dans une chambre froide, le produit se déshydrate légèrement, en particulier lorsque les systèmes sont dotés d'un flux d'air conçu à cet effet. Un taux d'humidité plus élevé dans la chambre froide prolonge la durée de conservation du produit. En fonction du produit, certaines plages de température et d'humidité offrent des conditions de stockage optimales et préviennent les dommages causés par des températures ou des humidités trop basses. | N27: =Translation!C298 -> Taille du système
N29: =Translation!C299 -> Industriel
N33: =HYPERLINK("#"&"Coldroom_Supplier"&"!A1","Supplier of Coldroom Solutions") -> Supplier of Coldroom Solutions
N35: Danfoss - Cold Room Sizing & Load

Sheet Images (hidden)
N1: Used Formula:
B2: This sheet contains the graphics used in this documents. It is crucial to not add/remove any new rows/colums to keep functionality
N3: =INDIREKT("Images!E"&Images!$D$13)
B5: =Home!C5 -> Chaîne de valeur | D5: =Home!D5 -> Meat | N5: "Images" = Name of the worksheet
N6: Used in Name - manager
B7: =Home!C7 -> Configuration du système | D7: =Home!D7 -> ---
B9: =Home!C9 -> Objectif de refroidissement | D9: =Home!D9 -> --- | N9: Step to step guide: | P9: Dynamische Bilderanzeige - Excel-Inside Solutions (excel-inside.de)
B11: =Home!C11 -> Taille du système | D11: =Home!D11 -> ---
B13: =ROW(B14)+MATCH(D5,B15:B19,0) ->  | D13: =ROW(D14)+MATCH(D7,D15:D19,0) -> 15 | F13: =ROW(F14)+MATCH(D9,F15:F19,0) -> 15 | H13: =ROW(H14)+MATCH(D11,H15:H19,0) -> 15
B14: Product range | C14: Icon | D14: Installation type | E14: Icon | F14: Process | G14: Icon | H14: Size | I14: Icon
B15: =Data!A10 -> --- | D15: =Data!B10 -> --- | F15: =Data!C10 -> --- | H15: =Data!D10 -> ---
B16: =Data!A11 -> Poisson | D16: =Data!B11 -> Sites variables | F16: =Data!C11 -> Pré-refroidissement | H16: =Data!D11 -> Domestique
B17: =Data!A12 -> Viande | D17: =Data!B12 -> Sites fixes | F17: =Data!C12 -> Refroidissement | H17: =Data!D12 -> Industriel
B18: =Data!A13 -> Produits laitiers | D18: =Data!B13 -> Pendant le transport | F18: =Data!C13 -> Congélation
B19: =Data!A14 -> Horticulture
B21: Selection:

Sheet Container
B3: =HYPERLINK("#"&Translation!C9&"!A1",Translation!C9) -> Start | G3: =Translation!C220 -> Conteneur - Solutions
C6: =Translation!C231 -> Un système de refroidissement conteneurisé est une forme de chambre froide logée dans des conteneurs outre-mer standard modifiés (20 pieds ou 40 pieds), ce qui les rend très mobiles. Leurs principaux composants sont les suivants • des panneaux d'isolation • refroidisseurs d'air • unité de refroidissement • panneaux photovoltaïques et contrôleurs • les systèmes de secours (sous forme de batteries ou de systèmes thermiques) et autres. | N6: =Translation!C221 -> Produits recommandés pour pour conteneurs
N8: =IFERROR(HYPERLINK("#"&Data!H75&"!A1",Data!H75),"") -> Poisson
N9: =IFERROR(HYPERLINK("#"&Data!H76&"!A1",Data!H76),"") -> Viande
N10: =IFERROR(HYPERLINK("#"&Data!H77&"!A1",Data!H77),"") -> Produits laitiers
N11: =IFERROR(HYPERLINK("#"&Data!H78&"!A1",Data!H78),"") -> Horticulture
C15: =Translation!C232 -> Les fournisseurs proposent souvent tous les matériaux nécessaires à la modification ou fournissent des solutions déjà préinstallées. Des panneaux solaires peuvent être montés sur le dessus du conteneur. La plage de température des solutions conteneurisées varie, mais peut se situer entre -10°C et +15°C. Elle dépend principalement de la configuration du système. Elle dépend principalement de la configuration du système : • les températures ambiantes • l'épaisseur et le type de matériaux d'isolation • puissance de l'unité de refroidissement | N15: =Translation!C222 -> Configuration du système
N17: =Translation!C223 -> Sites variables
N18: =Translation!C224 -> Sites fixes
N21: =Translation!C225 -> Objectif du refroidissement
N23: =Translation!C226 -> Refroidissement
N24: =Translation!C227 -> Congélation
C27: =Translation!C233 -> Les conteneurs frigorifiques peuvent être installés dans des zones rurales pour fonctionner de manière autonome par rapport au réseau (même s'il existe également des solutions hybrides connectées au réseau et au générateur) et peuvent jouer un rôle important en tant que centres logistiques, centres de collecte ou de stockage pour les magasins ou les entreprises de transformation. Les fournisseurs peuvent proposer une variété de modèles qui peuvent convenir à différents modèles d'entreprise : location, paiement à l'achat ou achat direct. | N27: =Translation!C228 -> Taille du système
N29: =Translation!C229 -> Industriel
C35: =Translation!C234 -> Les systèmes de refroidissement conteneurisés sont relativement faciles à expédier ou à transporter d'un endroit à l'autre et offrent donc une grande flexibilité. En fonction des caractéristiques du système, ils peuvent être utilisés dans toutes les chaînes de valeur et peuvent être utilisés pour le pré-refroidissement, le refroidissement et la congélation.
N39: =HYPERLINK("#"&"Container_Supplier"&"!A1",Translation!C230) -> Fournisseur de solutions conteneurisées

Sheet Ice
B3: =HYPERLINK("#"&Translation!C9&"!A1",Translation!C9) -> Start | G3: =Translation!C239 -> Glace - Solutions
C6: =Translation!C254 -> La glace peut être utilisée de différentes manières pour refroidir un produit. Elle peut être utilisée directement, principalement pour refroidir le poisson, les crustacés ou d'autres fruits de mer. La glace peut également être utilisée pour refroidir l'eau en vue de son utilisation dans un bain-marie ou un hydro-refroidisseur. La glace présente le grand avantage de servir de stockage d'énergie thermique lorsque les panneaux solaires ne produisent pas d'électricité. La glace peut également être transportée, ce qui permet de la refroidir même pendant le transport du produit. | N6: =Translation!C240 -> Produits recommandés pour Ice Solutions
N8: =IFERROR(HYPERLINK("#"&Data!I75&"!A1",Data!I75),"") -> Poisson
N9: =IFERROR(HYPERLINK("#"&Data!I76&"!A1",Data!I76),"") -> Produits laitiers
N10: =IFERROR(HYPERLINK("#"&Data!I77&"!A1",Data!I77),"") -> Horticulture
N11: =IFERROR(HYPERLINK("#"&Data!I78&"!A1",Data!I78),"") -> 
C13: =Translation!C255 -> La glace peut se présenter sous différentes formes, en fonction de l'application. Pour le refroidissement du poisson, la glace se présente généralement sous la forme de flocons. Pour le refroidissement du lait, la glace sous forme de blocs peut être placée dans des compartiments à l'intérieur d'une boîte à lait isolée. Pour le transport, les blocs de glace prennent moins de place et persistent plus longtemps. La glace peut être utilisée pour le pré-refroidissement, lorsqu'un refroidissement rapide du produit est nécessaire. Cela permet d'augmenter la durée de conservation du poisson et des produits laitiers.
N15: =Translation!C241 -> Configuration du système
N17: =Translation!C242 -> Sites variables
N18: =Translation!C243 -> Sites fixes
N19: =Translation!C244 -> Pendant le transport
N21: =Translation!C245 -> Objectif de refroidissement
C22: =Translation!C256 -> Bien qu'il existe déjà des solutions pour fabriquer des blocs de glace à l'aide de l'énergie solaire, ces solutions ne sont pas encore totalement commercialisées. (https://energypedia.info/wiki/Solar_Milk_Cooling_with_Insulated_Milk_Cans). Les machines qui produisent des flocons de glace pour la réfrigération du poisson sont très présentes sur le marché, mais il n'existe pas encore de solutions solaires. Le couplage des machines à flocons de glace disponibles avec un onduleur, un régulateur de charge, des batteries et des panneaux solaires appropriés pourrait être une possibilité pour permettre la production de flocons de glace à l'aide de l'énergie solaire. Cette approche est encore en phase d'essai et n'est pas encore disponible sur le marché.
N23: =Translation!C246 -> Pré-refroidissement
N24: =Translation!C247 -> Refroidissement
N27: =Translation!C248 -> Taille du système
N29: =Translation!C249 -> Domestique
N30: =Translation!C250 -> Industriel
N35: =HYPERLINK("#"&Translation!C21&"!A1",Translation!C251) -> Calculez votre demande de glace pour le refroidissement du poisson
N37: =HYPERLINK("#"&"Ice_flake_Supplier"&"!A1",Translation!C252) -> Fournisseur de machines à glace en écailles
N39: =Translation!C253 -> FAO, 2001 - Note consultative 21 de Torry - Quel type de glace est le meilleur ?

Sheet Waterbath
B3: =HYPERLINK("#"&Translation!C9&"!A1",Translation!C9) -> Start | G3: =Translation!C262 -> Bain d'eau - Solutions
C6: =Translation!C271 -> L'hydrocooling consiste à baigner des produits frais dans de l'eau glacée afin d'éliminer la chaleur de manière très rapide et efficace. Ce procédé est particulièrement intéressant pour le pré-refroidissement. Le coefficient de transfert thermique très élevé de l'eau en fait un très bon moyen d'absorber rapidement la chaleur du produit à refroidir et permet des applications intéressantes pour les produits agricoles. La plupart des fruits et légumes doivent être refroidis immédiatement après la récolte afin de fournir au consommateur un produit de la plus haute qualité. Le refroidissement réduit la vitesse de détérioration du produit et prolonge ainsi sa durée de conservation. | N6: =Translation!C263 -> Produits recommandés pour bain d'eau
N8: =IFERROR(HYPERLINK("#"&Data!J75&"!A1",Data!J75),"") -> Produits laitiers
N9: =IFERROR(HYPERLINK("#"&Data!J76&"!A1",Data!J76),"") -> Horticulture
N10: =IFERROR(HYPERLINK("#"&Data!J77&"!A1",Data!J77),"") -> 
N11: =IFERROR(HYPERLINK("#"&Data!J78&"!A1",Data!J78),"") -> 
N15: =Translation!C264 -> Installation du système
N17: =Translation!C265 -> Sites fixes
C18: =Translation!C272 -> L'hydrocooling produit/utilise de l'eau glacée en mouvement qui entre en contact avec le produit par le biais de systèmes de douche ou en immergeant le produit dans un bain d'eau. L'eau froide peut être produite en plaçant directement dans l'eau les plaques d'évaporation des systèmes de réfrigération à compression de vapeur. Une autre méthode consiste à produire de la glace, qui est introduite dans l'eau. La production de glace et les systèmes de réfrigération à compression de vapeur peuvent être alimentés par l'énergie solaire. En fonction du produit, différentes températures de l'eau sont nécessaires. Les hydrocoolers ne provoquent aucune perte d'humidité lors du refroidissement, ils réhydratent même les produits légèrement flétris. Cependant, tous les fruits et légumes ne conviennent pas à l'hydrocooling. Le bain-marie peut également être utilisé pour le pré-refroidissement et le refroidissement du lait, en immergeant la boîte de lait dans l'eau froide ou en utilisant des systèmes de refroidissement du lait encore plus complexes qui comprennent des échangeurs de chaleur.
N21: =Translation!C266 -> Objectif du refroidissement
N23: =Translation!C267 -> Pré-refroidissement
S26: i
N27: =Translation!C268 -> Taille du système
N29: =Translation!C269 -> Industriel
C30: =Translation!C273 -> Un bain-marie peut également être utilisé pour la production de glace, si l'on utilise une saumure. L'ajout de sel peut abaisser le point de congélation de l'eau jusqu'à -20°C. Des compartiments remplis d'eau douce peuvent être placés dans la saumure pour la production de glace.
N34: NCSU, 1992 - Postharvest Technologies Series - Hydrocooling

Sheet Fish
B3: =HYPERLINK("#"&Translation!C9&"!A1",Translation!C9) -> Start | G3: =Translation!C325 -> Refroidissement du poisson
C6: =Translation!C327 -> L'activité microbienne est responsable de l'altération de la plupart des produits de la pêche frais. La durée de conservation des produits de la pêche est donc nettement plus longue lorsque les produits sont stockés à basse température. À 0°C, le taux de croissance est inférieur à un dixième du taux à la température de croissance optimale. Les basses températures peuvent être atteintes par la réfrigération ou la congélation. La réfrigération peut être réalisée à l'aide de glace (ou de réfrigérateurs), tandis que la congélation nécessite des congélateurs. Les deux méthodes présentent des avantages et des inconvénients, comme indiqué ci-dessous.
C13: =Translation!C328 -> Refroidissement | H13: =Translation!C329 -> Congélation
C14: =Translation!C330 -> Stockage à court terme (jusqu'à un mois maximum pour certaines espèces, quelques jours seulement pour d'autres) • Température de stockage 0 °C • Relativement bon marché • Le produit ressemble à du poisson frais • Technologie relativement faible • Peu de compétences requises • Réfrigération portable. | H14: =Translation!C331 -> Stockage à long terme (un an ou plus pour certaines espèces) • Température de stockage bien inférieure à zéro, par exemple -30 °C • Relativement coûteux • Si elle est mal faite, elle peut nuire à la qualité • Technologie relativement avancée • Compétences élevées requises • Opérations généralement statiques.
O16: =HYPERLINK("#"&Translation!C21&"!A1",Translation!C326) -> Calculer la demande de glace pour le refroidissement du poisson
O23: The use of ice on small fishing vessels - FAO Fisheries technical paper - 436 - 2003
C24: =Translation!C332 -> La glace, en tant que moyen de refroidissement du poisson, présente de nombreux avantages : elle a une très grande capacité de refroidissement pour un poids ou un volume donné ; elle est inoffensive, portable et bon marché. Elle est particulièrement précieuse pour la conservation du poisson, car le contact intime entre le poisson et de petits morceaux de glace permet un refroidissement très rapide. La glace maintient le poisson froid, humide et brillant et empêche la déshydratation qui pourrait accompagner d'autres méthodes de refroidissement, telles que le stockage réfrigéré sans glace.
O25: Freezing and refrigerated storage in fisheries - FAO Fisheries Technical Paper - 340 - 1994
O27: Quality and quality changes in fresh fish - FAO Fisheries technical paper - 348 - 1995
O29: Ice in fisheries - FAO Fisheries technical paper 331 - 1992
C30: =Translation!C333 -> Estimation de la durée de conservation du poisson lorsqu'il est refroidi avec de la glace à 0 °C :
E32: =Translation!C334 -> -Veuillez sélectionner-
C33: =Translation!C335 -> Espèce : | E33: Marine species | H33: =Translation!C338 &" "&E34&" : " -> Durée de conservation de Batfish : | K33: =Translation!C341&" "&'Product Database'!C34 &" "&Translation!C342 &" "&'Product Database'!D34&" "&Translation!C343 -> De 21 à 24 jours
C34: =Translation!C336 -> Poisson : | E34: Batfish | H34: =Translation!C339 -> Moyenne : | K34: ='Product Database'!C35&" "&Translation!C343 -> 22,5 jours
C35: =Translation!C337 -> Zone d'eau : | E35: Tropical water | H35: =Translation!C340 -> Remarques : | K35: ='Product Database'!G33 -> Lean
C39: =Translation!C344 -> Estimation durée de vie du poisson, si durée de vie est connue pour une température de 0°C :
C41: =Translation!C345 -> Température donnée en °C : | G41: 0 | H41: =Translation!C347 -> Autre température en °C : | L41: 7
C42: =Translation!C346 -> Durée de conservation donnée en jours : | G42: 4 | H42: =Translation!C348&" "&L41&" °C :" -> Durée de conservation en jours à 7 °C : | L42: =G42/POWER((0.1*L41+1),2) -> 1.384083045
C45: =Translation!C349 -> Stockage poisson - Durée de conservation < 0 °C
I47: =Translation!C350 -> Durée de conservation en mois
I48: -18 °C | J48: -25 °C | K48: -30 °C
D49: =Translation!C351 -> Poissons gras, sardines, saumon, perche de mer | I49: 4 | J49: 8 | K49: 12
D50: =Translation!C352 -> Poissons maigres, cabillaud, églefin | I50: 8 | J50: 18 | K50: 24
D51: =Translation!C353 -> Poissons plats, flet, plie, sole | I51: 9 | J51: 18 | K51: 24
D52: =Translation!C354 -> Homard, crabes | I52: 6 | J52: 12 | K52: 15
D53: =Translation!C355 -> Crevettes | I53: 6 | J53: 12 | K53: 12
C57: =Translation!C356 -> Basé sur : | E57: Quality and quality changes in fresh fish - FAO Fisheries technical paper - 348 - 1995
E58: The use of ice on small fishing vessels - FAO Fisheries technical paper - 436 - 2003
E59: Freezing and refrigerated storage in fisheries - FAO Fisheries Technical Paper - 340 - 1994

Sheet Meat
B3: =HYPERLINK("#"&Translation!C9&"!A1",Translation!C9) -> Start | G3: =Translation!C359 -> Refroidissement des produits carnés
C6: =Translation!C360 -> La viande est soumise à une activité enzymatique endogène, ou protéolyse, qui fait mûrir le tissu musculaire, le rend tendre et lui donne un goût typique. Ce processus est retardé par le froid. En raison de sa composition chimique riche en protéines, en lipides et en eau, la viande est un substrat particulièrement favorable à la croissance des micro-organismes. Leur développement est un processus dépendant de la température. Pour l'éviter, il est absolument indispensable de réduire la température de la viande, surtout en surface, immédiatement après l'habillage. Pour prévenir ou même réduire le processus de détérioration, en particulier le développement des micro-organismes, la réfrigération doit être effectuée rapidement après l'arrosage de la carcasse à la fin du processus d'abattage et l'état réfrigéré doit être maintenu jusqu'à ce que la viande soit traitée pour la consommation. La réfrigération peut être définie comme l'opération fondamentale consistant à appliquer du froid à la viande pour réduire rapidement sa température. Cette opération s'effectue dans une chambre froide avec un courant d'air ou un mouvement intensif. Le refroidissement rapide de la surface de la viande permet non seulement de ralentir et presque d'arrêter le développement des micro-organismes de surface, mais aussi de réduire la perte de poids et la décoloration de la surface due à l'oxydation de l'hémoglobine. Pour une conservation à court terme, la viande peut être réfrigérée. Lorsque la période de conservation est plus longue que celle acceptable pour la viande réfrigérée, la congélation doit être utilisée pour minimiser les changements physiques, biochimiques et microbiologiques affectant la qualité pendant le stockage. Les chambres froides où s'effectue la réfrigération doivent avoir une température de l'air basse, une vitesse de l'air élevée, une humidité relative élevée et une grande capacité de réfrigération. La température de l'air doit être de l'ordre de 0°C, sans descendre en dessous de -1°C, ce qui pourrait geler la surface de la viande et en altérer l'aspect. La vitesse de l'air peut varier de 0,25 à 3,0 m/s. L'humidité relative pendant l'opération de refroidissement doit être maintenue à un niveau relativement élevé pour éviter une perte de poids excessive. Le taux recommandé se situe entre 90 et 95 %, bien qu'il s'agisse du facteur le plus difficile à contrôler.
N19: FAO Animal Production and Health Paper 92 - Manual on meat cold store operation and management, 1991
C33: =Translation!C361 -> Conditions de stockage des produits animaux réfrigérés
F35: =Translation!C362 -> Température | H35: =Translation!C363 -> Humidité relative (%) | I35: =Translation!C364 -> Durée de conservation pratique
F36: Min | G36: Max
E37: =Translation!C365 -> Bœuf | F37: -1.5 | G37: 0 | H37: 90 | I37: 3-5 | J37: =Translation!C371 -> semaines
E38: =Translation!C366 -> Agneau | F38: -1 | G38: 0 | H38: 90-95 | I38: 10-15 | J38: =Translation!C372 -> jours
E39: =Translation!C367 -> Porc | F39: -1.5 | G39: 0 | H39: 90-95 | I39: 1-2 | J39: =Translation!C371 -> semaines
E40: =Translation!C368 -> Veau | F40: -1 | G40: 0 | H40: 90 | I40: 1-3 | J40: =Translation!C371 -> semaines
E41: =Translation!C369 -> Poulet | F41: -1 | G41: 0 | H41: >95 | I41: 7-10 | J41: =Translation!C372 -> jours
E42: =Translation!C370 -> Lapin | F42: -1 | G42: 0 | H42: 90-95 | I42: max. 5 | J42: =Translation!C372 -> jours
C46: =Translation!C373 -> Durée conservation pratique de viande et produits à base de viande à différentes températures de conservation
H48: =Translation!C374 -> Durée conservation pratique en mois
H49: -18 °C | I49: -25 °C | J49: -30 °C
E50: =Translation!C375 -> Carcasse de bœuf | H50: 12 | I50: 18 | J50: 24
E51: =Translation!C376 -> Rôtis, steaks emballés | H51: 12 | I51: 18 | J51: 24
E52: =Translation!C377 -> Viande hachée, emballée (non salée) | H52: 10 | I52: >12 | J52: >12
E53: =Translation!C378 -> Carcasse de veau | H53: 9 | I53: 12 | J53: 24
E54: =Translation!C379 -> Rôtis, côtelettes | H54: 9 | I54: 10-12 | J54: 12
E55: =Translation!C380 -> Carcasse d'agneau | H55: 9 | I55: 12 | J55: 24
E56: =Translation!C381 -> Rôtis, côtelettes | H56: 10 | I56: 12 | J56: 24
E57: =Translation!C382 -> Carcasse de porc | H57: 6 | I57: 12 | J57: 15
E58: =Translation!C383 -> Rôtis, côtelettes | H58: 6 | I58: 12 | J58: 15
E59: =Translation!C384 -> Saucisse hachée | H59: 6 | I59: 10 | J59: -
E60: =Translation!C385 -> Bacon (vert, non fumé) | H60: 2-4 | I60: 6 | J60: 12
E61: =Translation!C386 -> Lard | H61: 9 | I61: 12 | J61: 12
E62: =Translation!C387 -> Volailles, poulets et dindes, éviscérés, bien emballés | H62: 12 | I62: 24 | J62: 24
E64: =Translation!C388 -> Poulet frit | H64: 6 | I64: 9 | J64: 12
E65: =Translation!C389 -> Abats comestibles | H65: 4 | I65: - | J65: -
C68: =Translation!C390 -> Basé sur : | D68: FAO Animal Production and Health Paper 92 - Manual on meat cold store operation and management, 1991

Sheet Dairy
B3: =HYPERLINK("#"&Translation!C9&"!A1",Translation!C9) -> Start | G3: =Translation!C394 -> Refroidissement des produits laitiers
C6: =Translation!C395 -> Le lait est presque stérile lorsqu'il est sécrété par une mamelle saine. Les inhibiteurs naturels présents dans le lait empêchent toute augmentation significative du nombre de bactéries pendant les trois ou quatre premières heures suivant la traite, à température ambiante. Le refroidissement est important pour le lait et les produits laitiers car il Empêche la prolifération des bactéries susceptibles de provoquer des altérations et des intoxications alimentaires. Il préserve la qualité et la fraîcheur en ralentissant les réactions enzymatiques et chimiques. Contribuer à prolonger la durée de conservation en réduisant le taux d'altération et les changements chimiques. Répond aux réglementations et aux normes de sécurité alimentaire qui exigent des températures de stockage appropriées. Il est donc essentiel de refroidir rapidement les produits laitiers à une température de 4 °C ou moins dès que possible après leur production afin de préserver leur qualité et leur sécurité. Le refroidissement à 4 °C dans ce laps de temps permet de conserver la qualité initiale du lait et constitue la méthode de choix pour garantir un lait de bonne qualité pour la transformation et la consommation. Le refroidissement peut se faire en deux étapes : le prérefroidissement suivi d'un refroidissement par réfrigération jusqu'à 4°C. Le pré-refroidissement peut être effectué par un bain d'eau froide et permet de réduire la charge de refroidissement et la taille (et le coût) du système.
N13: =Translation!C397 -> FAO - Passerelle vers la production et les produits laitiers
N15: =Translation!C398 -> Directives techniques et d'investissement pour les centres de refroidissement du lait
C29: =Translation!C396 -> Basé sur : | E29: =Translation!E397 -> FAO - Gateway to dairy production and products
E30: =Translation!C398 -> Directives techniques et d'investissement pour les centres de refroidissement du lait

Sheet Horticulture
B3: =HYPERLINK("#"&Translation!C9&"!A1",Translation!C9) -> Start | G3: =Translation!C402 -> Refroidissement des produits horticoles
C6: =Translation!C403 -> La gestion de la température des fruits et légumes périssables commence par une manipulation adéquate sur le terrain. En règle générale, le produit doit être récolté le matin, lorsqu'il fait le plus frais, afin que la différence entre la température du champ et la température initiale de refroidissement soit la plus faible possible. Les produits doivent être placés à l'ombre pour réduire toute augmentation de température due à la chaleur solaire. Le délai entre la récolte et le premier refroidissement doit être le plus court possible, car les fruits et légumes transpirent et respirent plus rapidement lorsque la température du champ est élevée et se détériorent donc plus rapidement. Les méthodes de refroidissement initial ou de prérefroidissement sont utilisées pour réduire rapidement la chaleur du champ et pour amener le produit à la température de stockage. Le pré-refroidissement des produits horticoles peut prendre la forme d'un refroidissement par air forcé, d'un hydro-refroidissement ou d'un refroidissement par la glace.
C16: =Translation!C404 -> Bien que le refroidissement soit bénéfique pour le stockage des fruits et légumes, des blessures dues au froid ou à la congélation peuvent survenir si les températures deviennent trop basses. Les fruits et légumes d'origine tropicale ou subtropicale sont particulièrement sensibles aux basses températures. À des températures supérieures à 0 °C et inférieures à la température de sécurité la plus basse, les tissus s'affaiblissent parce qu'ils sont incapables de poursuivre les processus métaboliques normaux. Diverses altérations physiologiques et biochimiques ainsi que des dysfonctionnements cellulaires se produisent chez les espèces sensibles au froid en réponse au stress du froid. Lorsque le stress frigorifique se prolonge, divers symptômes de lésions apparaissent, tels que des lésions superficielles, une décoloration interne, un détrempage des tissus ou une absence de maturation normale. Les produits présentant des lésions dues au froid ont généralement un aspect normal lorsqu'ils sont conservés à basse température, mais dès qu'ils sont déplacés vers des températures plus chaudes, les lésions se manifestent.
C26: =Translation!C405 -> La durée de conservation des fruits et légumes dépend des conditions de stockage. Chaque produit a sa propre combinaison d'humidité relative (HR) et de température. La durée de conservation donnée est atteinte lorsque la température et l'humidité relative sont optimales ; plus la température est élevée, plus la durée de conservation augmente. Si la température est inférieure à la température optimale, des lésions dues au froid se produisent.
C31: =Translation!C406 -> Conditions optimales de refroidissement pour différents produits
C33: =Translation!C407 -> Sélectionner le produit : | F33: Broccoli
C34: =Translation!C408 -> Température optimale : | F34: ='Product Database'!S65&" °C" -> 0 °C
C35: =Translation!C409 -> Humidité relative optimale : | F35: ='Product Database'!T65 &" %" -> 98-100 %
C36: =Translation!C410 -> Durée de vie du produit : | F36: ='Product Database'!U65&" "&'Product Database'!V65 -> 2-3 weeks | G36: =IF('Product Database'!W65=0,"",'Product Database'!W65) ->  | H36: =IF(G36="*","*"&Translation!C417,"") ->  | N36: USDA, 2016 - Agricultural Handbook 66 - The commercial Storage of Fruits, Vegetables, and Florists and Nursery Stocks
C37: =Translation!C411 -> Options de prérefroidissement : | F37: =IFERROR('Product Database'!P101,"") -> Ice | G37: =IFERROR('Product Database'!P102,"") -> Hydrocooling | H37: =IFERROR('Product Database'!P103,"") -> Forced Air
C40: =Translation!C413 -> Produits frais susceptibles de subir des dommages dus au froid lorsqu'ils sont stockés à des températures basses mais non glaciales
C43: =Translation!C414 -> Sélectionner les produits : | F43: Cucumbers
C44: =Translation!C415 -> Température secure la plus basse : | F44: ='Product Database'!E65 &" °C" -> 7 °C | G44: =IF('Product Database'!L65=0,"",'Product Database'!L65) ->  | H44: =IF(G44="*","* "&Translation!C417,"") -> 
C45: =Translation!C416 -> Symptômes de lésions : | F45: ='Product Database'!F65 -> Pitting, water-soaked spots, decay
C48: =Translation!C418 -> Sensibilité des fruits et légumes frais aux dommages causés par la congélation
C50: =Translation!C419 -> Les températures de stockage recommandées pour les produits qui ne sont pas susceptibles de subir des dommages dus au froid sont aussi basses que possible, mais légèrement supérieures au point de congélation. Les lésions dues à la congélation se produisent lorsque des cristaux de glace se forment dans les tissus. La sensibilité des différents fruits et légumes frais aux dommages causés par la congélation est très variable. Certains produits peuvent être congelés et décongelés un certain nombre de fois avec peu ou pas de lésions, tandis que d'autres subissent des lésions permanentes même après une légère congélation. Tous les fruits et légumes peuvent être classés en trois catégories en fonction de leur sensibilité à la congélation : Les plus sensibles - ceux qui risquent d'être blessés par une seule congélation légère Modérément sensibles - ceux qui se rétablissent après une ou deux périodes de gel léger Les moins sensibles - ceux qui peuvent être légèrement congelés plusieurs fois sans subir de dommages graves.
D64: =Translation!C420 -> Les plus sensibles | G64: =Translation!C440 -> Modérément sensibles | J64: =Translation!C457 -> Les moins sensibles
D65: =Translation!C421 -> Abricots | G65: =Translation!C441 -> Pommes | J65: =Translation!C458 -> Betterave rouge
D66: =Translation!C422 -> Asperges | G66: =Translation!C442 -> Brocolis | J66: =Translation!C459 -> Choux de Bruxelles
D67: =Translation!C423 -> Avocats | G67: =Translation!C443 -> Carottes | J67: =Translation!C460 -> Chou, à maturité
D68: =Translation!C424 -> Bananes | G68: =Translation!C444 -> Chou-fleur | J68: =Translation!C461 -> Dattes
D69: =Translation!C425 -> Haricots, haricots à croquer | G69: =Translation!C445 -> Céleri | J69: =Translation!C462 -> Chou vert
D70: =Translation!C426 -> Baies (sauf canneberges) | G70: =Translation!C446 -> Airelles rouges | J70: =Translation!C463 -> Chou-rave
D71: =Translation!C427 -> Concombres | G71: =Translation!C447 -> Pamplemousse | J71: =Translation!C464 -> Panais
D72: =Translation!C428 -> Aubergines | G72: =Translation!C448 -> Raisins | J72: =Translation!C465 -> Rutabagas
D73: =Translation!C429 -> Citrons | G73: =Translation!C449 -> Oignon (sec) | J73: =Translation!C466 -> Salsifis
D74: =Translation!C430 -> Laitue | G74: =Translation!C450 -> Oranges | J74: =Translation!C467 -> Navet
D75: =Translation!C431 -> Limes | G75: =Translation!C451 -> Persil
D76: =Translation!C432 -> Okra | G76: =Translation!C452 -> Poires
D77: =Translation!C433 -> Pêches | G77: =Translation!C453 -> Pois
D78: =Translation!C434 -> Poivrons doux | G78: =Translation!C454 -> Radis
D79: =Translation!C435 -> Prunes | G79: =Translation!C455 -> Épinards
D80: =Translation!C436 -> Pommes de terre | G80: =Translation!C456 -> Courges d'hiver
D81: =Translation!C437 -> Courge, été
D82: =Translation!C438 -> Pommes de terre douces
D83: =Translation!C439 -> Tomates
C88: =Translation!C468 -> Basé sur : | E88: USDA, 2016 - Agricultural Handbook 66 - The commercial Storage of Fruits, Vegetables, and Florists and Nursery Stocks
C93: =Translation!C469 -> Autres paramètres de l'entreposage frigorifique des produits horticoles : humidité relative et éthylène
C95: =Translation!C470 -> Outre la température, l'humidité relative et la teneur en éthylène sont des paramètres qu'il convient de surveiller pour obtenir les meilleures conditions de refroidissement. L'humidité relative a un impact sur la perte d'eau, le pourrissement, les troubles physiologiques et l'uniformité de la maturation. Les niveaux d'humidité relative doivent être élevés et saturés pour la plupart des types de produits. L'éthylène a un impact sur la durée de conservation : si certains produits sont producteurs d'éthylène après la récolte, d'autres sont sensibles à l'exposition à l'éthylène. Par conséquent, si les produits ne peuvent pas être stockés séparément, il convient de tenir compte de leurs exigences en matière de température, d'humidité relative et de production/exposition à l'éthylène. | N95: FAO, 2004 - Manual for the preparation and sale of fruits and vegetables

Sheet Sustainability
B3: =HYPERLINK("#"&Translation!C9&"!A1",Translation!C9) -> Start | G3: =Translation!C481 -> Sustanibilité des solutions de réfrigération
C6: =Translation!C474 -> Le refroidissement solaire est-il écologique en soi ?
C8: =Translation!C475 -> De nombreuses personnes et organisations pensent qu'en optant pour des systèmes de refroidissement solaire, elles optent pour une technologie verte, respectueuse du climat et de l'environnement. Cependant, de nombreux systèmes ont encore des effets négatifs, liés aux composants et aux matériaux utilisés. L'aspect positif de l'alimentation du système par des énergies renouvelables peut être contrebalancé par l'impact négatif des réfrigérants ou des matériaux d'isolation sur la couche d'ozone ou l'effet de serre. De même, l'utilisation de batteries a un effet sur l'empreinte élevée des émissions de gaz à effet de serre pendant la fabrication et le transport.
C14: =Translation!C476 -> Quels sont les points à prendre en compte dans les systèmes respectueux de l'environnement ?
C17: =Translation!C477 -> 1. Panneaux photovoltaïques Les panneaux photovoltaïques ont une durée de vie d'environ 25 ans, ce qui en fait un investissement à long terme. Il est donc essentiel de choisir des panneaux de haute qualité et uniformes. 2. Les batteries En raison des caractéristiques de l'énergie solaire, avec un nombre limité d'heures d'ensoleillement par jour et des fluctuations quotidiennes, un stockage d'énergie est important pour permettre un refroidissement 24 heures sur 24. L'utilisation de batteries classiques au plomb ou au lithium-ion entraîne une augmentation des coûts du système et des émissions de gaz à effet de serre. De nos jours, le stockage d'énergie thermique est de plus en plus utilisé pour remplacer au moins partiellement les batteries. Cela permet de réduire les coûts du système et les émissions de gaz à effet de serre. Cette option devrait toujours être envisagée, mais elle dépend fortement des caractéristiques du système. 3. Les fluides frigorigènes Les réfrigérants peuvent s'échapper dans l'environnement lors d'un mauvais remplissage du cycle de réfrigération ou en cas de fuites. Une fois libérés dans l'atmosphère, ils ont un certain potentiel de réchauffement global (PRG), ce qui augmente l'effet de serre et, par conséquent, la température de la Terre. Outre le PRG, les réfrigérants peuvent également avoir un potentiel d'appauvrissement de la couche d'ozone (PAO), lorsque leur rejet dégrade la couche d'ozone. Lors du choix d'un système de refroidissement solaire, il convient d'utiliser un réfrigérant ayant un faible potentiel de gaz à effet de serre et de réchauffement de la planète. Les réfrigérants naturels, en particulier, entrent dans cette catégorie. 4. Panneaux d'isolation Plus le système de refroidissement est bien isolé, moins il faut de puissance pour compenser la charge de transmission (pertes dues à la différence de température à l'intérieur et à l'extérieur de la chambre de refroidissement). Une bonne isolation est donc une caractéristique essentielle de la chambre de refroidissement. Cependant, la plupart des matériaux d'isolation contiennent des agents gonflants sous forme de petites bulles qui augmentent la résistance thermique. Les agents gonflants peuvent contenir des substances qui appauvrissent la couche d'ozone et ont un PRP élevé lorsqu'ils se répandent dans l'atmosphère au fil du temps. Lors du choix d'un système de refroidissement solaire, le type de matériau d'isolation doit être pris en compte. Il est recommandé de choisir un matériau d'isolation à base d'agents gonflants naturels. 5. Pièces de rechange Les pièces de rechange sont essentielles pour assurer un fonctionnement continu et durable. S'il n'existe pas de revendeurs locaux du système qui assurent également le service après-vente et les réparations (garantissant un approvisionnement continu en pièces détachées), il est fortement recommandé de commander toutes les pièces détachées nécessaires lors de l'achat initial du système. Il est également conseillé de construire des systèmes avec autant de matériaux disponibles localement que possible. Ils seront plus faciles à réparer en cas de panne et donc plus durables. 6. Exploitation et maintenance Les technologies durables ne devraient pas être mises en œuvre sans que la durabilité du projet lui-même ne soit d'abord prise en compte. Pour une mise en œuvre réussie, la disponibilité d'un service technique capable de maintenir le système dans des conditions optimales tout au long de la durée de vie du projet est vitale. Pour garantir la disponibilité du personnel technique sur le terrain, il convient de faciliter la mise en œuvre de projets durables d'éducation/de développement des capacités dans la région concernée. En règle générale, seuls des techniciens (et des entreprises) formés devraient installer, entretenir et réparer le système solaire, afin d'assurer les meilleures performances possibles et d'éviter les risques ou de minimiser l'impact sur l'environnement et le climat. 7. Fin de vie Tous les composants du système (en particulier les batteries, les panneaux solaires), les réfrigérants et les matériaux (en particulier les plaques d'isolation) doivent être gérés et éliminés de la meilleure façon possible afin d'éviter tout impact négatif sur l'environnement.
N32: =HYPERLINK("#"&"Refrigerants"&"!A1",Translation!C478) -> Réfrigérants
C70: =Translation!C479 -> Basé sur : | E70: GIZ, 2022 - Sustainable, environmentally and climate-friendly solar-powered walk-in cold rooms | N70: GIZ, 2022 - Sustainable, environmentally and climate-friendly solar-powered walk-in cold rooms

Sheet Refrigerants
B3: =HYPERLINK("#"&Translation!C9&"!A1",Translation!C9) -> Start | F3: =Translation!C533 -> Fluides frigorigènes
C6: =Translation!C534 -> Les réfrigérants sont des fluides de travail utilisés dans le cycle de réfrigération des systèmes de refroidissement. Ils subissent une transition de phase répétée d'un liquide à un gaz et vice-versa. Ce faisant, ils peuvent éliminer la chaleur indésirable d'un endroit (par exemple, l'intérieur d'un réfrigérateur) à un autre (à l'extérieur du réfrigérateur). Les réfrigérants possèdent différentes caractéristiques qui sont prises en compte dans la conception des systèmes de refroidissement, telles que le point d'ébullition, la chaleur de vaporisation, les densités dans différents états et la température critique. Les réfrigérants peuvent s'échapper dans l'environnement lors d'un mauvais remplissage du cycle de réfrigération ou en cas de fuites. Une fois libérés dans l'atmosphère, ils ont un certain potentiel de réchauffement global (PRG), ce qui augmente l'effet de serre et, par conséquent, la température de la Terre. Outre le PRG, les réfrigérants peuvent également avoir un potentiel d'appauvrissement de la couche d'ozone (PAO), lorsque leur rejet dégrade la couche d'ozone. Un certain nombre de réglementations ont été mises en place pour éliminer progressivement les réfrigérants nocifs ayant un PRP et un PAO élevés.
C12: =Translation!C535 -> Idéalement, les réfrigérants doivent être non corrosifs, non toxiques, ininflammables, sans PDO ni PRP, bien étudiés et à faible impact sur l'environnement. Les réfrigérants naturels sont une alternative aux réfrigérants synthétiques tels que le chlorofluorocarbone (CFC), l'hydrochlorofluorocarbone (HCFC) et l'hydrofluorocarbone (HFC). Les réfrigérants naturels ont un degré de durabilité beaucoup plus élevé et ont un fort potentiel pour convertir le secteur de la réfrigération et de la climatisation. Il s'agit notamment du R-170 (éthane), du R-744 (dioxyde de carbone), du R-717 (ammoniac), du R-600a (n-butane) et du R-290 (propane).
C18: Type | D18: Product / R-Number | E18: ODP | G18: GWP
C19: HFC | D19: 23 | E19: 0 | F19: Zero | G19: 14800 | H19: High
C20: HFC | D20: 508B | E20: 0 | F20: Zero | G20: 13396 | H20: High
C21: CFC | D21: 12 | E21: 1 | F21: High | G21: 10900 | H21: High
C22: CFC | D22: 502 | E22: 0.33 | F22: High | G22: 4657 | H22: High
C23: HFC | D23: 507A | E23: 0 | F23: Zero | G23: 3985 | H23: High
C24: HFC | D24: 404A | E24: 0 | F24: Zero | G24: 3922 | H24: High
C25: HFC | D25: MO89 | E25: 0 | F25: Zero | G25: 3805 | H25: High | W25: Linde - Refrigerant Datasheet
C26: HFC | D26: 428A | E26: 0 | F26: Zero | G26: 3607 | H26: High | W26: Danfoss - Refrigerant Portal
C27: HFC | D27: 434A | E27: 0 | F27: Zero | G27: 3245 | H27: High | W27: How refrigerants work
C28: HCFC | D28: 408A | E28: 0.024 | F28: Medium | G28: 3152 | H28: High | W28: Wikipedia - Natural refrigerants
C29: HFC | D29: 422A | E29: 0 | F29: Zero | G29: 3143 | H29: High
C30: HCFC | D30: 402A | E30: 0.019 | F30: Medium | G30: 2788 | H30: High
C31: HFC | D31: 422D | E31: 0 | F31: Zero | G31: 2729 | H31: High
C32: HFC | D32: 424A | E32: 0 | F32: Zero | G32: 2440 | H32: Medium
C33: HCFC | D33: 402B | E33: 0.03 | F33: Medium | G33: 2416 | H33: Medium
C34: HFC | D34: 417A | E34: 0 | F34: Zero | G34: 2346 | H34: Medium
C35: HFC | D35: 423A | E35: 0 | F35: Zero | G35: 2280 | H35: Medium
C36: HFC | D36: 438A | E36: 0 | F36: Zero | G36: 2265 | H36: Medium
C37: HFC | D37: 427A | E37: 0 | F37: Zero | G37: 2138 | H37: Medium
C38: HFC | D38: 407A | E38: 0 | F38: Zero | G38: 2107 | H38: Medium
C39: HFC | D39: 407F | E39: 0 | F39: Zero | G39: 2088 | H39: Medium
C40: HCFC | D40: 409A | E40: 0.046 | F40: Medium | G40: 1909 | H40: Medium
C41: HFC | D41: 442A | E41: 0 | F41: Zero | G41: 1888 | H41: Medium
C42: HCFC | D42: 22 | E42: 0.055 | F42: Medium | G42: 1810 | H42: Medium
C43: HFC | D43: 437A | E43: 0 | F43: Zero | G43: 1805 | H43: Medium
C44: HFC | D44: 407C | E44: 0 | F44: Zero | G44: 1774 | H44: Medium
C45: HFC | D45: 134a | E45: 0 | F45: Zero | G45: 1430 | H45: Medium
C46: HCFC | D46: 401B | E46: 0.036 | F46: Medium | G46: 1288 | H46: Medium
C47: HCFC | D47: 401A | E47: 0.033 | F47: Medium | G47: 1182 | H47: Medium
C48: HFC | D48: 32 | E48: 0 | F48: Zero | G48: 675 | H48: Medium
C49: HCFC | D49: 123 | E49: 0.06 | F49: Medium | G49: 77 | H49: Low
C50: HFO | D50: 1234ze | E50: 0 | F50: Zero | G50: 6 | H50: Low
C51: Natural | D51: 170 | E51: 0 | F51: Zero | G51: 6 | H51: Low
C52: HFO | D52: 1234yf | E52: 0 | F52: Zero | G52: 4 | H52: Low
C53: Natural | D53: 1150 | E53: 0 | F53: Zero | G53: 4 | H53: Low
C54: Natural | D54: 290 | E54: 0 | F54: Zero | G54: 3 | H54: Low
C55: Natural | D55: 600a | E55: 0 | F55: Zero | G55: 3 | H55: Low
C56: Natural | D56: 1270 | E56: 0 | F56: Zero | G56: 2 | H56: Low
C57: Natural | D57: 744 | E57: 0 | F57: Zero | G57: 1 | H57: Low
C58: Natural | D58: 717 | E58: 0 | F58: Zero | G58: 0 | H58: Zero
C60: =Translation!C537 -> GWP = potentiel de réchauffement sur 100 ans d'un kilogramme de gaz par rapport à un kilogramme de CO2
C61: =Translation!C538 -> ODP = Quantité relative de dégradation de la couche d'ozone, le R-11 étant fixé à un PDO de 1,0.

Sheet Fish_Ice
B3: =HYPERLINK("#"&Translation!C9&"!A1",Translation!C9) -> Start
B4: =HYPERLINK("#"&Translation!C11&"!A1",Translation!C11) -> Glace | D4: =Translation!C483 -> Calcul de la quantité de glace nécessaire pour refroidir le poisson dans des boîtes
B5: =HYPERLINK("#"&Translation!C17&"!A1",Translation!C17) -> Poisson
C9: =Translation!C484 -> Masse du poisson | D9: 20 | E9: kg | F9: =Translation!C495 -> Masse de la prise attendue | K9: =Translation!C506 -> Chaleur spécifique du poisson | M9: 3.35 | N9: kJ/kg°C | O9: =Translation!C511 -> Chaleur spécifique du poisson. 3,35 kJ/kg°C peut être utilisé s'il y a un mélange d'espèces ou si tous les poissons sont maigres.
C10: =Translation!C485 -> Température initiale | D10: 25 | E10: °C | F10: =Translation!C496 -> Température initiale du poisson | K10: =Translation!C507 -> Densité du poisson | M10: 1040 | N10: kg/m³ | O10: =Translation!C512 -> Densité du poisson.
C11: =Translation!C486 -> Température finale | D11: 5 | E11: °C | F11: =Translation!C497 -> Température finale requise du poisson | K11: =Translation!C508 -> Fraction de vide dans la boîte | M11: 30 | N11: % | O11: =Translation!C513 -> Les espaces entre le poisson et la glace peuvent être considérés comme une porosité. Si le poisson est plus gros, le vide peut être plus important.
K12: =Translation!C509 -> Remplissage de la boîte | M12: 100 | N12: % | O12: =Translation!C514 -> La hauteur en pourcentage de la boîte remplie de poisson et de glace.
C13: =Translation!C487 -> Température ambiante | D13: 25 | E13: °C | F13: =Translation!C498 -> Température ambiante pendant le refroidissement | K13: =Translation!C510 -> Pertes de glace | M13: 5 | N13: % | O13: =Translation!C515 -> Pertes de glace dues au transport ou à des pertes accidentelles.
C14: =Translation!C488 -> Température de la boîte | D14: 0 | E14: °C | F14: =Translation!C499 -> Température à l'intérieur de la boîte
C15: =Translation!C489 -> Durée du refroidissement | D15: 5 | E15: h | F15: =Translation!C500 -> Période de refroidissement pour la capture
C17: =Translation!C490 -> Longueur | D17: 1 | E17: m | F17: =Translation!C501 -> Dimensions de la boîte
C18: =Translation!C491 -> Largeur | D18: 0.5 | E18: m | F18: =Translation!C502 -> Dimensions de la boîte
C19: =Translation!C492 -> Hauteur | D19: 0.3 | E19: m | F19: =Translation!C503 -> Dimensions de la boîte
C20: =Translation!C493 -> Epaisseur de l'isolation | D20: 0.04 | E20: m | F20: =Translation!C504 -> Épaisseur du matériau isolant (parois)
C21: =Translation!C494 -> Conductivité de l'isolation | D21: 0.03 | E21: W/mK | F21: =Translation!C505 -> Conductivité thermique du matériau d'isolation
C24: =Translation!C516 -> Résultats :
C26: =Translation!C523&" "&D10&"°C "&Translation!C518&" "&D11&"°C :" -> Glace nécessaire pour le refroid. de 25°C à 5°C : | G26: =ROUND(Calculation!D54,1)&" kg" -> 4 kg
C27: =Translation!C519&" "&D14&" °C "&Translation!C520&" "&D15&" "&Translation!C521 -> Glace pour garder la temp. de la boîte à 0 °C pendant 5 heures: | G27: =ROUND(Calculation!D55,1)&" kg" -> 1,9 kg
C28: =Translation!C522 -> Glace nécessaire pour tenir compte des pertes éventuelles: | G28: =ROUND(Calculation!D56,1)&" kg" -> 0,3 kg | L28: =Translation!C529 -> Basé sur: | M28: Ice in fisheries - FAO Fisheries technical paper 331, 1992
C29: =Translation!C523&" "&D9&" "&Fish_Ice!C497&Translation!C524&" "&D15& " h :" -> Glace nécessaire pour le refroid. de 20 kg de poisson pendant 5 h : | G29: =ROUND(Calculation!D57,1)&" kg" -> 6,2 kg | M29: Calculating Quantities of Ice for Cooling and Maintenance of Freshly Harvested Fish at Sea - Davey, 2012
C31: =Translation!C526 -> Nombre de boîtes nécessaires: | G31: =Calculation!D32 -> 1
C32: =Translation!C527 -> Glace par caisse: | G32: =ROUND(Calculation!D59,1)&" kg" -> 5,9 kg
C33: =Translation!C528 -> Poisson par boîte: | G33: =ROUND(Calculation!D60,1)&" kg" -> 20 kg

Sheet Research (hidden)
B3: =HYPERLINK("#"&Translation!C9&"!A1",Translation!C9) -> Start | F3: Ongoing Research in the field of Solar Powered Cooling Systems
C6: Research Institute / Company | F6: Research Topic and short description | O6: Name Contact Person | Q6: Website / more information material

Sheet Supplier_Request
B3: =HYPERLINK("#"&Translation!C9&"!A1",Translation!C9) -> Start | F3: =Translation!C542 -> Exemple de demande aux fournisseurs
K8: =TODAY() -> 2024-10-29 | N8: =Translation!C543 -> Cette fiche permet d'indiquer toutes les informations pertinentes dont un fournisseur de solutions de refroidissement solaire a besoin pour dimensionner le système en conséquence. Le formulaire peut être rempli et imprimé pour approcher les fournisseurs.
D12: =Translation!C546 -> A : ABC Cooling Company Rue de la climatisation 1 55555 Icetown Antarctique Téléphone : 123123123 cooling@coolcompany.com
J13: =Translation!C547 -> Utilisateur de l'outil cool Rue de l'utilisateur de Cool Tool Adresse de l'utilisateur de Cool Tool Pays de l'utilisateur de Cool Tool Numéro de téléphone : 123456 Email : Cooltooluser@cooltool.com
N19: =Translation!C544 -> Informations pertinentes pour le fournisseur :
N21: =Translation!C545 -> • Emplacement de l'installation (pays, coordonnées) • Objectif de l'installation (Pré-refroidissement, Refroidissement, Congélation...) • Températures ambiantes tout au long de l'année • Produit à refroidir • Température finale du produit • Humidité relative pendant le stockage • Temps nécessaire pour que le produit atteigne sa température finale • Charge de refroidissement (quantité de produit à refroidir par jour) • Durée pendant laquelle le produit bénéficiera du refroidissement • Besoin en réfrigérant • Transport et installation • Garantie
D23: =Translation!C548 -> A propos de : Demande de devis pour Solar Cold Storage
D26: =Translation!C549 -> "Cher ABC Cooling Company, Nous prévoyons d'acquérir un entrepôt frigorifique alimenté par énergie solaire pour notre projet dans le nord du Kenya. Veuillez trouver ci-dessous les spécifications requises. Nous serions heureux de recevoir une proposition technique et un devis de votre site. Le système doit être installé dans le comté de Turkana, près de Kataboi (coordonnées : 3°45'13.4""N 35°49'52.8""E). La température moyenne tout au long de l'année est de 29 °C. Le système est utilisé pour refroidir les produits agricoles jusqu'à une température de 10 °C. L'humidité relative doit être de 90 %. L'entrepôt frigorifique doit répondre aux exigences suivantes : - Refroidissement de mangues et d'ananas - Solution conteneurisée (20 pieds) ou autre solution de stockage pouvant être installée à l'extérieur. - Alimentation solaire à l'aide de panneaux solaires montés sur le dessus du conteneur. - Plage de température de la chambre froide entre 5°C et 10°C avec des températures ambiantes allant jusqu'à 35°C. - Température requise pour le produit : 10°C - Capacité de transport > 5 000 kg - Volume intérieur de la chambre de refroidissement : environ 20 m³. En outre, les services suivants sont nécessaires : - Installation de l'équipement Kataboi - Formation des opérateurs - Assistance après-vente et dépannage - Garantie de 2 ans et maintenance Veuillez inclure dans le devis les frais de transport et d'installation ainsi que la TVA. Je vous prie d'agréer, Madame, Monsieur, l'expression de mes salutations distinguées, Utilisateur de SolarCoolTool"
N40: =Translation!C550 -> Plus d'information sûr tout le processus peut être trouvé sur:
O41: Walk-In Cold Rooms, a Practitioner's Technical Guide - Efficiency for Access

Sheet Container_Supplier
B3: =HYPERLINK("#"&Translation!C9&"!A1",Translation!C9) -> Start | E3: =Translation!C553 -> Liste des fournisseurs pour Chambres froides solaires en conteneur
B4: =HYPERLINK("#"&Translation!C10&"!A1",Translation!C220) -> Conteneur - Solutions
D8: =Translation!C554 -> Nom de l'entreprise | E8: =Translation!C555 -> Pays d'origine | F8: =Translation!C556 -> Solution | I8: =Translation!C557 -> Plage de température | K8: =Translation!C566 -> Réfrigérant respectueux de l'environnement | L8: =Translation!C558 -> Contact | M8: =Translation!C559 -> Site web | N8: =Translation!C560 -> Partenaire dans les pays | O8: =Translation!C561 -> Plus d'informations
F9: 10-foot | G9: 20-foot | H9: 40-foot | I9: Min °C | J9: Max °C
D10: CSCPower | E10: China | G10: x | H10: x | L10: alice@cscpower.net | M10: Link
D11: ATLASCOOL | E11: China | I11: -25 | J11: 5 | L11: info@atlascool.com | M11: Link
D12: Freecold | E12: France | G12: x | H12: x | L12: info@freecold.com | M12: Link
D13: Solar Cooling Technologies | E13: Germany | G13: x | H13: x | K13: =Translation!C567 -> Oui | L13: info@solar-cooling-technologies.com | M13: Link | N13: Kenya
D14: Ecozen | E14: India | G14: x | K14: =Translation!C567 -> Oui | L14: info@ecozensolutions.com | M14: Link | N14: Kenya | O14: =Translation!C562 -> Modèle d'avance, de bail et de location, modèle communautaire
D15: Inficold | E15: India | G15: x | H15: x | I15: 4 | J15: 20 | K15: =Translation!C567 -> Oui | L15: info@inficold.com | M15: Link
D16: Tree_Sea.mals | E16: Kenya | F16: x | G16: x | H16: x | I16: 2 | J16: 20 | L16: info@treeseamals.org | M16: Link
D17: Solar Freez | E17: Kenya | L17: info@solarfreeze.co.ke | M17: Link | O17: =Translation!C563 -> Modèle d'entreposage frigorifique en tant que service
D18: SokoFresh | E18: Kenya | G18: x | K18: =Translation!C567 -> Oui | L18: info@sokofresh.co.ke | M18: Link | O18: =Translation!C564 -> Entreposage frigorifique sous forme de service, coopération avec Ecozen
D19: W. Giertsen Energy Solutions | E19: Norway | G19: x | I19: -5 | J19: 15 | K19: =Translation!C567 -> Oui | L19: post@giertsen.no | M19: Link | N19: Kenya
D20: Aldelano | E20: USA | G20: x | H20: x | L20: info@aldelano.com | M20: LInk
D21: GCS Mobile Solutions | E21: Germany | H21: x | L21: info@fridge-tent.com | M21: Link
D34: =Translation!C565 -> Vous êtes une entreprise et vous souhaitez que votre solution soit listée ici ? Contactez we4f@giz.de

Sheet ColdRoom_Supplier
B3: =HYPERLINK("#"&Translation!C9&"!A1",Translation!C9) -> Start | E3: =Translation!C569 -> Liste des fournisseurs pour Chambres froides solaires
B4: =HYPERLINK("#"&Translation!C15&"!A1",Translation!C291) -> Chambre froide - Solutions
D8: =Translation!C570 -> Nom de l'entreprise | E8: =Translation!C571 -> Pays d'origine | F8: =Translation!C572 -> Volume (m³) | G8: =Translation!C573 -> Plage de température | I8: =Translation!C579 -> Réfrigérant respectueux de l'environnement | J8: =Translation!C574 -> Contact | K8: =Translation!C575 -> Site web | L8: =Translation!C576 -> Partenaire dans les pays | M8: =Translation!C577 -> Plus d'informations
G9: Min °C | H9: Max °C
D10: Inspira Farms | E10: Kenya | J10: info@www.inspirafarms.com | K10: Link
D11: Freecold | E11: France | F11: 10 - 50 | J11: info@freecold.com | K11: Link
D12: CSCPower | E12: China | J12: alice@cscpower.net | K12: Link
D13: Solar Cooling Engineering | E13: Germany | F13: 20 | I13: =Translation!C580 -> Oui | J13: info@solar-cooling-engineering.com | K13: Link | L13: Kenya
D14: Solar Cooling Technologies | E14: Germany | F14: 10 - 20 | G14: -5 | H14: 15 | J14: info@solar-cooling-technologies.com | K14: Link | L14: Kenya
D15: Sheffield Africa | E15: Kenya | J15: info@sheffieldafrica.com | K15: Link
D16: ColdHubs | E16: Nigeria | I16: =Translation!C580 -> Oui | J16: info@coldhubs.com | K16: LInk
D17: Ecolife Foods | E17: Uganda | K17: Link
D18: FreshBox | E18: Kenya | K18: Link
D19: Koolboks | E19: France | J19: ayod@koolboks.com | K19: Link | L19: Kenya, Nigeria, Ghana
D20: Phaesun | E20: Germany | I20: =Translation!C580 -> Oui | J20: info@phaesun.com | K20: Link
D21: SelfChill | E21: Germany | I21: =Translation!C580 -> Oui | J21: info@selfchill.org | K21: Link
D22: W. Giertsen Energy Solutions | E22: Norway | I22: Yes | J22: post@giertsen.no | K22: Link | L22: Kenya
D34: =Translation!C578 -> Vous êtes une entreprise et vous souhaitez que votre solution soit listée ici ? Contactez we4f@giz.de

Sheet Ice_flake_Supplier
B3: =HYPERLINK("#"&Translation!C9&"!A1",Translation!C9) -> Start | E3: =Translation!C582 -> Liste des fournisseurs pour Machines de flocons glace
B4: =HYPERLINK("#"&Translation!C11&"!A1",Translation!C11) -> Glace
D8: =Translation!C583 -> Nom de l'entreprise | E8: =Translation!C584 -> Pays d'origine | F8: =Translation!C585 -> Contact | G8: =Translation!C586 -> Site web | H8: =Translation!C587 -> Partenaire dans les pays | I8: =Translation!C588 -> Plus d'informations
D10: Focusun | E10: China | F10: sales@focusun.com | G10: Link | L10: =HYPERLINK("#"&"Performance"&"!A1",Translation!C589) -> Données supplémentaires sur les performances
D11: Külinda | E11: Germany | F11: info@kuelinda.de | G11: Link
D12: Fahrentec | E12: China | F12: info@fahrentec-corp.com | G12: Link
D13: CBFI | E13: China | F13: sale@icemakerchina.com | G13: Link
D14: OMT | E14: China | F14: sales@omticemachines.com | G14: Link
D15: Ziegra | E15: UK | F15: ice@ziegra.co.uk | G15: Link
D16: Ziegra | E16: Germany | F16: ice@ziegra.com | G16: Link
D17: NorthStar | E17: USA | F17: info@northstarice.com | G17: Link
D18: Tamutom | E18: Turkey | F18: ice@tamutom.com | G18: Link
D19: Flakeicemac | E19: China | F19: ice@flakeicemac.com | G19: Link
D20: Recom | E20: Netherlands | F20: info@recom-ice.com | G20: Link
D21: Huaxian | E21: China | F21: sales@huaxianfresh.com | G21: Link
D22: Termodizayn | E22: Turkey | F22: info@termodizayn.com | G22: Link
D23: Industrial Refrigeration PVT. | E23: India | F23: info@irl.co.in | G23: Link
D24: Sindeice Systems | E24: China | F24: sales@sindeicemachine.com | G24: Link
D34: =Translation!C590 -> Vous êtes une entreprise et vous souhaitez que votre solution soit listée ici ? Contactez we4f@giz.de

Sheet Performance_ice_flakes
B3: =HYPERLINK("#"&Translation!C9&"!A1",Translation!C9) -> Start | F3: =Translation!C594 -> Performances de différentes machines à glace écailles
B4: =HYPERLINK("#"&Translation!C28&"!A1",Translation!C28) -> Fournisseur_flocons_glace
D8: =Translation!C595 -> Glace par jour (t / 24 h) | Q8: =Translation!C596 -> Conditions de travail
C9: =Translation!C603 -> Glace journalière Fabricant | D9: 0.5 | E9: 0.8 | F9: 1 | G9: 1.5 | H9: 2 | I9: 2.5 | J9: 3 | K9: 5 | L9: 8 | M9: 10 | N9: 12 | O9: 15 | P9: 20 | Q9: =Translation!C597 -> T° ambiante | R9: =Translation!C598 -> T° de l'eau | S9: =Translation!C599 -> T° du condenseur | T9: =Translation!C600 -> T° d'évaporation | U9: =Translation!C601 -> Réfrigérant
B10: =Translation!C602 -> Consommation électrique (kW) | C10: Focusun | D10: 2.56 | E10: 4.43 | F10: 5.16 | G10: 7.72 | H10: 11.17 | I10: 12.62 | J10: 14.35 | K10: 15.2 | L10: 22.55 | M10: 30.6 | N10: 39.6 | O10: 51.6 | P10: 69.7 | Q10: 35 | R10: 20 | U10: R404A
C11: Fahrentec | D11: 4.5 | F11: 5.4 | H11: 8.5 | J11: 11.4 | K11: 22.4 | M11: 50.2 | P11: 84 | Q11: 35 | R11: 20 | S11: 40 | T11: -20 | U11: R404A
C12: CBFI | D12: 4.1 | F12: 7.44 | H12: 10 | J12: =8.45+0.37+1.5 -> 10.32 | K12: =13.49+0.75+2.2 -> 16.44 | L12: =24.2+1.5+2.2 -> 27.9 | M12: =33.8+1.5+4 -> 39.3 | O12: 50 | P12: 71 | Q12: 32 | R12: 20 | S12: 38 | T12: -20 | U12: R404A / R22
C13: OMT | D13: =1.8+0.37+0.15+0.11 -> 2.43 | F13: =4.5+0.37+0.15+0.22 -> 5.24 | H13: =7.5+0.37+0.15+0.75 -> 8.77 | J13: =9+0.37+0.15+0.75 -> 10.27 | K13: =15+0.37+0.15+2.2+1.5 -> 19.22 | L13: =22.5+0.75+0.4+4+1.5 -> 29.15 | M13: =30+0.75+0.4+4+1.5 -> 36.65 | O13: =60+1.5+0.55+4+1.5 -> 67.55 | P13: =66.5+0.75+0.4+5.5+2.2 -> 75.35 | Q13: 25 | R13: 21 | S13: 40 | T13: -20 | U13: R404A / R22
C14: Ziegra | D14: 2.3 | F14: 4.3 | H14: 5.6 | I14: 10.13 | J14: 12 | K14: 21 | L14: 30 | M14: 40 | Q14: 35 | R14: 25 | S14: 45 | T14: -21 | U14: R404A
C15: Flakeicemac | D15: 2.88 | E15: 4.76 | F15: 4.76 | G15: 7.42 | H15: 9.25 | I15: 10.32 | J15: 12.91 | K15: 23.12 | L15: 31.5 | M15: 45.5 | O15: 64 | P15: 75.8 | U15: R404A / R22
C16: Recom | J16: 11 | K16: 18 | L16: 31 | M16: 40 | O16: 57 | P16: 70 | Q16: 40 | R16: 25 | T16: -22 | U16: R404A / R22
C17: Termodizayn | D17: 2.5 | F17: 3.4 | J17: 9.76 | K17: 17.9 | L17: 27.24 | M17: 26.8 | O17: 53.6 | P17: 60 | Q17: 33 | R17: 20 | S17: 43 | T17: -22 | U17: R404A
C18: Average: | D18: =AVERAGE(D10:D17) -> 3.038571429 | E18: =AVERAGE(E10:E17) -> 4.595 | F18: 5.1 | G18: 7.57 | H18: 8.881666667 | I18: 11.02333333 | J18: 11.50125 | K18: 19.16 | L18: 28.47714286 | M18: 38.63125 | N18: 39.6 | O18: 57.29166667 | P18: 72.26428571
C36: =Translation!C604 -> Attention : Les conditions de fonctionnement varient entre les différentes alternatives (température ambiante, température de l'eau, fluide frigorigène utilisé) et rendent difficile une comparaison directe.

Sheet GWP ordered for diagram (hidden)
C3: Type | D3: Product / R-Number | E3: ODP | G3: GWP
C4: Natural | D4: 717 | E4: 0 | F4: Zero | G4: 0 | H4: Zero
C5: Natural | D5: 744 | E5: 0 | F5: Zero | G5: 1 | H5: Low
C6: Natural | D6: 1270 | E6: 0 | F6: Zero | G6: 2 | H6: Low
C7: Natural | D7: 290 | E7: 0 | F7: Zero | G7: 3 | H7: Low
C8: Natural | D8: 600a | E8: 0 | F8: Zero | G8: 3 | H8: Low
C9: HFO | D9: 1234yf | E9: 0 | F9: Zero | G9: 4 | H9: Low
C10: Natural | D10: 1150 | E10: 0 | F10: Zero | G10: 4 | H10: Low
C11: HFO | D11: 1234ze | E11: 0 | F11: Zero | G11: 6 | H11: Low
C12: Natural | D12: 170 | E12: 0 | F12: Zero | G12: 6 | H12: Low
C13: HCFC | D13: 123 | E13: 0.06 | F13: Medium | G13: 77 | H13: Low
C14: HFC | D14: 32 | E14: 0 | F14: Zero | G14: 675 | H14: Medium
C15: HCFC | D15: 401A | E15: 0.033 | F15: Medium | G15: 1182 | H15: Medium
C16: HCFC | D16: 401B | E16: 0.036 | F16: Medium | G16: 1288 | H16: Medium
C17: HFC | D17: 134a | E17: 0 | F17: Zero | G17: 1430 | H17: Medium
C18: HFC | D18: 407C | E18: 0 | F18: Zero | G18: 1774 | H18: Medium
C19: HFC | D19: 437A | E19: 0 | F19: Zero | G19: 1805 | H19: Medium
C20: HCFC | D20: 22 | E20: 0.055 | F20: Medium | G20: 1810 | H20: Medium
C21: HFC | D21: 442A | E21: 0 | F21: Zero | G21: 1888 | H21: Medium
C22: HCFC | D22: 409A | E22: 0.046 | F22: Medium | G22: 1909 | H22: Medium
C23: HFC | D23: 407F | E23: 0 | F23: Zero | G23: 2088 | H23: Medium
C24: HFC | D24: 407A | E24: 0 | F24: Zero | G24: 2107 | H24: Medium
C25: HFC | D25: 427A | E25: 0 | F25: Zero | G25: 2138 | H25: Medium
C26: HFC | D26: 438A | E26: 0 | F26: Zero | G26: 2265 | H26: Medium
C27: HFC | D27: 423A | E27: 0 | F27: Zero | G27: 2280 | H27: Medium
C28: HFC | D28: 417A | E28: 0 | F28: Zero | G28: 2346 | H28: Medium
C29: HCFC | D29: 402B | E29: 0.03 | F29: Medium | G29: 2416 | H29: Medium
C30: HFC | D30: 424A | E30: 0 | F30: Zero | G30: 2440 | H30: Medium
C31: HFC | D31: 422D | E31: 0 | F31: Zero | G31: 2729 | H31: High
C32: HCFC | D32: 402A | E32: 0.019 | F32: Medium | G32: 2788 | H32: High
C33: HFC | D33: 422A | E33: 0 | F33: Zero | G33: 3143 | H33: High
C34: HCFC | D34: 408A | E34: 0.024 | F34: Medium | G34: 3152 | H34: High
C35: HFC | D35: 434A | E35: 0 | F35: Zero | G35: 3245 | H35: High
C36: HFC | D36: 428A | E36: 0 | F36: Zero | G36: 3607 | H36: High
C37: HFC | D37: MO89 | E37: 0 | F37: Zero | G37: 3805 | H37: High
C38: HFC | D38: 404A | E38: 0 | F38: Zero | G38: 3922 | H38: High
C39: HFC | D39: 507A | E39: 0 | F39: Zero | G39: 3985 | H39: High
C40: CFC | D40: 502 | E40: 0.33 | F40: High | G40: 4657 | H40: High
C41: CFC | D41: 12 | E41: 1 | F41: High | G41: 10900 | H41: High
C42: HFC | D42: 508B | E42: 0 | F42: Zero | G42: 13396 | H42: High
C43: HFC | D43: 23 | E43: 0 | F43: Zero | G43: 14800 | H43: High

Sheet New Page (hidden)
B3: =HYPERLINK("#"&Translation!C9&"!A1",Translation!C9) -> Start

Sheet Calculation (hidden)
N2: ResearchGate
B3: Mass of ice needed to cool down the catch of fish to a desired temperature TC:
N4: http://www.fao.org/3/T0713E/T0713E03.htm#3.%20Quantity%20of%20ice%20required
B5: mi-cool | C5: Mass of ice to cool the fish | D5: =(D8*D9*(D10-D11))/(D6) -> 4.017388697 | E5: kg
B6: λice | C6: Latent heat of fusion of ice | D6: 333.55 | E6: kJ/kg
B7: λice | C7: Latent heat of fusion of ice | D7: =D6*0.2777778 -> 92.65278519 | E7: Wh/kg
B8: mf | C8: Mass of fish | D8: =Fish_Ice!D9 -> 20 | E8: kg
B9: Cf | C9: Specific heat of fish | D9: =Fish_Ice!M9 -> 3.35 | E9: kJ/kg°C | N9: To check: | O9: 0.00225 | P9: m³/kg | Q9: Volume Ice Flakes
B10: T0 | C10: Initial temperature of fish | D10: =Fish_Ice!D10 -> 25 | E10: °C | O10: Wann ist die Box voll, wenn Ice + Fisch drin?
B11: TC | C11: Final temperature of fish | D11: =Fish_Ice!D11 -> 5 | E11: °C
B15: Mass of ice needed to maintain the temperature of the catch of fish:
B17: q | C17: Heat influx into box | D17: =D18*D19*D20*(D21-D22) -> 35.625 | E17: W
B18: N | C18: Amount of boxes required | D18: =D32 -> 1
B19: UO | C19: Overall heat transfer coefficient | D19: =H22 -> 0.75 | E19: W/m² K
B20: Abox | C20: Surface area of the box | D20: =L23 -> 1.9 | E20: m² | G20: Thermal conductivity of inslation: | H20: =Fish_Ice!D21 -> 0.03 | I20: W/m K | K20: Length | L20: =Fish_Ice!D17 -> 1 | M20: m
B21: TA | C21: Temperature outside box | D21: =Fish_Ice!D13 -> 25 | E21: °C | G21: Thickness of insulation: | H21: =Fish_Ice!D20 -> 0.04 | I21: m | K21: Witdh | L21: =Fish_Ice!D18 -> 0.5 | M21: m
B22: TS | C22: Temperature inside box | D22: =Fish_Ice!D14 -> 0 | E22: °C | G22: Heat transfer coefficient: | H22: =H20/H21 -> 0.75 | I22: W/m² K | K22: Heigh | L22: =Fish_Ice!D19 -> 0.3 | M22: m
K23: Area: | L23: =2*(L20*L21+L20*L22+L21*L22) -> 1.9 | M23: m²
B24: λice | C24: Latent heat of fusion of ice | D24: =D6*0.2777778 -> 92.65278519 | E24: Wh/kg | K24: Volume: | L24: =(L22-2*H21)*(L21-2*H21)*(L20-2*H21) -> 0.085008 | M24: m³
B26: mi-maintain | C26: Mass of ice to maintain: | D26: =D17/D24 -> 0.3845000442 | E26: kg/h
B27: t | C27: Duration of fish cooling: | D27: =Fish_Ice!D15 -> 5 | E27: h
B28: mi-maintain | C28: Mass of ice to maintain: | D28: =D26*D27 -> 1.922500221 | E28: kg
B32: N | C32: Number of boxes | D32: =ROUNDUP(((D33/D34)/D35),0) -> 1
B33: mf | C33: Mass of fish | D33: =D8 -> 20 | E33: kg
B34: ρf | C34: Density of fish | D34: 1040 | E34: kg/m³
B35: Vbox | C35: Useable volume in box | D35: =D39 -> 0.0595056 | E35: m³
B39: Vbox | C39: Useable volume in box | D39: =(1-D40)*D41*(L22-2*H21)*(L21-2*H21)*(L20-2*H21) -> 0.0595056 | E39: m³
B40: ε | C40: Void fraction | D40: =Fish_Ice!M11/100 -> 0.3
B41: X | C41: Box filling volume | D41: =Fish_Ice!M12/100 -> 1
B46: Mass of ice needed to account for losses during transport and other losses
M47: =L21 -> 0.5 | N47: =L20 -> 1 | O47: =L22 -> 0.3
B48: mi-losses | C48: Losses | D48: =Fish_Ice!M13/100 -> 0.05 | M48: w | N48: l | O48: h
M49: x | N49: y | O49: z | Q49: x' | R49: y'
M50: 0 | N50: =N47 -> 1 | O50: 0 | Q50: =(-0.35*M50)+N50 -> 1 | R50: =(-0.35*M50)+O50 -> 0
M51: 0 | N51: =N47 -> 1 | O51: =O47 -> 0.3 | Q51: =(-0.35*M51)+N51 -> 1 | R51: =(-0.35*M51)+O51 -> 0.3
B52: Total ice needed for cooling: | M52: 0 | N52: =N47 -> 1 | O52: =O47 -> 0.3 | Q52: 1 | R52: 0.3
M53: 0 | N53: 0 | O53: =O47 -> 0.3 | Q53: 0 | R53: 0.3
B54: mi-cool | C54: Mass of ice to cool the fish | D54: =D5 -> 4.017388697 | E54: kg | M54: 0 | N54: 0 | O54: =O47 -> 0.3 | Q54: 0 | R54: 0.3
B55: mi-maintain | C55: Mass of ice to maintain: | D55: =D28 -> 1.922500221 | E55: kg
B56: mi-losses | C56: Losses | D56: =SUM(D54:D55)*D48 -> 0.2969944459 | E56: kg | M56: =$M$47 -> 0.5 | N56: 0 | O56: 0 | Q56: -0.175 | R56: -0.175
B57: mi-total | C57: Total amount of ice needed: | D57: =SUM(D54:D56) -> 6.236883364 | E57: kg | M57: =$M$47 -> 0.5 | N57: =N47 -> 1 | O57: 0 | Q57: 0.825 | R57: -0.175
M58: 0.5 | N58: =N47 -> 1 | O58: =O47 -> 0.3 | Q58: 0.825 | R58: 0.125
C59: Ice per box | D59: =SUM(D54:D55)/D32 -> 5.939888918 | E59: kg | M59: 0.5 | N59: 0 | O59: =O47 -> 0.3 | Q59: -0.175 | R59: 0.125
C60: Fish per box | D60: =D8/D32 -> 20 | E60: kg | M60: 0.5 | N60: 0 | O60: 0 | Q60: -0.175 | R60: -0.175
C62: Ice/Fish-Ratio: | D62: =D57/D8 -> 0.3118441682 | M62: 0 | N62: 0 | O62: 0 | Q62: 0 | R62: 0
M63: 0 | N63: 0 | O63: 0 | Q63: 0 | R63: 0
M65: =M47 -> 0.5 | N65: =N47 -> 1 | O65: 0 | Q65: 0.825 | R65: -0.175
M66: 0 | N66: =N47 -> 1 | O66: 0 | Q66: 1 | R66: 0
M68: =M47 -> 0.5 | N68: =N47 -> 1 | O68: 0.3 | Q68: 0.825 | R68: 0.125
M69: 0 | N69: =N47 -> 1 | O69: =O47 -> 0.3 | Q69: 1 | R69: 0.3
M71: =M47 -> 0.5 | N71: 0 | O71: =O47 -> 0.3 | Q71: -0.175 | R71: 0.125
M72: 0 | N72: 0 | O72: =O47 -> 0.3 | Q72: 0 | R72: 0.3

Sheet Product Database (hidden)
B2: Fish
B5: Selection | K5: Sweetwater Fish | R5: Marine Fish
C7: Temperate Water | E7: Tropical Water | L7: Temperate Water | N7: Tropical Water | S7: Temperate Water | U7: Tropical Water
B8: Species | C8: Min | D8: Max | E8: Min | F8: Max | G8: Remarks | K8: Species | L8: Min | M8: Max | N8: Min | O8: Max | P8: Remarks | R8: Species | S8: Min | T8: Max | U8: Min | V8: Max | W8: Remarks
B9: =IF($J$33=$M$34,IF(K9=0,"",K9),IF(R9=0,"",R9)) -> Batfish | C9: - | D9: - | E9: 21 | F9: 24 | G9: Lean | K9: Bagre | L9: - | M9: - | N9: 25 | O9: 25 | P9: Medium fat | R9: Batfish | S9: - | T9: - | U9: 21 | V9: 24 | W9: Lean
B10: Bream | C10: - | D10: - | E10: 10 | F10: 31 | G10: Lean/low fat | K10: Carp | L10: - | M10: - | N10: 16 | O10: 21 | P10: Lean/low fat | R10: Bream | S10: - | T10: - | U10: 10 | V10: 31 | W10: Lean/low fat
B11: =IF($J$33=$M$34,IF(K11=0,"",K11),IF(R11=0,"",R11)) -> Catfish | C11: =IF($J$33=$M$34,IF(L11=0,"",L11),IF(S11=0,"",S11)) -> - | D11: =IF($J$33=$M$34,IF(M11=0,"",M11),IF(T11=0,"",T11)) -> - | E11: =IF($J$33=$M$34,IF(N11=0,"",N11),IF(U11=0,"",U11)) -> 16 | F11: =IF($J$33=$M$34,IF(O11=0,"",O11),IF(V11=0,"",V11)) -> 19 | G11: =IF($J$33=$M$34,IF(P11=0,"",P11),IF(W11=0,"",W11)) -> Lean | K11: Catfish | L11: 12 | M11: 13 | N11: 15 | O11: 27 | P11: Lean | R11: Catfish | S11: - | T11: - | U11: 16 | V11: 19 | W11: Lean
B12: Cod | C12: 9 | D12: 15 | E12: - | F12: - | G12: White-fleshed lean | K12: Chincuna | L12: - | M12: - | N12: 40 | O12: 40 | P12: Fatty | R12: Cod | S12: 9 | T12: 15 | U12: - | V12: - | W12: White-fleshed lean
B13: Croaker | C13: - | D13: - | E13: 8 | F13: 22 | G13: Lean | K13: Corvina | L13: - | M13: - | N13: 30 | O13: 30 | P13: Medium fat | R13: Croaker | S13: - | T13: - | U13: 8 | V13: 22 | W13: Lean
B14: Flounder | C14: 7 | D14: 18 | E14: - | F14: - | G14: Flat fish | K14: Lungfish | L14: - | M14: - | N14: 11 | O14: 25 | P14: Lean/low fat | R14: Flounder | S14: 7 | T14: 18 | U14: - | V14: - | W14: Flat fish
B15: Grouper | C15: - | D15: - | E15: 6 | F15: 28 | G15: Lean | K15: Mullet | L15: - | M15: - | N15: 12 | O15: 26 | P15: Lean | R15: Grouper | S15: - | T15: - | U15: 6 | V15: 28 | W15: Lean
B16: Haddock | C16: 9 | D16: 15 | E16: - | F16: - | G16: White-fleshed lean | K16: Pacu | L16: - | M16: - | N16: 40 | O16: 40 | P16: Fatty | R16: Haddock | S16: 9 | T16: 15 | U16: - | V16: - | W16: White-fleshed lean
B17: Hake | C17: 7 | D17: 15 | E17: - | F17: - | G17: White-fleshed lean | K17: Perch | L17: 8 | M17: 17 | N17: 13 | O17: 32 | P17: Lean/low fat | R17: Hake | S17: 7 | T17: 15 | U17: - | V17: - | W17: White-fleshed lean
B18: Halibut | C18: 21 | D18: 24 | E18: - | F18: - | G18: Flat fish | K18: Shad | L18: - | M18: - | N18: 25 | O18: 25 | P18: Medium fat | R18: Halibut | S18: 21 | T18: 24 | U18: - | V18: - | W18: Flat fish
B19: Herring summer | C19: 2 | D19: 6 | E19: - | F19: - | G19: Pelagic fish, high fat | K19: Tilapia | L19: - | M19: - | N19: 10 | O19: 27 | P19: Lean | R19: Herring summer | S19: 2 | T19: 6 | U19: - | V19: - | W19: Pelagic fish, high fat
B20: Herring winter | C20: 7 | D20: 12 | E20: - | F20: - | G20: Pelagic fish, low fat | K20: Trout | L20: 9 | M20: 11 | N20: 16 | O20: 24 | P20: Low fat | R20: Herring winter | S20: 7 | T20: 12 | U20: - | V20: - | W20: Pelagic fish, low fat
B21: Jobfish | C21: - | D21: - | E21: 16 | F21: 35 | G21: Lean | R21: Jobfish | S21: - | T21: - | U21: 16 | V21: 35 | W21: Lean
B22: Mackerel | C22: 4 | D22: 19 | E22: 14 | F22: 18 | G22: Pelagic fish, high/low fat | R22: Mackerel | S22: 4 | T22: 19 | U22: 14 | V22: 18 | W22: Pelagic fish, high/low fat
B23: Pandora | C23: - | D23: - | E23: 8 | F23: 21 | G23: Lean | R23: Pandora | S23: - | T23: - | U23: 8 | V23: 21 | W23: Lean
B24: Plaice | C24: 7 | D24: 21 | E24: 21 | F24: 21 | G24: Flat fish | R24: Plaice | S24: 7 | T24: 21 | U24: 21 | V24: 21 | W24: Flat fish
B25: Sardine | C25: 3 | D25: 8 | E25: 9 | F25: 16 | G25: Pelagic fish, high fat | R25: Sardine | S25: 3 | T25: 8 | U25: 9 | V25: 16 | W25: Pelagic fish, high fat
B26: Snapper | C26: - | D26: - | E26: 10 | F26: 28 | G26: Lean | R26: Snapper | S26: - | T26: - | U26: 10 | V26: 28 | W26: Lean
B27: Sole | C27: 7 | D27: 21 | E27: 21 | F27: 21 | G27: Flat fish | R27: Sole | S27: 7 | T27: 21 | U27: 21 | V27: 21 | W27: Flat fish
B28: Spadefish | C28: - | D28: - | E28: 21 | F28: 26 | G28: Lean/low fat | R28: Spadefish | S28: - | T28: - | U28: 21 | V28: 26 | W28: Lean/low fat
B29: Whiting | C29: 7 | D29: 9 | E29: - | F29: - | G29: White-fleshed lean | R29: Whiting | S29: 7 | T29: 9 | U29: - | V29: - | W29: White-fleshed lean
B31: Selection: | I31: Selection: | L31: Dropdown:
B33: =J35 -> Batfish | C33: =IFERROR(VLOOKUP($B$33,$B$9:$G$29,2,0),"-") -> - | D33: =IFERROR(VLOOKUP($B$33,$B$9:$G$29,3,0),"-") -> - | E33: =IFERROR(VLOOKUP($B$33,$B$9:$G$29,4,0),"-") -> 21 | F33: =IFERROR(VLOOKUP($B$33,$B$9:$G$29,5,0),"-") -> 24 | G33: =IFERROR(VLOOKUP($B$33,$B$9:$G$29,6,0),"-") -> Lean | I33: Species | J33: =Fish!E33 -> Marine species | L33: Species: | M33: Marine species | O33: Water type: | P33: Temperate water
B34: =J34&" Range :" -> Tropical water Range : | C34: =IFERROR(IF($J$34=$P$34,E33,C33),"-") -> 21 | D34: =IFERROR(IF($J$34=$P$34,F33,D33),"-") -> 24 | I34: Water Type | J34: =Fish!E35 -> Tropical water | M34: Sweetwater species | P34: Tropical water
B35: Average: | C35: =IFERROR(AVERAGE(C34:D34),"-") -> 22.5 | I35: Fish | J35: =Fish!E34 -> Batfish
B39: Meat
M40: Practical Storage life in months
E41: Temperature | G41: Relative humididty (%) | H41: Practical Storage life | M41: -18 °C | N41: -25 °C | O41: -30 °C
E42: Min | F42: Max | L42: Beef carcass | M42: 12 | N42: 18 | O42: 24
D43: Beef | E43: -1.5 | F43: 0 | G43: 90 | H43: 3-5 | I43: weeks | L43: Roasts, steaks packaged | M43: 12 | N43: 18 | O43: 24
D44: Lamb | E44: -1 | F44: 0 | G44: 90-95 | H44: 10-15 | I44: days | L44: Ground meat, packaged, (unsalted) | M44: 10 | N44: >12 | O44: >12
D45: Pork | E45: -1.5 | F45: 0 | G45: 90-95 | H45: 1-2 | I45: weeks | L45: Veal carcass | M45: 9 | N45: 12 | O45: 24
D46: Veal | E46: -1 | F46: 0 | G46: 90 | H46: 1-3 | I46: weeks | L46: Roasts, chops | M46: 9 | N46: 10-12 | O46: 12
D47: Chicken | E47: -1 | F47: 0 | G47: >95 | H47: 7-10 | I47: days | L47: Lamb carcass | M47: 9 | N47: 12 | O47: 24
D48: Rabbit | E48: -1 | F48: 0 | G48: 90-95 | H48: max. 5 | I48: days | L48: Roasts, chops | M48: 10 | N48: 12 | O48: 24
L49: Pork carcass | M49: 6 | N49: 12 | O49: 15
L50: Roasts, chops | M50: 6 | N50: 12 | O50: 15
L51: Ground sausage | M51: 6 | N51: 10 | O51: -
L52: Bacon (green, unsmoked) | M52: 2-4 | N52: 6 | O52: 12
L53: Lard | M53: 9 | N53: 12 | O53: 12
L54: Poultry, chicken and turkeys, eviscerated, well packaged | M54: 12 | N54: 24 | O54: 24
L55: Fried chicken | M55: 6 | N55: 9 | O55: 12
L56: Offal, edible | M56: 4 | N56: - | O56: -
B61: Horticulture
D64: Selection: | R64: Selection:
D65: =Horticulture!F43 -> Cucumbers | E65: =INDEX(E69:E114,MATCH($D$65,$D$69:$D$114,0)) -> 7 | F65: =INDEX(F69:F114,MATCH($D$65,$D$69:$D$114,0)) -> Pitting, water-soaked spots, decay | L65: =INDEX(L69:L114,MATCH($D$65,$D$69:$D$114,0)) -> 0 | R65: =Horticulture!F33 -> Broccoli | S65: =INDEX(S69:S213,MATCH($R$65,$R$69:$R$213,0)) -> 0 | T65: =INDEX(T69:T213,MATCH($R$65,$R$69:$R$213,0)) -> 98-100 | U65: 2-3 | V65: weeks | W65: =INDEX(W69:W213,MATCH($R$65,$R$69:$R$213,0)) -> 0 | X65: =INDEX(X69:X213,MATCH($R$65,$R$69:$R$213,0)) -> I | Y65: =INDEX(Y69:Y213,MATCH($R$65,$R$69:$R$213,0)) -> H | Z65: F | AA65: 0
D68: Lowest Safe Temperature | E68: °C | F68: Symptoms of injury when stored Commodity | N68: Most susceptible | O68: Moderately susceptible | P68: Least susceptible | R68: Product | S68: Optimal Temp | T68: RH | U68: Storage life | V68: unit | W68: Special | X68: Preecooling
D69: Apples - certain cultivars | E69: 2-3 | F69: Internal browning, brown core, soggy breakdown, soft scald | L69: * | N69: Apricots | O69: Apples | P69: Beets | R69: Apple | S69: -1-4 | T69: 90-95 | U69: 2-12 | V69: month | W69: * | X69: R | Y69: F | Z69: H
D70: Asparagus | E70: 0-2 | F70: Dull, gray-green, limp tips | N70: Asparagus | O70: Broccoli | P70: Brussels sprouts | R70: Apricot | S70: -0.5-0 | T70: 90-95 | U70: 1-4 | V70: week
D71: Atemoya | E71: 4 | F71: Skin darkening, failure to ripen, pulp discoloration | N71: Avocados | O71: Carrots | P71: Cabbage, mature and savory | R71: Arazá fruit | S71: 12-13 | T71: 90-95 | U71: 2 | V71: weeks | X71: R
D72: Avocados | E72: 4.5-13 | F72: Grayish-brown discoloration of flesh | L72: * | N72: Bananas | O72: Cauliflower | P72: Dates | R72: Artichoke | S72: 0 | T72: >95 | U72: 2 | V72: weeks | X72: H | Y72: F | Z72: I
D73: Bael | E73: 3 | F73: Brown spots on skin | N73: Beans, snap | O73: Celery | P73: Kale | R73: Artichoke, Jerusalem | S73: 0-2 | T73: 90-95 | U73: 6-12 | V73: months
D74: Bananas | E74: 11.5-13 | F74: Dull color when ripened | L74: * | N74: Berries (except cranberries) | O74: Cranberries | P74: Kohlrabi | R74: Asian pear | S74: 0 | T74: >90 | U74: - | V74: - | X74: R
D75: Bean (lima) | E75: 1-4.5 | F75: Rusty brown specks, spots or areas | N75: Cucumbers | O75: Grapefruit | P75: Parsnips | R75: Asparagus | S75: 0-2 | T75: 95-99 | U75: 2-3 | V75: weeks | X75: H
D76: Bean (snap) | E76: 7 | F76: Pitting and russeting | L76: * | N76: Eggplants | O76: Grapes | P76: Rutabagas | R76: Atemoya | S76: 10-13 | T76: 90-95 | U76: - | V76: - | X76: R | Y76: F
D77: Breadfruit | E77: 7-12 | F77: Abnormal ripening, dull brown discoloration | N77: Lemons | O77: Onion (dry) | P77: Salsify | R77: Avocado | S77: 5-12 | T77: 85-95 | U77: 3-4 | V77: weeks | W77: * | X77: F | Y77: H
D78: Choyote | E78: 5-10 | F78: Dull brown discoloration, pitting, flesh darkening | N78: Lettuce | O78: Oranges | P78: Turnips | R78: Banana | S78: 13-14 | T78: 90-95 | U78: - | V78: -
D79: Cranberries | E79: 2 | F79: Rubbery texture, red flesh | N79: Limes | O79: Parsley | R79: Basil | S79: 12 | T79: 95-100 | U79: 2 | V79: week | X79: R
D80: Cucumbers | E80: 7 | F80: Pitting, water-soaked spots, decay | N80: Okra | O80: Pears | R80: Bean, Snap | S80: 5-7.5 | T80: 95-100 | U80: 8-12 | V80: days | X80: H | Y80: F
D81: Eggplants | E81: 7 | F81: Surface scald, alternaria rot, blackening of seeds | N81: Peaches | O81: Peas | R81: Beet | S81: 0 | T81: >98 | U81: 10-14 | V81: days | X81: H | Y81: F | Z81: I
D82: Ginger | E82: 7 | F82: Softening, tissue breakdown, decay | N82: Peppers, sweet | O82: Radishes | R82: Blackberry | S82: -0.5-0 | T82: >90 | U82: 2-14 | V82: days | X82: F
D83: Guavas | E83: 4.5 | F83: Pulp injury, decay | L83: * | N83: Plums | O83: Spinach | R83: Blueberry | S83: -0.5-0 | T83: >90 | U83: 2-4 | V83: weeks | X83: F
D84: Grapefruit | E84: 10 | F84: Scald, pitting, watery breakdown | L84: * | N84: Potatoes | O84: Squash, winter | R84: Bok Choy | S84: 0-5 | T84: >95 | U84: - | V84: -
D85: Jicama | E85: 13-18 | F85: Surface decay, discoloration | N85: Squash, summer | R85: Breadfruit | S85: 12-14 | T85: 90-95 | U85: 20 | V85: days | X85: R
D86: Lemons | E86: 11-13 | F86: Pitting, membranous staining, red blotch | L86: * | N86: Sweet potatoes | R86: Broccoli | S86: 0 | T86: 98-100 | U86: 2-3 | V86: weeks | X86: I | Y86: H | Z86: F
D87: Limes | E87: 7-9 | F87: Pitting, turning tan with time | N87: Tomatoes | R87: Brussels Sprouts | S87: 0 | T87: 95-100 | U87: 3-5 | V87: weeks | X87: H | Y87: I | Z87: F
D88: Lychee | E88: 3 | F88: Skin browning | R88: Cabbage | S88: 0 | T88: 98-100 | U88: - | V88: - | X88: H | Y88: F
D89: Mangos | E89: 10-13 | F89: Grayish scald-like discoloration of skin, uneven ripening | L89: * | R89: Carambola | S89: 4-5 | T89: 90-95 | U89: 3-4 | V89: days | X89: F | Y89: R
D90: Mangosteen | E90: 4-8 | F90: Hardening and browning of the cortex | R90: Carrot | S90: 0-1 | T90: 98-100 | U90: 7-9 | V90: month | W90: * | X90: H
D91: Melons Cantaloupe | E91: 2-5 | F91: Pitting, surface decay | L91: * | O91: Precooling Abreviations | R91: Cassava | S91: 0-5 | T91: - | U91: - | V91: - | X91: R
D92: Melons Honeydew | E92: 7-10 | F92: Reddish-tan discoloration, pitting, surface decay, failure to ripen | R92: Cauliflower | S92: 0 | T92: 95-98 | U92: 3 | V92: weeks | X92: H | Y92: F
D93: Melons Casaba | E93: 7-10 | F93: Pitting, surface decay, failure to ripen | O93: R | P93: Coldroom | R93: Celeriac | S93: 0-2 | T93: 97-98 | U93: 6-8 | V93: month
D94: Melons Crenshaw | E94: 7-10 | F94: Pitting, surface decay, failure to ripen | O94: I | P94: Ice | R94: Celery | S94: 0 | T94: 95 | U94: 5-7 | V94: weeks | X94: H
D95: Melons Persian | E95: 7-10 | F95: Pitting, surface decay, failure to ripen | O95: H | P95: Hydrocooling | R95: Cherimoya | S95: 10-13 | T95: 90-95 | U95: 2-3 | V95: weeks | X95: R | Y95: F
D96: Okra | E96: 7 | F96: Discoloration, water-soaked areas, pitting, decay | O96: F | P96: Forced Air | R96: Cherry (sweet) | S96: -1-0 | T96: >95 | U96: 2-4 | V96: weeks | X96: R | Y96: F | Z96: H
D97: Olive, fresh | E97: 7 | F97: Internal browning | R97: Chervil | S97: 0 | T97: 95-100 | U97: 1 | V97: week | X97: R
D98: Oranges | E98: 3 | F98: Pitting, brown stain | L98: * | R98: Chicory | S98: 0 | T98: 95-100 | U98: 4 | V98: weeks | X98: R
D99: Papayas | E99: 7 | F99: Pitting, failure to ripen, off flavors, decay | N99: Selected: | O99: =R65 -> Broccoli | R99: Chinese Cabbage | S99: 0 | T99: 98 | U99: 3-6 | V99: months | X99: F | Y99: H
D100: Passion fruit | E100: 10 | F100: Dark red discoloration on skin, loss of flavor, decay | R100: Chives | S100: 0 | T100: 95-100 | U100: 2-3 | V100: weeks | X100: R
D101: Peppers, sweet | E101: 7 | F101: Sheet pitting, alternaria rot on pods and calyxes, darkening of seeds | O101: =IF(X65=0,"",X65) -> I | P101: =VLOOKUP(O101,$O$93:$P$96,2,0) -> Ice | R101: Coconut | S101: ambient | T101: ambient | U101: 3-5 | V101: months | W101: * | X101: R
D102: Pineapples | E102: 7-10 | F102: Dull green when ripe, internal browning | L102: * | O102: =IF(Y65=0,"",Y65) -> H | P102: =VLOOKUP(O102,$O$93:$P$96,2,0) -> Hydrocooling | R102: Collards | S102: 0 | T102: 95-98 | U102: 2 | V102: week | X102: H | Y102: I
D103: Pomegranates | E103: 4.5 | F103: Pitting, external and internal browning | O103: =IF(Z65=0,"",Z65) -> F | P103: Forced Air | R103: Coriander | S103: 0 | T103: 95-100 | U103: 2 | V103: week | X103: R
D104: Potatoes | E104: 3 | F104: Mahogany browning, sweetening | L104: * | O104: =IF(AA65=0,"",AA65) ->  | R104: Cranberry | S104: 2-5 | T104: 90-95 | U104: 2-4 | V104: months | X104: F
D105: Pumpkins | E105: 10 | F105: Decay, especially alternaria rot | R105: Cucumber | S105: 10-12.5 | T105: 95 | U105: <14 | V105: days | X105: H | Y105: F
D106: Hardshell squash | E106: 10 | F106: Decay, especially alternaria rot | R106: Currant | S106: -0.5-0 | T106: 95 | U106: 1.5 | V106: weeks | X106: F
D107: Rambutan | E107: 10 | F107: Darkening of exocarp | R107: Date | S107: 0 | T107: - | U107: 1 | V107: year | W107: *
D108: Sweet potatoes | E108: 13 | F108: Decay, pitting, internal discoloration, hardcore when cooked | R108: Dill | S108: 0 | T108: 95-100 | U108: 2 | V108: week
D109: Tamarillos | E109: 3-4 | F109: Surface pitting, discoloration | R109: Dragon Fruit | S109: 10 | T109: - | U109: 14 | V109: days | X109: R | Y109: H
D110: Taro | E110: 10 | F110: Internal browning, decay | R110: Durian | S110: 15 | T110: 85-95 | U110: - | V110: - | X110: F | Y110: R
D111: Tomatoes Ripe | E111: 7-10 | F111: Water soaking and softening, decay | L111: * | R111: Eggplant | S111: 10-12 | T111: 90-95 | U111: 14 | V111: days | X111: H | Y111: F | Z111: R
D112: Tomatoes Mature-green | E112: 13 | F112: Poor color when ripe, alternaria rot | R112: Elderberry | S112: -0.5-0 | T112: 95 | U112: - | V112: - | X112: F
D113: Water convolvulus | E113: 10 | F113: Darkening of leaves and stems | R113: Endive | S113: 0 | T113: 90-95 | U113: 2-3 | V113: weeks | X113: H
D114: Watermelons | E114: 4.5 | F114: Pitting, objectionable flavor | R114: Escarole | S114: 0 | T114: 90-95 | U114: 2-3 | V114: weeks | X114: H
R115: Fennel | S115: 0 | T115: 90-95 | U115: 2 | V115: weeks | X115: H | Y115: F
R116: Fig | S116: -1-0 | T116: 90-95 | U116: - | V116: -
R117: Garlic | S117: -1-0 | T117: 60-70 | U117: 9 | V117: months | W117: *
R118: Ginger | S118: 12-14 | T118: 85-90 | U118: 60-90 | V118: days | X118: F | Y118: R
R119: Ginseng | S119: 0 | T119: >95 | U119: 2 | V119: months | X119: H | Y119: F
R120: Gooseberry | S120: -0.5-0 | T120: 95 | U120: 3 | V120: weeks | X120: F
R121: Grape (American) | S121: -0.5-0 | T121: 85-90 | U121: 4-7 | V121: weeks | X121: F
R122: Grape (Muscadine) | S122: -0.5-0 | T122: >90 | U122: 1-4 | V122: weeks | X122: F
R123: Grape (Table) | S123: -1-0 | T123: 90-95 | U123: - | V123: - | X123: F
R124: Grapefruit | S124: 12-15 | T124: 95 | U124: 6 | V124: weeks
R125: Guava | S125: 8-10 | T125: 90-95 | U125: 2-3 | V125: weeks | X125: F | Y125: H
R126: Horseradish | S126: 0 | T126: 98-100 | U126: 8-12 | V126: months | X126: F
R127: Jicama | S127: 12.5-15 | T127: 80-90 | U127: 2-4 | V127: months
R128: Kale | S128: 0 | T128: 95-98 | U128: 2 | V128: week | X128: H | Y128: I
R129: Kiwifruit | S129: 0 | T129: 90-95 | U129: 4-5 | V129: months | X129: F
R130: Kohlrabi | S130: 0 | T130: 98-100 | U130: 2-3 | V130: months | X130: H | Y130: I | Z130: F
R131: Leek | S131: 0 | T131: 95-100 | U131: 2-3 | V131: months | X131: H | Y131: I
R132: Lemon | S132: 7-12 | T132: 85-95 | U132: 6 | V132: months
R133: Lettuce | S133: 0 | T133: 98-100 | U133: 4 | V133: weeks | X133: H
R134: Lime | S134: 10 | T134: 95 | U134: 8 | V134: weeks
R135: Litchi | S135: 2-5 | T135: 90-95 | U135: 3-5 | V135: weeks | X135: R
R136: Longan | S136: 4-7 | T136: 90-95 | U136: 2-3 | V136: weeks | X136: R | Y136: F
R137: Longkong | S137: 18 | T137: 90 | U137: 21 | V137: days | X137: R
R138: Loquat | S138: 0-5 | T138: >90 | U138: 3-4 | V138: weeks | X138: R
R139: Luffa | S139: 10-12 | T139: 90-95 | U139: 2 | V139: weeks
R140: Mamey Apple | S140: 12-16 | T140: 85-90 | U140: 2-3 | V140: weeks
R141: Mandarin | S141: 5-8 | T141: 95 | U141: 4 | V141: weeks
R142: Mango | S142: 10-13 | T142: 85-90 | U142: 14-28 | V142: days | X142: F | Y142: R
R143: Mangosteen | S143: 4-6 | T143: 85-90 | U143: 7 | V143: weeks | X143: R
R144: Marjoram | S144: 0 | T144: 90-95 | U144: 1-2 | V144: weeks | X144: R
R145: Melon Honeydew | S145: 10 | T145: 90-95 | U145: 3 | V145: weeks | X145: H | Y145: F
R146: Melon Netted | S146: 2-7 | T146: 95 | U146: 10-14 | V146: days | X146: H | Y146: F | Z146: I
R147: Mustard | S147: 0 | T147: 95-98 | U147: 2 | V147: week | X147: H | Y147: I
R148: Mushroom | S148: 0-1 | T148: 95 | U148: 7-9 | V148: days | X148: H | Y148: F
R149: Nectarine | S149: 0 | T149: - | U149: - | V149: -
R150: Nopalitos | S150: 5 | T150: 95-99 | U150: 3 | V150: weeks | X150: R | Y150: F
R151: Okra | S151: 7-10 | T151: >90 | U151: 7-14 | V151: days | X151: H | Y151: F
R152: Olive | S152: 5-7.5 | T152: 90-95 | U152: - | V152: -
R153: Onion, green | S153: 0 | T153: 95-98 | U153: 3-4 | V153: weeks | X153: H | Y153: F | Z153: I
R154: Onions, dry | S154: 0 | T154: 65-75 | U154: 6-9 | V154: months
R155: Orange | S155: 0-8 | T155: 85-95 | U155: 12 | V155: weeks | W155: * | X155: R | Y155: F
R156: Oregano | S156: 0 | T156: 90-95 | U156: 1-2 | V156: weeks
R157: Papaya | S157: 7-13 | T157: 90-95 | U157: 14 | V157: days | X157: R | Y157: F | Z157: H
R158: Parsley | S158: 0 | T158: 95-100 | U158: 1-2 | V158: months | X158: I | Y158: F | Z158: H
R159: Parsnip | S159: 0-1 | T159: 98 | U159: 4-6 | V159: months | X159: H | Y159: I
R160: Passion Fruit, purple | S160: 3-5 | T160: 90-95 | U160: 3-5 | V160: weeks | X160: R | Y160: F
R161: Passion Fruit, yellow | S161: 7-10 | T161: 90-95 | U161: 2 | V161: weeks | X161: R | Y161: F
R162: Pea | S162: 0 | T162: 95-98 | U162: 1-2 | V162: weeks | X162: F | Y162: H
R163: Peach | S163: -1-0 | T163: 90-95 | U163: - | V163: - | X163: F | Y163: H
R164: Pear | S164: -1 | T164: 90-94 | U164: - | V164: - | X164: R
R165: Pear, prickly | S165: 5-8 | T165: 90-95 | U165: 2-5 | V165: weeks | X165: R | Y165: F
R166: Pepper | S166: 7 | T166: 90-95 | U166: 2-3 | V166: weeks | X166: F | Y166: H
R167: Peppermint | S167: 0 | T167: 95-100 | U167: 2-3 | V167: weeks | X167: R
R168: Persimmon | S168: -1-1 | T168: 90-95 | U168: - | V168: -
R169: Pineapple | S169: 7-12 | T169: 85-95 | U169: 14-20 | V169: days | X169: R | Y169: F
R170: Plantain | S170: 13-14 | T170: 90-95 | U170: - | V170: -
R171: Plum | S171: -1.1-0 | T171: 90-95 | U171: - | V171: - | X171: F | Y171: H | Z171: R
R172: Pomegranate | S172: 6 | T172: 90 | U172: - | V172: - | W172: *
R173: Potato | S173: 5 | T173: - | U173: 2-12 | V173: months | W173: *
R174: Prune, fresh | S174: -1.1-0 | T174: 90-95 | U174: - | V174: - | X174: F | Y174: H | Z174: R
R175: Pumpkin | S175: 10-13 | T175: 50-70 | U175: 2-3 | V175: months | X175: R
R176: Quince | S176: -0.5-0 | T176: 90 | U176: 2-3 | V176: months
R177: Radicchio | S177: 3-5 | T177: 90 | U177: 20-20 | V177: days | X177: R
R178: Radish | S178: 0 | T178: 90-95 | U178: 3-4 | V178: weeks | X178: H
R179: Rambutan | S179: 8-15 | T179: 90-95 | U179: 14-16 | V179: days | X179: R
R180: Rape | S180: 0 | T180: 95-98 | U180: 2 | V180: week | X180: H | Y180: I
R181: Raspberry | S181: -0.5-0 | T181: >90 | U181: 2-5 | V181: days | X181: F
R182: Rhubarb | S182: 0 | T182: 95-100 | U182: 2-4 | V182: weeks | X182: H | Y182: F
R183: Rosemary | S183: 0 | T183: - | U183: 2-3 | V183: weeks | X183: R
R184: Rutabaga | S184: 0 | T184: 98-100 | U184: 4-6 | V184: months | X184: R | Y184: F | Z184: H | AA184: I
R185: Sage | S185: 0 | T185: - | U185: 2-3 | V185: weeks | X185: R
R186: Salad greens | S186: 0-2 | T186: 95-100 | U186: 7-10 | V186: days | X186: R
R187: Salsify | S187: 0 | T187: 95-98 | U187: 3-4 | V187: months
R188: Sapote | S188: 13-18 | T188: 85-90 | U188: 2-6 | V188: weeks
R189: Savory | S189: 0 | T189: 95-100 | U189: 3 | V189: week | X189: R
R190: Southern Pea | S190: 4-5 | T190: 95 | U190: 6-8 | V190: weeks | X190: F
R191: Spinach | S191: 0 | T191: 95-98 | U191: 2 | V191: week | X191: H | Y191: I
R192: Sprouts | S192: 0 | T192: 95-100 | U192: 5-10 | V192: days | X192: H | Y192: F
R193: Squash, summer | S193: 5-10 | T193: 95 | U193: 2 | V193: weeks | X193: R | Y193: F | Z193: H
R194: Squash, winter | S194: 10-13 | T194: 50-70 | U194: 2-3 | V194: months | X194: R
R195: Strawberry | S195: 0 | T195: 90-95 | U195: 7 | V195: days | X195: F | Y195: R
R196: Sweet corn | S196: 0 | T196: - | U196: 2 | V196: weeks | X196: H
R197: Sweetpotato | S197: 14 | T197: 90 | U197: 1 | V197: year
R198: Swiss Chard | S198: 0 | T198: 95-98 | U198: 1-2 | V198: weeks | X198: R | Y198: H
R199: Tamarillo | S199: 3-5 | T199: 90-95 | U199: 4-8 | V199: weeks | X199: R
R200: Tamarind | T200: - | U200: - | V200: - | W200: *
R201: Taro | S201: 7-10 | T201: 80-95 | U201: 18 | V201: weeks | X201: R
R202: Tarragon | S202: 0 | T202: 90-95 | U202: 1-2 | V202: weeks | X202: R
R203: Thyme | S203: 0 | T203: - | U203: 2-3 | V203: weeks | X203: R
R204: Tomatillo | S204: 5-10 | T204: 80-90 | U204: 1 | V204: week | X204: F | Y204: R
R205: Tomato, red | S205: 7 | T205: - | U205: some | V205: days | X205: R | Y205: F
R206: Truffle | S206: 0 | T206: 90-95 | U206: 20-30 | V206: days | X206: H
R207: Turnip | S207: 0 | T207: 95-98 | U207: 2 | V207: week | X207: H | Y207: I
R208: Turnip | S208: 0 | T208: 90-90 | U208: 4-5 | V208: months | X208: H | Y208: I
R209: Water Convolvulus | S209: 12-14 | T209: 90-95 | U209: 10-12 | V209: days | X209: R
R210: Waterchestnut | S210: 0-2 | T210: 98-100 | U210: 1-2 | V210: months | W210: * | X210: R
R211: Watercress | S211: 0 | T211: >95 | U211: 2-3 | V211: weeks | X211: H
R212: Watermelon | S212: 10-15 | T212: 90 | U212: 2-3 | V212: weeks | X212: F
R213: Wax Apple | S213: 12-14 | T213: 90-95 | U213: 10-14 | V213: days | X213: R
R214: Star Apple | S214: 3-6 | T214: 90 | U214: 3 | V214: weeks | X214: H | Y214: F
